Directorate,Department,Expenditure Type,Ref.Doc.1,Vendor Name,Expenditure Amount (exc VAT),Payment Date
Delivery Units,Assurance,Audit Fee,1025561201,PRICEWATERHOUSE COOPERS,"15,000.00",09/06/2023
Delivery Units,Assurance,Training,1026275502,CIPFA,110.00,29/06/2023
Delivery Units,Assurance,Training,1026276002,CIPFA,120.00,29/06/2023
Delivery Units,Assurance,Legal and Court Fees,1016209501,CIFAS,"-1,500.00",16/06/2023
Delivery Units,Assurance,Subscriptions,1025756402,CIFAS,"6,760.00",16/06/2023
Delivery Units,Assurance,Clothing - Protective Clothing,1025759401,Madly Merch,630.45,16/06/2023
Delivery Units,Strategy and Resources,Other Establishments - Third P,0080067223,GLA LEVIES,"50,633.80",21/06/2023
Delivery Units,Strategy and Resources,Other Establishments - Third P,0080067226,ENVIRONMENT AGENCY,"90,498.61",21/06/2023
Delivery Units,Strategy and Resources,Grant Payments,1024056503,TRANSPORT FOR LONDON,"127,792.40",09/06/2023
Delivery Units,Strategy and Resources,Other Services,0080066789,North London Waste Authority ,"897,742.00",06/06/2023
Delivery Units,Strategy and Resources,Other Establishments - Third P,0080067122,LEE VALLEY REGIONAL PARK AUTH.,"32,407.20",16/06/2023
Delivery Units,Strategy and Resources,Other Services,0080067427,North London Waste Authority ,"897,742.00",28/06/2023
Delivery Units,Strategy and Resources,Consultants Fees,1024578503,Link Treasury Services Ltd,"15,050.00",13/06/2023
Delivery Units,Customer and Place,Legal and Court Fees,0080067104,G Nicastro Ltd,"7,608.00",15/06/2023
Delivery Units,Customer and Place,Professional Services,1025298801,PeopleScout Limited,419.62,02/06/2023
Delivery Units,Customer and Place,Professional Services,1025555801,PeopleScout Limited,514.53,09/06/2023
Delivery Units,Customer and Place,Professional Services,1025662701,WSP (Real Estate and,154.48,14/06/2023
Delivery Units,Customer and Place,Professional Services,1025755701,PeopleScout Limited,925.78,15/06/2023
Delivery Units,Customer and Place,Miscellaneous Expenses,1026002501,ITJL,291.08,22/06/2023
Delivery Units,Customer and Place,Professional Services,1025452701,CAPITA BUSINESS SERVICES LTD,"5,361.90",07/06/2023
Delivery Units,Customer and Place,Building Repairs & Maintenance,1019306603,AJS Ltd,104.00,20/06/2023
Delivery Units,Customer and Place,Building Repairs & Maintenance,1019312303,AJS Ltd,96.00,20/06/2023
Delivery Units,Customer and Place,Building Repairs & Maintenance,1019984203,AJS Ltd,60.80,20/06/2023
Delivery Units,Customer and Place,Building Repairs & Maintenance,1019988003,AJS Ltd,69.36,20/06/2023
Delivery Units,Customer and Place,Building Repairs & Maintenance,1019989803,AJS Ltd,64.00,20/06/2023
Delivery Units,Customer and Place,Building Repairs & Maintenance,1022053703,Sureserve Fire & Electrical Ltd,"4,335.12",12/06/2023
Delivery Units,Customer and Place,Building Repairs & Maintenance,1023685102,Sureserve Fire & Electrical Ltd,"2,659.93",12/06/2023
Delivery Units,Customer and Place,Building Repairs & Maintenance,1024642502,Sureserve Fire & Electrical Ltd,"1,361.75",08/06/2023
Delivery Units,Customer and Place,Building Repairs & Maintenance,1024770002,S W Bruce & Co Ltd,65.00,15/06/2023
Delivery Units,Customer and Place,Building Repairs & Maintenance,1024771002,S W Bruce & Co Ltd,75.00,15/06/2023
Delivery Units,Customer and Place,Building Repairs & Maintenance,1024860202,Orion Building Engineering Services Ltd,225.00,22/06/2023
Delivery Units,Customer and Place,Building Repairs & Maintenance,1024910002,Orion Building Engineering Services Ltd,147.60,22/06/2023
Delivery Units,Customer and Place,Building Repairs & Maintenance,1024958703,Orion Building Engineering Services Ltd,112.50,22/06/2023
Delivery Units,Customer and Place,Building Repairs & Maintenance,1024959403,Orion Building Engineering Services Ltd,112.50,22/06/2023
Delivery Units,Customer and Place,Building Repairs & Maintenance,1024959503,Orion Building Engineering Services Ltd,112.50,22/06/2023
Delivery Units,Customer and Place,Building Repairs & Maintenance,1024959702,Orion Building Engineering Services Ltd,135.00,22/06/2023
Delivery Units,Customer and Place,Building Repairs & Maintenance,1024959903,Orion Building Engineering Services Ltd,112.50,22/06/2023
Delivery Units,Customer and Place,Building Repairs & Maintenance,1025045502,Orion Building Engineering Services Ltd,112.50,13/06/2023
Delivery Units,Customer and Place,Building Repairs & Maintenance,1025046302,Orion Building Engineering Services Ltd,534.65,13/06/2023
Delivery Units,Customer and Place,Building Repairs & Maintenance,1025047902,Orion Building Engineering Services Ltd,45.00,13/06/2023
Delivery Units,Customer and Place,Building Repairs & Maintenance,1025092402,Orion Building Engineering Services Ltd,180.00,13/06/2023
Delivery Units,Customer and Place,Building Repairs & Maintenance,1025092702,Orion Building Engineering Services Ltd,90.00,13/06/2023
Delivery Units,Customer and Place,Building Repairs & Maintenance,1025189602,RGE SERVICES,"4,174.35",06/06/2023
Delivery Units,Customer and Place,Building Repairs & Maintenance,1025296802,Orion Building Engineering Services Ltd,540.00,22/06/2023
Delivery Units,Customer and Place,Building Repairs & Maintenance,1025297002,Orion Building Engineering Services Ltd,180.00,22/06/2023
Delivery Units,Customer and Place,Building Repairs & Maintenance,1025345502,RGE SERVICES,275.00,09/06/2023
Delivery Units,Customer and Place,Building Repairs & Maintenance,1025389702,Orion Building Engineering Services Ltd,90.00,22/06/2023
Delivery Units,Customer and Place,Building Repairs & Maintenance,1025393002,Orion Building Engineering Services Ltd,510.16,19/06/2023
Delivery Units,Customer and Place,Building Repairs & Maintenance,1025393102,Orion Building Engineering Services Ltd,785.00,19/06/2023
Delivery Units,Customer and Place,Building Repairs & Maintenance,1025393402,Orion Building Engineering Services Ltd,112.50,19/06/2023
Delivery Units,Customer and Place,Building Repairs & Maintenance,1025394602,Orion Building Engineering Services Ltd,925.00,19/06/2023
Delivery Units,Customer and Place,Building Repairs & Maintenance,1025394802,Orion Building Engineering Services Ltd,135.00,19/06/2023
Delivery Units,Customer and Place,Building Repairs & Maintenance,1025395002,Orion Building Engineering Services Ltd,45.00,19/06/2023
Delivery Units,Customer and Place,Building Repairs & Maintenance,1025395202,Orion Building Engineering Services Ltd,196.25,19/06/2023
Delivery Units,Customer and Place,Building Repairs & Maintenance,1025395702,Orion Building Engineering Services Ltd,718.75,19/06/2023
Delivery Units,Customer and Place,Building Repairs & Maintenance,1025396402,Orion Building Engineering Services Ltd,"1,170.00",19/06/2023
Delivery Units,Customer and Place,Building Repairs & Maintenance,1025397402,Orion Building Engineering Services Ltd,112.50,19/06/2023
Delivery Units,Customer and Place,Building Repairs & Maintenance,1025558502,S W Bruce & Co Ltd,303.00,19/06/2023
Delivery Units,Customer and Place,Building Repairs & Maintenance,1025559702,Sureserve Fire & Electrical Ltd,"2,680.00",28/06/2023
Delivery Units,Childrens Service DSG,Other Services,0050068370,The Learning Experience East Finchley,"2,155.00",16/06/2023
Delivery Units,Childrens Service DSG,Other Services,0050068371,GAN KINNERET NURSERY,"2,155.00",16/06/2023
Delivery Units,Childrens Service DSG,Other Services,0050068372,SPARKLER'S  NURSERY,836.50,16/06/2023
Delivery Units,Childrens Service DSG,Other Establishments - Third P,0050068686,PARKFIELD ACADEMY,589.62,28/06/2023
Delivery Units,Childrens Service DSG,Other Establishments - Third P,0050068692,THE HYDE EF ACADEMY,281.69,21/06/2023
Delivery Units,Childrens Service DSG,Other Establishments - Third P,0050068755,BROADFIELDS ACADEMY,439.92,21/06/2023
Delivery Units,Childrens Service DSG,Other Services,0080067287,The Playhouse Nursery,"2,330.00",23/06/2023
Delivery Units,Childrens Service DSG,Education CFR Funding Advances,0020066081,BEIS SOROH SCHNEIRER,"22,276.65",28/06/2023
Delivery Units,Childrens Service DSG,Education CFR Funding Advances,0020066085,BROADFIELDS ACADEMY,"12,467.88",28/06/2023
Delivery Units,Childrens Service DSG,Education CFR Funding Advances,0020066090,Claremont Primary School Academy,"6,410.04",28/06/2023
Delivery Units,Childrens Service DSG,Education CFR Funding Advances,0020066094,BEIS CHINUCH PRIMARY SCHOOL,"15,884.22",28/06/2023
Delivery Units,Childrens Service DSG,Education CFR Funding Advances,0020066097,Finchley Yochien,"4,930.80",28/06/2023
Delivery Units,Childrens Service DSG,Education CFR Funding Advances,0020066104,INDEPENDENT JEWISH DAY SCHOOL,"10,530.78",28/06/2023
Delivery Units,Childrens Service DSG,Education CFR Funding Advances,0020066105,The Mill Hill Foundation,"3,698.10",28/06/2023
Delivery Units,Childrens Service DSG,Education CFR Funding Advances,0020066110,Millbrook Park Primary School,"13,806.24",28/06/2023
Delivery Units,Childrens Service DSG,Education CFR Funding Advances,0020066114,PARKFIELD ACADEMY,"21,202.44",28/06/2023
Delivery Units,Childrens Service DSG,Education CFR Funding Advances,0020066115,Peninim Primary School,"18,243.96",28/06/2023
Delivery Units,Childrens Service DSG,Education CFR Funding Advances,0020066126,Summerside Primary Academy,"10,865.37",28/06/2023
Delivery Units,Childrens Service DSG,Education CFR Funding Advances,0020066128,THE HYDE EF ACADEMY,"24,724.44",28/06/2023
Delivery Units,Childrens Family Services,Other Agencies - Third Party P,1025448101,GLS Education Services Ltd,65.00,07/06/2023
Delivery Units,Childrens Family Services,Professional Services,1025450001,Shredall Ltd,87.00,07/06/2023
Delivery Units,Childrens Family Services,Cleaning and domestic material,1025450401,Cleantec Services Ltd,"1,217.44",07/06/2023
Delivery Units,Childrens Family Services,Equipment and Materials Purcha,1026046102,ClearCall2000 LTD,44.35,26/06/2023
Delivery Units,Childrens Family Services,Other Services,1026109201,LEE SECURITY LONDON LIMITED,77.00,26/06/2023
Delivery Units,Childrens Family Services,Other Services,1026109701,LEE SECURITY LONDON LIMITED,86.90,26/06/2023
Delivery Units,Childrens Family Services,Equipment and Materials Purcha,1026109602,Norse Commercial Services Ltd,64.25,26/06/2023
Delivery Units,Childrens Family Services,Cleaning and domestic material,1026110101,Norse Commercial Services Ltd,704.36,26/06/2023
Delivery Units,Childrens Family Services,Equipment and Materials Purcha,1025144002,LEE SECURITY LONDON LIMITED,49.82,05/06/2023
Delivery Units,Childrens Family Services,Cleaning and domestic material,1026110001,Norse Commercial Services Ltd,528.42,26/06/2023
Delivery Units,Childrens Family Services,Professional Services,1025554901,New Enterprise Pest,75.00,09/06/2023
Delivery Units,Childrens Family Services,Contract Cleaning,1025556001,Norse Commercial Services Ltd,876.27,09/06/2023
Delivery Units,Childrens Family Services,Professional Services,1025805601,Cohort Security Solutions,106.00,16/06/2023
Delivery Units,Childrens Family Services,Professional Services,1026098502,Norse Commercial Services Ltd,876.27,26/06/2023
Delivery Units,Childrens Family Services,Professional Services,1026290701,Cohort Security Solutions,106.00,30/06/2023
Delivery Units,Childrens Family Services,Professional Services,1026291301,Cohort Security Solutions,414.00,29/06/2023
Delivery Units,Childrens Family Services,Other Energy,1025552302,KENT COUNTY COUNCIL (KCS),169.84,09/06/2023
Delivery Units,Childrens Family Services,Other Energy,1026292302,KENT COUNTY COUNCIL (KCS),90.08,30/06/2023
Delivery Units,Childrens Family Services,Operational Leases - Equipment,1024962201,Canon (UK) limited,-90.85,06/06/2023
Delivery Units,Childrens Family Services,Other Services,1025204201,BLUE 9 SECURITY LIMITED,52.29,06/06/2023
Delivery Units,Childrens Family Services,Other Services,1025206401,BLUE 9 SECURITY LIMITED,34.86,06/06/2023
Delivery Units,Childrens Family Services,Operational Leases - Equipment,1025294601,Canon (UK) limited,8.47,06/06/2023
Delivery Units,Childrens Family Services,Operational Leases - Equipment,1025294901,Canon (UK) limited,12.35,06/06/2023
Delivery Units,Childrens Family Services,Operational Leases - Equipment,1025295001,Canon (UK) limited,10.84,06/06/2023
Delivery Units,Childrens Family Services,Operational Leases - Equipment,1025295201,Canon (UK) limited,7.65,06/06/2023
Delivery Units,Childrens Family Services,Operational Leases - Equipment,1025295801,Canon (UK) limited,18.91,06/06/2023
Delivery Units,Childrens Family Services,Operational Leases - Equipment,1025297301,Canon (UK) limited,8.23,06/06/2023
Delivery Units,Childrens Family Services,Operational Leases - Equipment,1025297801,Canon (UK) limited,11.83,06/06/2023
Delivery Units,Childrens Family Services,Operational Leases - Equipment,1025298201,Canon (UK) limited,0.04,06/06/2023
Delivery Units,Childrens Family Services,Operational Leases - Equipment,1025298301,Canon (UK) limited,12.12,06/06/2023
Delivery Units,Childrens Family Services,Software Licences & Support,1025299101,DSSL Group Ltd,"1,000.00",02/06/2023
Delivery Units,Childrens Family Services,Operational Leases - Equipment,1025299301,Canon (UK) limited,4.95,06/06/2023
Delivery Units,Childrens Family Services,Operational Leases - Equipment,1025299701,Canon (UK) limited,1.79,06/06/2023
Delivery Units,Childrens Family Services,Operational Leases - Equipment,1025299901,Canon (UK) limited,4.34,06/06/2023
Delivery Units,Childrens Family Services,Operational Leases - Equipment,1025300101,Canon (UK) limited,64.68,06/06/2023
Delivery Units,Childrens Family Services,Operational Leases - Equipment,1025448801,Canon (UK) limited,181.70,07/06/2023
Delivery Units,Childrens Family Services,Other Services,1025506801,BLUE 9 SECURITY LIMITED,348.60,08/06/2023
Delivery Units,Childrens Family Services,Operational Leases - Equipment,1025758301,Canon (UK) limited,432.38,15/06/2023
Delivery Units,Childrens Family Services,Operational Leases - Equipment,1025806601,Canon (UK) limited,90.85,19/06/2023
Delivery Units,Childrens Family Services,Other Services,1025862201,1ST CONTAINERS UK LIMITED,31.00,19/06/2023
Delivery Units,Childrens Family Services,Other Services,1025863501,Enigma CCTV Ltd,"5,396.68",19/06/2023
Delivery Units,Childrens Family Services,Other Services,1025865201,BLUE 9 SECURITY LIMITED,323.52,19/06/2023
Delivery Units,Childrens Family Services,Software Licences & Support,1025913601,DSSL Group Ltd,130.00,20/06/2023
Delivery Units,Childrens Family Services,Operational Leases - Equipment,1025915201,Canon (UK) limited,90.85,20/06/2023
Delivery Units,Childrens Family Services,Other Services,1026046901,BLUE 9 SECURITY LIMITED,"2,085.00",23/06/2023
Delivery Units,Childrens Family Services,Other Services,1026047801,BLUE 9 SECURITY LIMITED,"1,981.56",26/06/2023
Delivery Units,Childrens Family Services,Other Services,1026231701,BLUE 9 SECURITY LIMITED,121.32,29/06/2023
Delivery Units,Childrens Family Services,Cleaning and domestic material,1025967102,Herts FullStop,174.46,23/06/2023
Delivery Units,Childrens Family Services,Books-CDs-Audio-Video,0021006650,WELL INFORMED LTD,"1,395.00",07/06/2023
Delivery Units,Childrens Family Services,Books-CDs-Audio-Video,0021006651,Colindale Local Ltd,60.50,07/06/2023
Delivery Units,Childrens Family Services,Books-CDs-Audio-Video,0021006652,DX NETWORK SERVICES LTD,10.53,07/06/2023
Delivery Units,Childrens Family Services,Books-CDs-Audio-Video,0021006653,Malhotra News Agent Ltd,254.90,07/06/2023
Delivery Units,Childrens Family Services,Books-CDs-Audio-Video,0021006654,DX NETWORK SERVICES LTD,10.32,07/06/2023
Delivery Units,Childrens Family Services,Books-CDs-Audio-Video,0021006655,Bolinda Uk Ltd,"3,000.00",07/06/2023
Delivery Units,Childrens Family Services,Books-CDs-Audio-Video,0021006667,ASKEWS & HOLTS LIBRARY SERVICES LTD,5.33,07/06/2023
Delivery Units,Childrens Family Services,Books-CDs-Audio-Video,0021006668,Singh Convenience Store Ltd,414.30,08/06/2023
Delivery Units,Childrens Family Services,Books-CDs-Audio-Video,0021006673,ASKEWS & HOLTS LIBRARY SERVICES LTD,"3,600.00",12/06/2023
Delivery Units,Childrens Family Services,Books-CDs-Audio-Video,0021006677,ASKEWS & HOLTS LIBRARY SERVICES LTD,43.34,16/06/2023
Delivery Units,Childrens Family Services,Books-CDs-Audio-Video,0021006678,ASKEWS & HOLTS LIBRARY SERVICES LTD,43.34,16/06/2023
Delivery Units,Childrens Family Services,Books-CDs-Audio-Video,0021006683,ASKEWS & HOLTS LIBRARY SERVICES LTD,43.34,16/06/2023
Delivery Units,Childrens Family Services,Books-CDs-Audio-Video,0021006685,ASKEWS & HOLTS LIBRARY SERVICES LTD,43.34,16/06/2023
Delivery Units,Childrens Family Services,Books-CDs-Audio-Video,0021006690,ASKEWS & HOLTS LIBRARY SERVICES LTD,6.03,16/06/2023
Delivery Units,Childrens Family Services,Books-CDs-Audio-Video,0021006691,ASKEWS & HOLTS LIBRARY SERVICES LTD,6.03,16/06/2023
Delivery Units,Childrens Family Services,Books-CDs-Audio-Video,0021006692,ASKEWS & HOLTS LIBRARY SERVICES LTD,6.03,16/06/2023
Delivery Units,Childrens Family Services,Books-CDs-Audio-Video,0021006697,ASKEWS & HOLTS LIBRARY SERVICES LTD,62.44,16/06/2023
Delivery Units,Childrens Family Services,Books-CDs-Audio-Video,0021006701,ASKEWS & HOLTS LIBRARY SERVICES LTD,62.44,16/06/2023
Delivery Units,Childrens Family Services,Books-CDs-Audio-Video,0021006707,ASKEWS & HOLTS LIBRARY SERVICES LTD,62.44,16/06/2023
Delivery Units,Childrens Family Services,Books-CDs-Audio-Video,0021006717,ASKEWS & HOLTS LIBRARY SERVICES LTD,62.44,16/06/2023
Delivery Units,Childrens Family Services,Books-CDs-Audio-Video,0021006720,ASKEWS & HOLTS LIBRARY SERVICES LTD,62.44,16/06/2023
Delivery Units,Childrens Family Services,Books-CDs-Audio-Video,0021006725,DX NETWORK SERVICES LTD,10.21,22/06/2023
Delivery Units,Childrens Family Services,Books-CDs-Audio-Video,0021006726,Malhotra News Agent Ltd,263.10,22/06/2023
Delivery Units,Childrens Family Services,Books-CDs-Audio-Video,0021006729,Mill Hill Newsagents Ltd,134.20,22/06/2023
Delivery Units,Childrens Family Services,Books-CDs-Audio-Video,0021006744,ASKEWS & HOLTS LIBRARY SERVICES LTD,7.17,26/06/2023
Delivery Units,Childrens Family Services,Cleaning and domestic material,1025967002,Herts FullStop,119.25,26/06/2023
Delivery Units,Childrens Family Services,Cleaning and domestic material,1025861301,Norse Commercial Services Ltd,"2,338.11",19/06/2023
Delivery Units,Childrens Family Services,Cleaning and domestic material,1025861501,Norse Commercial Services Ltd,"2,648.54",19/06/2023
Delivery Units,Childrens Family Services,Other Services,1025862401,Norse Commercial Services Ltd,34.83,19/06/2023
Delivery Units,Childrens Family Services,Cleaning and domestic material,1024729503,Herts FullStop,44.73,27/06/2023
Delivery Units,Childrens Family Services,Electricity,1025507801,Enron Estates Ltd,"2,500.00",08/06/2023
Delivery Units,Childrens Family Services,Other Services,1025858701,Norse Commercial Services Ltd,67.33,19/06/2023
Delivery Units,Childrens Family Services,Other Services,1026007001,Norse Commercial Services Ltd,-45.00,23/06/2023
Delivery Units,Childrens Family Services,Other Services,1025856801,Norse Commercial Services Ltd,17.00,19/06/2023
Delivery Units,Childrens Family Services,Cleaning and domestic material,1025861001,Norse Commercial Services Ltd,528.42,19/06/2023
Delivery Units,Childrens Family Services,Cleaning and domestic material,1025966601,Herts FullStop,85.75,22/06/2023
Delivery Units,Childrens Family Services,Other Services,1025860501,Norse Commercial Services Ltd,29.58,19/06/2023
Delivery Units,Childrens Family Services,Cleaning and domestic material,1025861601,Norse Commercial Services Ltd,"1,165.84",19/06/2023
Delivery Units,Childrens Family Services,Other Services,1026005301,Norse Commercial Services Ltd,-18.93,23/06/2023
Delivery Units,Childrens Family Services,Other Services,1026007301,Norse Commercial Services Ltd,-9.46,23/06/2023
Delivery Units,Childrens Family Services,Cleaning and domestic material,1026104701,Herts FullStop,64.30,27/06/2023
Delivery Units,Childrens Family Services,Other Services,1025858001,Norse Commercial Services Ltd,17.00,19/06/2023
Delivery Units,Childrens Family Services,Cleaning and domestic material,1025859001,Norse Commercial Services Ltd,527.87,19/06/2023
Delivery Units,Childrens Family Services,Other Services,1025856101,Norse Commercial Services Ltd,30.42,19/06/2023
Delivery Units,Childrens Family Services,Cleaning and domestic material,1025858401,Norse Commercial Services Ltd,705.28,19/06/2023
Delivery Units,Childrens Family Services,Other Services,1025856001,Norse Commercial Services Ltd,21.25,19/06/2023
Delivery Units,Childrens Family Services,Cleaning and domestic material,1025857601,Norse Commercial Services Ltd,528.42,19/06/2023
Delivery Units,Childrens Family Services,Other Services,1025599201,Norse Commercial Services Ltd,25.92,12/06/2023
Delivery Units,Childrens Family Services,Cleaning and domestic material,1025856201,Norse Commercial Services Ltd,703.90,19/06/2023
Delivery Units,Childrens Family Services,Gas,1025448502,KENT COUNTY COUNCIL (KCS),447.17,07/06/2023
Delivery Units,Childrens Family Services,Electricity,1026109101,KENT COUNTY COUNCIL (KCS),"1,413.54",26/06/2023
Delivery Units,Childrens Family Services,Books-CDs-Audio-Video,1025664401,ASKEWS & HOLTS LIBRARY SERVICES LTD,454.17,13/06/2023
Delivery Units,Childrens Family Services,Books-CDs-Audio-Video,1025753101,ASKEWS & HOLTS LIBRARY SERVICES LTD,361.56,15/06/2023
Delivery Units,Childrens Family Services,Books-CDs-Audio-Video,1025756101,ASKEWS & HOLTS LIBRARY SERVICES LTD,"1,151.18",15/06/2023
Delivery Units,Strategy and Resources,Advertising,1025340102,GOOD IMPRESSIONS (LONDON) LIMITED,720.00,15/06/2023
Delivery Units,Strategy and Resources,Advertising,1025345102,GOOD IMPRESSIONS (LONDON) LIMITED,210.00,15/06/2023
Delivery Units,Strategy and Resources,Advertising,1025346502,GOOD IMPRESSIONS (LONDON) LIMITED,180.00,15/06/2023
Delivery Units,Assurance,Postage,1025596901,ROYAL MAIL GROUP LIMITED,98.02,12/06/2023
Delivery Units,Assurance,Postage,1025597201,ROYAL MAIL GROUP LIMITED,3.28,12/06/2023
Delivery Units,Assurance,Postage,1025597401,ROYAL MAIL GROUP LIMITED,92.80,12/06/2023
Delivery Units,Assurance,Postage,1026007401,ROYAL MAIL GROUP LIMITED,71.92,22/06/2023
Delivery Units,Customer and Place,Training,1026009702,LOCAL REGISTRATION SERVICES ASSOCIA,400.00,29/06/2023
Delivery Units,Assurance,Rents,1009666901,Edgware United Synagogue,"1,901.00",21/06/2023
Delivery Units,Assurance,Training,1026274901,Association of Democratic Services Offic,125.00,29/06/2023
Delivery Units,Assurance,Other Indirect Employee Expens,1026350501,CHARTWELLS,"1,998.90",30/06/2023
Delivery Units,Assurance,Equipment and Materials Purcha,1024538803,THOMAS FATTORINI LTD,251.41,09/06/2023
Delivery Units,Assurance,Training,1025389101,CIVICA UK LIMITED,"1,160.00",06/06/2023
Delivery Units,Childrens Family Services,Professional Services,0070189655,OSBORNES SOLICITORS,720.00,27/06/2023
Delivery Units,Childrens Family Services,Legal and Court Fees,0070189129,Kidatu Ltd,137.35,16/06/2023
Delivery Units,Customer and Place,Equipment and Materials Purcha,1025920902,STORM ENVIRONMENTAL LTD,"2,580.00",22/06/2023
Delivery Units,Customer and Place,Equipment and Materials Purcha,1026279902,SSI SCHAEFER LTD,"6,885.00",30/06/2023
Delivery Units,Customer and Place,Equipment and Materials Purcha,1025099401,SMI INT Group Ltd,-450.00,09/06/2023
Delivery Units,Customer and Place,Training,1016140601,The National Logistics Academy Ltd,-860.00,20/06/2023
Delivery Units,Customer and Place,Training,1016893002,The National Logistics Academy Ltd,-230.00,20/06/2023
Delivery Units,Customer and Place,Training,1016893502,The National Logistics Academy Ltd,-230.00,20/06/2023
Delivery Units,Customer and Place,Clothing - Protective Clothing,1023986403,SMI INT Group Ltd,135.00,13/06/2023
Delivery Units,Customer and Place,Clothing - Protective Clothing,1023988003,SMI INT Group Ltd,"1,650.00",09/06/2023
Delivery Units,Customer and Place,Training,1025394002,SKILLS TRAINING CENTRE LTD,"1,798.00",07/06/2023
Delivery Units,Customer and Place,Training,1025395902,SKILLS TRAINING CENTRE LTD,"1,630.00",07/06/2023
Delivery Units,Customer and Place,Clothing - Protective Clothing,1025532101,SMI INT Group Ltd,-623.70,09/06/2023
Delivery Units,Customer and Place,Clothing - Protective Clothing,1025552201,SMI INT Group Ltd,17.98,09/06/2023
Delivery Units,Customer and Place,Clothing - Protective Clothing,1025582301,SMI INT Group Ltd,-51.03,13/06/2023
Delivery Units,Customer and Place,Clothing - Protective Clothing,1025755001,SMI INT Group Ltd,71.92,15/06/2023
Delivery Units,Customer and Place,Clothing - Protective Clothing,1025914901,SMI INT Group Ltd,414.00,20/06/2023
Delivery Units,Customer and Place,CSG Services Contract Payment,1026007102,Agile Applications Ltd,"8,975.00",23/06/2023
Delivery Units,Customer and Place,Clothing - Protective Clothing,1026222101,SMI INT Group Ltd,395.00,28/06/2023
Delivery Units,Customer and Place,Clothing - Protective Clothing,1026222402,SMI INT Group Ltd,69.35,28/06/2023
Delivery Units,Customer and Place,Clothing - Protective Clothing,1026226201,SMI INT Group Ltd,350.00,28/06/2023
Delivery Units,Customer and Place,Equipment and Materials Purcha,1026226801,SMI INT Group Ltd,355.68,28/06/2023
Delivery Units,Customer and Place,Training,1026282701,SKILLS TRAINING CENTRE LTD,850.00,29/06/2023
Delivery Units,Customer and Place,Training,1026283301,SKILLS TRAINING CENTRE LTD,350.00,29/06/2023
Delivery Units,Customer and Place,Equipment and Materials Purcha,1026046302,Women's Environmental Network (WEN),"4,050.00",23/06/2023
Delivery Units,Adults and Health,Ttl IT & Comms,1025241701,Access UK Ltd,"9,067.50",02/06/2023
Delivery Units,Adults and Health,Other Services,0080066853,Bindmans LLP,"29,500.00",07/06/2023
Delivery Units,Adults and Health,Professional Services,1025964502,Favore Didio Ltd,"1,920.00",21/06/2023
Delivery Units,Adults and Health,Professional Services,1025965001,Eduhez Ltd,"1,050.00",21/06/2023
Delivery Units,Adults and Health,Professional Services,1026005901,Goldsmith Consulting & Mediation Ltd,480.00,22/06/2023
Delivery Units,Adults and Health,Health authorities - Third Par,1024862802,Central & North West London NHS FT,"489,438.63",06/06/2023
Delivery Units,Adults and Health,Health authorities - Third Par,1025758002,Central & North West London NHS FT,"11,500.00",27/06/2023
Delivery Units,Adults and Health,Health authorities - Third Par,1025758102,Central & North West London NHS FT,"11,500.00",27/06/2023
Delivery Units,Adults and Health,Health authorities - Third Par,1025758202,Central & North West London NHS FT,"1,325.10",15/06/2023
Delivery Units,Adults and Health,Health authorities - Third Par,1025759002,Central & North West London NHS FT,"1,956.22",15/06/2023
Delivery Units,Adults and Health,Health authorities - Third Par,1026277602,Central & North West London NHS FT,"489,438.75",29/06/2023
Delivery Units,Adults and Health,Health authorities - Third Par,1026348102,Epsom & St Helier NHS Trust,30.56,30/06/2023
Delivery Units,Adults and Health,Health authorities - Third Par,1026349102,Epsom & St Helier NHS Trust,30.56,30/06/2023
Delivery Units,Adults and Health,Health authorities - Third Par,1026349402,Epsom & St Helier NHS Trust,30.56,30/06/2023
Delivery Units,Adults and Health,Health authorities - Third Par,1026349902,Epsom & St Helier NHS Trust,30.56,30/06/2023
Delivery Units,Adults and Health,Health authorities - Third Par,1024242103,CENTRAL LONDONCOMMUNITY HEALTHCARE,"1,955.00",27/06/2023
Delivery Units,Adults and Health,Health authorities - Third Par,1025342502,Chelsea & Westminster Hospital,"39,866.70",05/06/2023
Delivery Units,Adults and Health,Health authorities - Third Par,1025343302,London North West Healthcare NHS Trust,"6,176.02",05/06/2023
Delivery Units,Adults and Health,Health authorities - Third Par,1025344602,Chelsea & Westminster Hospital,"39,866.70",05/06/2023
Delivery Units,Adults and Health,Health authorities - Third Par,1025347402,Chelsea & Westminster Hospital,"7,876.22",05/06/2023
Delivery Units,Adults and Health,Health authorities - Third Par,1025451002,Barts Health NHS Trust,"2,691.00",07/06/2023
Delivery Units,Adults and Health,Health authorities - Third Par,1025452002,Homerton University Hospital,989.64,09/06/2023
Delivery Units,Adults and Health,Health authorities - Third Par,1025709002,Barts Health NHS Trust,"2,691.00",14/06/2023
Delivery Units,Adults and Health,Health authorities - Third Par,1025751802,Barts Health NHS Trust,"2,691.00",15/06/2023
Delivery Units,Adults and Health,Health authorities - Third Par,1025752002,Cambridgeshire Community Services,272.00,22/06/2023
Delivery Units,Adults and Health,Health authorities - Third Par,1025752702,Barts Health NHS Trust,"2,691.00",15/06/2023
Delivery Units,Adults and Health,Health authorities - Third Par,1025752902,Buckinghamshire Healthcare NHS Trust,234.00,15/06/2023
Delivery Units,Adults and Health,Health authorities - Third Par,1025753402,Barts Health NHS Trust,"2,691.00",15/06/2023
Delivery Units,Adults and Health,Health authorities - Third Par,1025915902,Chelsea & Westminster Hospital,225.61,20/06/2023
Delivery Units,Adults and Health,Health authorities - Third Par,1026047902,Barts Health NHS Trust,"2,691.00",23/06/2023
Delivery Units,Adults and Health,Health authorities - Third Par,1026232402,Kingston Hospital NHS Foundation Trust,598.33,28/06/2023
Delivery Units,Adults and Health,Health authorities - Third Par,1026233502,Kingston Hospital NHS Foundation Trust,376.11,28/06/2023
Delivery Units,Adults and Health,Health authorities - Third Par,1026234702,Guy's and St Thomas' NHS FT,"3,913.73",29/06/2023
Delivery Units,Adults and Health,Health authorities - Third Par,1026284602,Chelsea & Westminster Hospital,381.10,29/06/2023
Delivery Units,Adults and Health,Other Establishments - Third P,1025552801,Humankind Charity,"8,825.00",09/06/2023
Delivery Units,Adults and Health,Other Services,1024428303,GOOD IMPRESSIONS (LONDON) LIMITED,480.00,06/06/2023
Delivery Units,Adults and Health,Other Services,1025338902,MHFA England,140.00,05/06/2023
Delivery Units,Adults and Health,Other Services,1025339502,MHFA England,140.00,05/06/2023
Delivery Units,Adults and Health,Translation Exp / Interpret,1025322901,Thebigword Group Ltd,28.35,06/06/2023
Delivery Units,Adults and Health,Translation Exp / Interpret,1025323001,Thebigword Group Ltd,28.35,06/06/2023
Delivery Units,Adults and Health,Professional Services,1025336401,Recruitment Team Nine Limited,590.00,05/06/2023
Delivery Units,Adults and Health,Professional Services,1025920002,Aisa Medical Ltd,"2,638.32",20/06/2023
Delivery Units,Adults and Health,Professional Services,1025966301,Kabe Limited,"1,586.25",21/06/2023
Delivery Units,Adults and Health,Other Services,1026002402,KMCA Consultancy Services Ltd,"3,300.00",22/06/2023
Delivery Units,Adults and Health,Professional Services,1026105802,Recruitment Team Nine Limited,885.00,26/06/2023
Delivery Units,Adults and Health,Professional Services,1026198901,CMG Consultants Limited,"2,800.00",27/06/2023
Delivery Units,Adults and Health,Other Services,1025322303,Thebigword Group Ltd,134.16,09/06/2023
Delivery Units,Adults and Health,Other Services,1025339101,Fire Plus Security,952.50,05/06/2023
Delivery Units,Adults and Health,Other Services,1025752102,Thebigword Group Ltd,207.79,19/06/2023
Delivery Units,Adults and Health,Other Services,1025752201,Thebigword Group Ltd,28.35,15/06/2023
Delivery Units,Adults and Health,Other Services,1025753801,Thebigword Group Ltd,191.48,15/06/2023
Delivery Units,Adults and Health,Other Services,1025755401,Thebigword Group Ltd,26.46,15/06/2023
Delivery Units,Adults and Health,Other Transfer Payments to Soc,1026005701,Steve Chamberlain Social Care Ltd,300.00,22/06/2023
Delivery Units,Adults and Health,Transport Hire Charges,1025299202,MED-PTS Ambulance Services Ltd,300.00,02/06/2023
Delivery Units,Adults and Health,Ttl IT & Comms,1026009101,MEDEQUIP ASSISTIVE TECHNOLOGY,"16,170.00",22/06/2023
Delivery Units,Adults and Health,Other Agencies - Third Party P,0090600841,ASPEN VILLAGES LTD,"2,780.66",21/06/2023
Delivery Units,Adults and Health,Other Agencies - Third Party P,0090601326,AUTUMN GARDENS,"4,800.00",23/06/2023
Delivery Units,Adults and Health,Other Agencies - Third Party P,0090601335,AUTUMN GARDENS,"19,285.71",23/06/2023
Delivery Units,Adults and Health,Other Agencies - Third Party P,0090601337,AUTUMN GARDENS,"4,800.00",23/06/2023
Delivery Units,Adults and Health,Other Agencies - Third Party P,0090601338,AUTUMN GARDENS,"4,800.00",23/06/2023
Delivery Units,Adults and Health,Other Agencies - Third Party P,0090601340,AUTUMN GARDENS,"3,656.00",23/06/2023
Delivery Units,Adults and Health,Other Agencies - Third Party P,0090601923,CARLTON COURT (TLC GROUP),"6,800.00",27/06/2023
Delivery Units,Adults and Health,Other Agencies - Third Party P,0090601984,CARLTON COURT (TLC GROUP),"4,363.24",27/06/2023
Delivery Units,Adults and Health,Other Agencies - Third Party P,0090601996,CARLTON COURT (TLC GROUP),"7,000.00",27/06/2023
Delivery Units,Adults and Health,Other Agencies - Third Party P,0090601997,CARLTON COURT (TLC GROUP),"7,000.00",27/06/2023
Delivery Units,Adults and Health,Other Agencies - Third Party P,0090602020,CARLTON COURT (TLC GROUP),"2,357.14",27/06/2023
Delivery Units,Adults and Health,Other Agencies - Third Party P,0090602189,CARLTON COURT (TLC GROUP),"4,363.24",27/06/2023
Delivery Units,Adults and Health,Other Agencies - Third Party P,0090595316,AGUDAS ISRAEL HOUSING ASSCTN LTD,"2,736.86",08/06/2023
Delivery Units,Adults and Health,Other Agencies - Third Party P,0090593069,CEDARS NURSING HOME,"4,071.43",05/06/2023
Delivery Units,Adults and Health,Other Agencies - Third Party P,0090593070,CEDARS NURSING HOME,"5,142.86",05/06/2023
Delivery Units,Adults and Health,Other Agencies - Third Party P,0090593075,CEDARS NURSING HOME,"3,792.86",05/06/2023
Delivery Units,Adults and Health,Other Agencies - Third Party P,0090593076,CEDARS NURSING HOME,"5,142.86",05/06/2023
Delivery Units,Adults and Health,Other Agencies - Third Party P,0090593077,CEDARS NURSING HOME,"5,142.86",05/06/2023
Delivery Units,Adults and Health,Other Agencies - Third Party P,0090593078,CEDARS NURSING HOME,"5,142.86",05/06/2023
Delivery Units,Adults and Health,Other Agencies - Third Party P,0090593079,CEDARS NURSING HOME,"4,285.71",05/06/2023
Delivery Units,Adults and Health,Other Agencies - Third Party P,0090593081,CEDARS NURSING HOME,"16,528.57",05/06/2023
Delivery Units,Adults and Health,Other Agencies - Third Party P,0090593193,CEDARS NURSING HOME,"5,757.14",05/06/2023
Delivery Units,Adults and Health,Other Agencies - Third Party P,0090593194,CEDARS NURSING HOME,"4,207.14",05/06/2023
Delivery Units,Adults and Health,Other Agencies - Third Party P,0090593195,CEDARS NURSING HOME,"5,314.29",05/06/2023
Delivery Units,Adults and Health,Other Agencies - Third Party P,0090593199,CEDARS NURSING HOME,"3,919.29",05/06/2023
Delivery Units,Adults and Health,Other Agencies - Third Party P,0090593200,CEDARS NURSING HOME,"5,314.29",05/06/2023
Delivery Units,Adults and Health,Other Agencies - Third Party P,0090593201,CEDARS NURSING HOME,"5,314.29",05/06/2023
Delivery Units,Adults and Health,Other Agencies - Third Party P,0090593202,CEDARS NURSING HOME,"4,428.57",05/06/2023
Delivery Units,Adults and Health,Other Agencies - Third Party P,0090593212,The Orders of St John Care Trust,"3,760.00",05/06/2023
Delivery Units,Adults and Health,Other Agencies - Third Party P,0090593213,The Orders of St John Care Trust,"4,162.86",05/06/2023
Delivery Units,Adults and Health,Other Agencies - Third Party P,0090593555,GCH (HATFIELD) Limited,"2,324.76",05/06/2023
Delivery Units,Adults and Health,Other Agencies - Third Party P,0090593556,GCH (HATFIELD) Limited,"2,324.76",05/06/2023
Delivery Units,Adults and Health,Other Agencies - Third Party P,0090594763,The Orders of St John Care Trust,"4,388.57",06/06/2023
Delivery Units,Adults and Health,Other Agencies - Third Party P,0090595307,The Orders of St John Care Trust,"4,534.86",08/06/2023
Delivery Units,Adults and Health,Other Agencies - Third Party P,0090595314,Stamford Nursing Centre,"4,317.86",08/06/2023
Delivery Units,Adults and Health,Other Agencies - Third Party P,0090595578,WESTMINSTER HEALTH CARE LTD,"4,864.08",12/06/2023
Delivery Units,Adults and Health,Other Agencies - Third Party P,0090596551,GCH (HATFIELD) Limited,"2,324.76",12/06/2023
Delivery Units,Adults and Health,Other Agencies - Third Party P,0090596555,BIRCHWOOD GRANGE CARE HOME,"9,350.00",12/06/2023
Delivery Units,Adults and Health,Other Agencies - Third Party P,0090599243,NIGHTINGALE HOUSE,"4,218.21",20/06/2023
Delivery Units,Adults and Health,Other Agencies - Third Party P,0090601279,GCH (HATFIELD) Limited,"2,324.76",22/06/2023
Delivery Units,Adults and Health,Other Agencies - Third Party P,0090601697,LIFESTYLE CARE PLC,"2,882.36",27/06/2023
Delivery Units,Adults and Health,Other Agencies - Third Party P,0090601700,FOUR SEASONS HEALTH CARE,"2,831.68",27/06/2023
Delivery Units,Adults and Health,Other Agencies - Third Party P,0090601702,SONESTA NURSING HOME LTD.,"2,716.68",27/06/2023
Delivery Units,Adults and Health,Other Agencies - Third Party P,0090601704,SAGE NURSING HOME,"4,400.00",27/06/2023
Delivery Units,Adults and Health,Other Agencies - Third Party P,0090601706,ASHTON LODGE CARE CENTRE,"4,200.00",27/06/2023
Delivery Units,Adults and Health,Other Agencies - Third Party P,0090601708,ELEANOR PALMER TRUST NO 2 A/C.,"5,191.29",27/06/2023
Delivery Units,Adults and Health,Other Agencies - Third Party P,0090601710,ABBEY RAVENSCROFT PARK NURSING HOME,"4,415.43",27/06/2023
Delivery Units,Adults and Health,Other Agencies - Third Party P,0090601714,JEWISH CARE,"8,682.28",27/06/2023
Delivery Units,Adults and Health,Other Agencies - Third Party P,0090601717,ASHTON LODGE CARE CENTRE,"3,772.52",27/06/2023
Delivery Units,Adults and Health,Other Agencies - Third Party P,0090601721,BUPA NURSING HOMES LTD - ARKLEY,"5,224.24",27/06/2023
Delivery Units,Adults and Health,Other Agencies - Third Party P,0090601722,APPLE TREE COURT CARE HOME,-247.15,27/06/2023
Delivery Units,Adults and Health,Other Agencies - Third Party P,0090601723,APPLE TREE COURT CARE HOME,0.04,27/06/2023
Delivery Units,Adults and Health,Other Agencies - Third Party P,0090601724,FOUR SEASONS HEALTH CARE,"-3,160.16",27/06/2023
Delivery Units,Adults and Health,Other Agencies - Third Party P,0090601725,APPLE TREE COURT CARE HOME,"3,385.00",27/06/2023
Delivery Units,Adults and Health,Other Agencies - Third Party P,0090601726,BUPA CARE HOMES,"2,906.64",27/06/2023
Delivery Units,Adults and Health,Other Agencies - Third Party P,0090601731,SONESTA NURSING HOME LTD.,"2,716.68",27/06/2023
Delivery Units,Adults and Health,Other Agencies - Third Party P,0090601732,JEWISH CARE,"2,882.48",27/06/2023
Delivery Units,Adults and Health,Other Agencies - Third Party P,0090601736,APPLE TREE COURT CARE HOME,"3,865.80",27/06/2023
Delivery Units,Adults and Health,Other Agencies - Third Party P,0090601742,FOUR SEASONS HEALTH CARE,"2,831.68",27/06/2023
Delivery Units,Adults and Health,Other Agencies - Third Party P,0090601743,LIFESTYLE CARE PLC,"2,882.36",27/06/2023
Delivery Units,Adults and Health,Other Agencies - Third Party P,0090601744,JEWISH CARE,"2,882.48",27/06/2023
Delivery Units,Adults and Health,Other Agencies - Third Party P,0090601745,APPLE TREE COURT CARE HOME,"4,800.00",27/06/2023
Delivery Units,Adults and Health,Other Agencies - Third Party P,0090601747,LIFESTYLE CARE PLC,"2,882.36",27/06/2023
Delivery Units,Adults and Health,Other Agencies - Third Party P,0090601748,ASHTON LODGE CARE CENTRE,"4,168.00",27/06/2023
Delivery Units,Adults and Health,Other Agencies - Third Party P,0090601749,ASHTON LODGE CARE CENTRE,"4,764.00",27/06/2023
Delivery Units,Adults and Health,Other Agencies - Third Party P,0090601751,APPLE TREE COURT CARE HOME,"4,511.54",27/06/2023
Delivery Units,Adults and Health,Other Agencies - Third Party P,0090601775,ASHTON LODGE CARE CENTRE,"3,768.00",27/06/2023
Delivery Units,Adults and Health,Other Agencies - Third Party P,0090601778,ASHTON LODGE CARE CENTRE,"4,200.00",27/06/2023
Delivery Units,Adults and Health,Other Agencies - Third Party P,0090601780,ABBEY RAVENSCROFT PARK NURSING HOME,"3,752.00",27/06/2023
Delivery Units,Adults and Health,Other Agencies - Third Party P,0090601781,JEWISH CARE,"2,882.48",27/06/2023
Delivery Units,Adults and Health,Other Agencies - Third Party P,0090601783,APPLE TREE COURT CARE HOME,"4,463.43",27/06/2023
Delivery Units,Adults and Health,Other Agencies - Third Party P,0090601785,BUPA CARE HOMES,"2,395.98",27/06/2023
Delivery Units,Adults and Health,Other Agencies - Third Party P,0090601786,LIFESTYLE CARE PLC,"15,360.16",27/06/2023
Delivery Units,Adults and Health,Other Agencies - Third Party P,0090601788,FOUR SEASONS HEALTH CARE,"2,831.68",27/06/2023
Delivery Units,Adults and Health,Other Agencies - Third Party P,0090601789,FOUR SEASONS HEALTH CARE,"2,831.68",27/06/2023
Delivery Units,Adults and Health,Other Agencies - Third Party P,0090601794,LIFESTYLE CARE PLC,"2,882.36",27/06/2023
Delivery Units,Adults and Health,Other Agencies - Third Party P,0090601797,SONESTA NURSING HOME LTD.,"2,716.68",27/06/2023
Delivery Units,Adults and Health,Other Agencies - Third Party P,0090601805,ABBEY RAVENSCROFT PARK NURSING HOME,"-1,678.28",27/06/2023
Delivery Units,Adults and Health,Other Agencies - Third Party P,0090601819,JEWISH CARE,"2,882.48",27/06/2023
Delivery Units,Adults and Health,Other Agencies - Third Party P,0090601828,SONESTA NURSING HOME LTD.,"-20,397.13",27/06/2023
Delivery Units,Adults and Health,Other Agencies - Third Party P,0090601831,JEWISH CARE,"2,882.48",27/06/2023
Delivery Units,Adults and Health,Other Agencies - Third Party P,0090601832,SONESTA NURSING HOME LTD.,"2,716.68",27/06/2023
Delivery Units,Adults and Health,Other Agencies - Third Party P,0090601835,APPLE TREE COURT CARE HOME,"3,385.00",27/06/2023
Delivery Units,Adults and Health,Other Agencies - Third Party P,0090601845,BUPA NURSING HOMES LTD - ARKLEY,"4,046.64",27/06/2023
Delivery Units,Adults and Health,Other Agencies - Third Party P,0090601848,JEWISH CARE,"2,882.48",27/06/2023
Delivery Units,Adults and Health,Other Agencies - Third Party P,0090601849,JEWISH CARE,"2,945.48",27/06/2023
Delivery Units,Adults and Health,Other Agencies - Third Party P,0090601854,FOUR SEASONS HEALTH CARE,"2,831.68",27/06/2023
Delivery Units,Adults and Health,Other Agencies - Third Party P,0090601856,Aarandale Manor Care Home,"6,400.00",27/06/2023
Delivery Units,Adults and Health,Other Agencies - Third Party P,0090601857,APPLE TREE COURT CARE HOME,"3,385.00",27/06/2023
Delivery Units,Adults and Health,Other Agencies - Third Party P,0090601862,LIFESTYLE CARE PLC,"2,882.36",27/06/2023
Delivery Units,Adults and Health,Other Agencies - Third Party P,0090601863,ABBEY RAVENSCROFT PARK NURSING HOME,"3,752.00",27/06/2023
Delivery Units,Adults and Health,Other Agencies - Third Party P,0090601867,ELEANOR PALMER TRUST NO 2 A/C.,"6,736.58",27/06/2023
Delivery Units,Adults and Health,Other Agencies - Third Party P,0090601868,LIFESTYLE CARE PLC,"2,882.36",27/06/2023
Delivery Units,Adults and Health,Other Agencies - Third Party P,0090601869,APPLE TREE COURT CARE HOME,"-1,934.29",27/06/2023
Delivery Units,Adults and Health,Other Agencies - Third Party P,0090601870,APPLE TREE COURT CARE HOME,-276.13,27/06/2023
Delivery Units,Adults and Health,Other Agencies - Third Party P,0090601871,ABBEY RAVENSCROFT PARK NURSING HOME,"4,415.43",27/06/2023
Delivery Units,Adults and Health,Other Agencies - Third Party P,0090601872,LIFESTYLE CARE PLC,"2,882.36",27/06/2023
Delivery Units,Adults and Health,Other Agencies - Third Party P,0090601876,ASHTON LODGE CARE CENTRE,"4,201.60",27/06/2023
Delivery Units,Adults and Health,Other Agencies - Third Party P,0090601877,ABBEY RAVENSCROFT PARK NURSING HOME,"4,415.43",27/06/2023
Delivery Units,Adults and Health,Other Agencies - Third Party P,0090601878,APPLE TREE COURT CARE HOME,"4,463.43",27/06/2023
Delivery Units,Adults and Health,Other Agencies - Third Party P,0090601884,JEWISH CARE,"2,882.48",27/06/2023
Delivery Units,Adults and Health,Other Agencies - Third Party P,0090601886,Aarandale Manor Care Home,"4,511.54",27/06/2023
Delivery Units,Adults and Health,Other Agencies - Third Party P,0090601890,ASHTON LODGE CARE CENTRE,"3,768.00",27/06/2023
Delivery Units,Adults and Health,Other Agencies - Third Party P,0090601895,Lancam Care Services Limited,"4,116.00",27/06/2023
Delivery Units,Adults and Health,Other Agencies - Third Party P,0090601897,SAGE NURSING HOME,"4,952.00",27/06/2023
Delivery Units,Adults and Health,Other Agencies - Third Party P,0090601900,ELEANOR PALMER TRUST NO 2 A/C.,"5,294.86",27/06/2023
Delivery Units,Adults and Health,Other Agencies - Third Party P,0090601902,JEWISH CARE,"2,945.48",27/06/2023
Delivery Units,Adults and Health,Other Agencies - Third Party P,0090601909,LIFESTYLE CARE PLC,"2,882.36",27/06/2023
Delivery Units,Adults and Health,Other Agencies - Third Party P,0090601910,SONESTA NURSING HOME LTD.,"2,716.68",27/06/2023
Delivery Units,Adults and Health,Other Agencies - Third Party P,0090601911,ASHTON LODGE CARE CENTRE,"3,866.00",27/06/2023
Delivery Units,Adults and Health,Other Agencies - Third Party P,0090601912,ABBEY RAVENSCROFT PARK NURSING HOME,"4,200.00",27/06/2023
Delivery Units,Adults and Health,Other Agencies - Third Party P,0090601914,FOUR SEASONS HEALTH CARE,"-2,224.53",27/06/2023
Delivery Units,Adults and Health,Other Agencies - Third Party P,0090601916,FOUR SEASONS HEALTH CARE,"2,831.68",27/06/2023
Delivery Units,Adults and Health,Other Agencies - Third Party P,0090601917,ABBEY RAVENSCROFT PARK NURSING HOME,"4,800.00",27/06/2023
Delivery Units,Adults and Health,Other Agencies - Third Party P,0090601918,ELEANOR PALMER TRUST NO 2 A/C.,"5,195.43",27/06/2023
Delivery Units,Adults and Health,Other Agencies - Third Party P,0090601925,ELM PARK LODGE,"-3,059.84",27/06/2023
Delivery Units,Adults and Health,Other Agencies - Third Party P,0090601926,New Century Care (Finchley),"5,000.00",27/06/2023
Delivery Units,Adults and Health,Other Agencies - Third Party P,0090601932,JEWISH CARE,"2,945.48",27/06/2023
Delivery Units,Adults and Health,Other Agencies - Third Party P,0090601936,BUPA CARE HOMES,"2,906.64",27/06/2023
Delivery Units,Adults and Health,Other Agencies - Third Party P,0090601939,SONESTA NURSING HOME LTD.,"2,716.68",27/06/2023
Delivery Units,Adults and Health,Other Agencies - Third Party P,0090601940,APPLE TREE COURT CARE HOME,"4,498.60",27/06/2023
Delivery Units,Adults and Health,Other Agencies - Third Party P,0090601941,Aarandale Manor Care Home,"4,511.54",27/06/2023
Delivery Units,Adults and Health,Other Agencies - Third Party P,0090601942,ABBEY RAVENSCROFT PARK NURSING HOME,"4,552.00",27/06/2023
Delivery Units,Adults and Health,Other Agencies - Third Party P,0090601945,JEWISH CARE,"2,882.48",27/06/2023
Delivery Units,Adults and Health,Other Agencies - Third Party P,0090601950,BUPA CARE HOMES,"2,906.64",27/06/2023
Delivery Units,Adults and Health,Other Agencies - Third Party P,0090601951,APPLE TREE COURT CARE HOME,"4,400.00",27/06/2023
Delivery Units,Adults and Health,Other Agencies - Third Party P,0090601952,BUPA CARE HOMES,"2,906.64",27/06/2023
Delivery Units,Adults and Health,Other Agencies - Third Party P,0090601953,BUPA NURSING HOMES LTD - ARKLEY,"4,463.43",27/06/2023
Delivery Units,Adults and Health,Other Agencies - Third Party P,0090601954,ASHTON LODGE CARE CENTRE,"4,249.60",27/06/2023
Delivery Units,Adults and Health,Other Agencies - Third Party P,0090601961,SONESTA NURSING HOME LTD.,"2,716.68",27/06/2023
Delivery Units,Adults and Health,Other Agencies - Third Party P,0090601963,APPLE TREE COURT CARE HOME,"5,400.00",27/06/2023
Delivery Units,Adults and Health,Other Agencies - Third Party P,0090601964,New Century Care (Finchley),"4,800.00",27/06/2023
Delivery Units,Adults and Health,Other Agencies - Third Party P,0090601965,ASHTON LODGE CARE CENTRE,"4,200.00",27/06/2023
Delivery Units,Adults and Health,Other Agencies - Third Party P,0090601967,FOUR SEASONS HEALTH CARE,"4,131.43",27/06/2023
Delivery Units,Adults and Health,Other Agencies - Third Party P,0090601968,BUPA CARE HOMES,"4,000.00",27/06/2023
Delivery Units,Adults and Health,Other Agencies - Third Party P,0090601969,FOUR SEASONS HEALTH CARE,"2,831.68",27/06/2023
Delivery Units,Adults and Health,Other Agencies - Third Party P,0090601970,BUPA CARE HOMES,"2,906.64",27/06/2023
Delivery Units,Adults and Health,Other Agencies - Third Party P,0090601971,APPLE TREE COURT CARE HOME,"3,865.80",27/06/2023
Delivery Units,Adults and Health,Other Agencies - Third Party P,0090601974,ABBEY RAVENSCROFT PARK NURSING HOME,"4,614.29",27/06/2023
Delivery Units,Adults and Health,Other Agencies - Third Party P,0090601975,New Century Care (Finchley),"4,800.00",27/06/2023
Delivery Units,Adults and Health,Other Agencies - Third Party P,0090601976,ABBEY RAVENSCROFT PARK NURSING HOME,"5,310.22",27/06/2023
Delivery Units,Adults and Health,Other Agencies - Third Party P,0090601977,APPLE TREE COURT CARE HOME,"35,246.48",27/06/2023
Delivery Units,Adults and Health,Other Agencies - Third Party P,0090601978,LIFESTYLE CARE PLC,"3,792.59",27/06/2023
Delivery Units,Adults and Health,Other Agencies - Third Party P,0090601979,ABBEY RAVENSCROFT PARK NURSING HOME,"5,000.00",27/06/2023
Delivery Units,Adults and Health,Other Agencies - Third Party P,0090601980,ABBEY RAVENSCROFT PARK NURSING HOME,"12,857.14",27/06/2023
Delivery Units,Adults and Health,Other Agencies - Third Party P,0090601990,BUPA NURSING HOMES LTD - ARKLEY,"4,563.43",27/06/2023
Delivery Units,Adults and Health,Other Agencies - Third Party P,0090601991,New Century Care (Finchley),"9,704.00",27/06/2023
Delivery Units,Adults and Health,Other Agencies - Third Party P,0090601992,JEWISH CARE,"2,882.48",27/06/2023
Delivery Units,Adults and Health,Other Agencies - Third Party P,0090601993,JEWISH CARE,"2,946.68",27/06/2023
Delivery Units,Adults and Health,Other Agencies - Third Party P,0090601994,SONESTA NURSING HOME LTD.,"3,663.42",27/06/2023
Delivery Units,Adults and Health,Other Agencies - Third Party P,0090601995,FOUR SEASONS HEALTH CARE,"4,400.00",27/06/2023
Delivery Units,Adults and Health,Other Agencies - Third Party P,0090601998,LIFESTYLE CARE PLC,"5,521.16",27/06/2023
Delivery Units,Adults and Health,Other Agencies - Third Party P,0090602000,ABBEY RAVENSCROFT PARK NURSING HOME,"4,400.00",27/06/2023
Delivery Units,Adults and Health,Other Agencies - Third Party P,0090602003,ABBEY RAVENSCROFT PARK NURSING HOME,458.45,27/06/2023
Delivery Units,Adults and Health,Other Agencies - Third Party P,0090602004,APPLE TREE COURT CARE HOME,"2,600.00",27/06/2023
Delivery Units,Adults and Health,Other Agencies - Third Party P,0090602011,APPLE TREE COURT CARE HOME,"3,385.00",27/06/2023
Delivery Units,Adults and Health,Other Agencies - Third Party P,0090602014,BUPA CARE HOMES,"10,922.43",27/06/2023
Delivery Units,Adults and Health,Other Agencies - Third Party P,0090602018,Aarandale Manor Care Home,"4,511.54",27/06/2023
Delivery Units,Adults and Health,Other Agencies - Third Party P,0090602021,BUPA NURSING HOMES LTD - ARKLEY,"2,906.64",27/06/2023
Delivery Units,Adults and Health,Other Agencies - Third Party P,0090602025,SAGE NURSING HOME,"4,400.00",27/06/2023
Delivery Units,Adults and Health,Other Agencies - Third Party P,0090602031,LIFESTYLE CARE PLC,"-2,798.40",27/06/2023
Delivery Units,Adults and Health,Other Agencies - Third Party P,0090602036,New Century Care (Finchley),"4,800.00",27/06/2023
Delivery Units,Adults and Health,Other Agencies - Third Party P,0090602041,ABBEY RAVENSCROFT PARK NURSING HOME,"4,800.00",27/06/2023
Delivery Units,Adults and Health,Other Agencies - Third Party P,0090602045,JEWISH CARE,"2,946.68",27/06/2023
Delivery Units,Adults and Health,Other Agencies - Third Party P,0090602047,ELEANOR PALMER TRUST NO 2 A/C.,"5,195.43",27/06/2023
Delivery Units,Adults and Health,Other Agencies - Third Party P,0090602049,HENRY NIHILL HOUSE,"4,263.43",27/06/2023
Delivery Units,Adults and Health,Other Agencies - Third Party P,0090602050,SONESTA NURSING HOME LTD.,"3,663.42",27/06/2023
Delivery Units,Adults and Health,Other Agencies - Third Party P,0090602051,BUPA CARE HOMES,"-1,972.36",27/06/2023
Delivery Units,Adults and Health,Other Agencies - Third Party P,0090602052,HENRY NIHILL HOUSE,"4,263.43",27/06/2023
Delivery Units,Adults and Health,Other Agencies - Third Party P,0090602053,HENRY NIHILL HOUSE,"4,263.43",27/06/2023
Delivery Units,Adults and Health,Other Agencies - Third Party P,0090602054,BUPA CARE HOMES,"4,534.67",27/06/2023
Delivery Units,Adults and Health,Other Agencies - Third Party P,0090602061,Aarandale Manor Care Home,"5,200.00",27/06/2023
Delivery Units,Adults and Health,Other Agencies - Third Party P,0090602062,BUPA NURSING HOMES LTD - ARKLEY,"4,742.86",27/06/2023
Delivery Units,Adults and Health,Other Agencies - Third Party P,0090602064,ABBEY RAVENSCROFT PARK NURSING HOME,"8,914.29",27/06/2023
Delivery Units,Adults and Health,Other Agencies - Third Party P,0090602065,APPLE TREE COURT CARE HOME,"18,000.00",27/06/2023
Delivery Units,Adults and Health,Other Agencies - Third Party P,0090602067,ABBEY RAVENSCROFT PARK NURSING HOME,"8,400.00",27/06/2023
Delivery Units,Adults and Health,Other Agencies - Third Party P,0090602072,New Century Care (Finchley),"5,200.00",27/06/2023
Delivery Units,Adults and Health,Other Agencies - Third Party P,0090602073,SONESTA NURSING HOME LTD.,"21,263.64",27/06/2023
Delivery Units,Adults and Health,Other Agencies - Third Party P,0090602074,SONESTA NURSING HOME LTD.,"9,142.86",27/06/2023
Delivery Units,Adults and Health,Other Agencies - Third Party P,0090602085,APPLE TREE COURT CARE HOME,"3,156.51",27/06/2023
Delivery Units,Adults and Health,Other Agencies - Third Party P,0090602087,Aarandale Manor Care Home,354.86,27/06/2023
Delivery Units,Adults and Health,Other Agencies - Third Party P,0090602093,ELEANOR PALMER TRUST NO 2 A/C.,"4,814.29",27/06/2023
Delivery Units,Adults and Health,Other Agencies - Third Party P,0090602096,ASHTON LODGE CARE CENTRE,"3,790.76",27/06/2023
Delivery Units,Adults and Health,Other Agencies - Third Party P,0090602099,ELEANOR PALMER TRUST NO 2 A/C.,"5,191.29",27/06/2023
Delivery Units,Adults and Health,Other Agencies - Third Party P,0090602102,JEWISH CARE,"2,682.48",27/06/2023
Delivery Units,Adults and Health,Other Agencies - Third Party P,0090602106,APPLE TREE COURT CARE HOME,"4,427.43",27/06/2023
Delivery Units,Adults and Health,Other Agencies - Third Party P,0090602110,APPLE TREE COURT CARE HOME,"3,385.00",27/06/2023
Delivery Units,Adults and Health,Other Agencies - Third Party P,0090602111,APPLE TREE COURT CARE HOME,"3,385.00",27/06/2023
Delivery Units,Adults and Health,Other Agencies - Third Party P,0090602121,LIFESTYLE CARE PLC,"2,882.36",27/06/2023
Delivery Units,Adults and Health,Other Agencies - Third Party P,0090602123,FOUR SEASONS HEALTH CARE,"2,831.68",27/06/2023
Delivery Units,Adults and Health,Other Agencies - Third Party P,0090602131,APPLE TREE COURT CARE HOME,"3,385.00",27/06/2023
Delivery Units,Adults and Health,Other Agencies - Third Party P,0090602132,ABBEY RAVENSCROFT PARK NURSING HOME,"4,415.43",27/06/2023
Delivery Units,Adults and Health,Other Agencies - Third Party P,0090602133,JEWISH CARE,"2,945.48",27/06/2023
Delivery Units,Adults and Health,Other Agencies - Third Party P,0090602138,ABBEY RAVENSCROFT PARK NURSING HOME,"3,752.00",27/06/2023
Delivery Units,Adults and Health,Other Agencies - Third Party P,0090602141,BUPA NURSING HOMES LTD - ARKLEY,"2,906.64",27/06/2023
Delivery Units,Adults and Health,Other Agencies - Third Party P,0090602142,ASHTON LODGE CARE CENTRE,"4,201.60",27/06/2023
Delivery Units,Adults and Health,Other Agencies - Third Party P,0090602143,ELEANOR PALMER TRUST NO 2 A/C.,"6,289.14",27/06/2023
Delivery Units,Adults and Health,Other Agencies - Third Party P,0090602150,Aarandale Manor Care Home,"4,511.54",27/06/2023
Delivery Units,Adults and Health,Other Agencies - Third Party P,0090602151,LIFESTYLE CARE PLC,"2,882.36",27/06/2023
Delivery Units,Adults and Health,Other Agencies - Third Party P,0090602152,ELEANOR PALMER TRUST NO 2 A/C.,"4,720.00",27/06/2023
Delivery Units,Adults and Health,Other Agencies - Third Party P,0090602155,JEWISH CARE,"2,945.48",27/06/2023
Delivery Units,Adults and Health,Other Agencies - Third Party P,0090602156,ELEANOR PALMER TRUST NO 2 A/C.,"5,294.86",27/06/2023
Delivery Units,Adults and Health,Other Agencies - Third Party P,0090602157,Lancam Care Services Limited,"3,916.00",27/06/2023
Delivery Units,Adults and Health,Other Agencies - Third Party P,0090602159,LIFESTYLE CARE PLC,"2,882.36",27/06/2023
Delivery Units,Adults and Health,Other Agencies - Third Party P,0090602162,SAGE NURSING HOME,"3,703.43",27/06/2023
Delivery Units,Adults and Health,Other Agencies - Third Party P,0090602163,BUPA NURSING HOMES LTD - ARKLEY,"2,906.64",27/06/2023
Delivery Units,Adults and Health,Other Agencies - Third Party P,0090602164,JEWISH CARE,"8,263.92",27/06/2023
Delivery Units,Adults and Health,Other Agencies - Third Party P,0090602165,Lancam Care Services Limited,"4,196.00",27/06/2023
Delivery Units,Adults and Health,Other Agencies - Third Party P,0090602167,FOUR SEASONS HEALTH CARE,"2,831.68",27/06/2023
Delivery Units,Adults and Health,Other Agencies - Third Party P,0090602168,Lancam Care Services Limited,"4,196.00",27/06/2023
Delivery Units,Adults and Health,Other Agencies - Third Party P,0090602169,BUPA CARE HOMES,"2,906.64",27/06/2023
Delivery Units,Adults and Health,Other Agencies - Third Party P,0090602173,JEWISH CARE,"4,676.00",27/06/2023
Delivery Units,Adults and Health,Other Agencies - Third Party P,0090602174,JEWISH CARE,"2,882.48",27/06/2023
Delivery Units,Adults and Health,Other Agencies - Third Party P,0090602175,APPLE TREE COURT CARE HOME,"4,763.24",27/06/2023
Delivery Units,Adults and Health,Other Agencies - Third Party P,0090602177,New Century Care (Finchley),"4,400.00",27/06/2023
Delivery Units,Adults and Health,Other Agencies - Third Party P,0090602178,BUPA CARE HOMES,"2,906.64",27/06/2023
Delivery Units,Adults and Health,Other Agencies - Third Party P,0090602179,ABBEY RAVENSCROFT PARK NURSING HOME,"4,400.00",27/06/2023
Delivery Units,Adults and Health,Other Agencies - Third Party P,0090602180,APPLE TREE COURT CARE HOME,"-49,029.86",27/06/2023
Delivery Units,Adults and Health,Other Agencies - Third Party P,0090602182,FOUR SEASONS HEALTH CARE,"2,831.68",27/06/2023
Delivery Units,Adults and Health,Other Agencies - Third Party P,0090602183,LIFESTYLE CARE PLC,"2,882.36",27/06/2023
Delivery Units,Adults and Health,Other Agencies - Third Party P,0090602184,ABBEY RAVENSCROFT PARK NURSING HOME,"4,800.00",27/06/2023
Delivery Units,Adults and Health,Other Agencies - Third Party P,0090602185,BUPA NURSING HOMES LTD - ARKLEY,"4,063.43",27/06/2023
Delivery Units,Adults and Health,Other Agencies - Third Party P,0090602190,APPLE TREE COURT CARE HOME,"4,763.24",27/06/2023
Delivery Units,Adults and Health,Other Agencies - Third Party P,0090602192,BUPA NURSING HOMES LTD - ARKLEY,"4,563.43",27/06/2023
Delivery Units,Adults and Health,Other Agencies - Third Party P,0090602193,BUPA CARE HOMES,"4,000.00",27/06/2023
Delivery Units,Adults and Health,Other Agencies - Third Party P,0090602194,SAGE NURSING HOME,"4,400.00",27/06/2023
Delivery Units,Adults and Health,Other Agencies - Third Party P,0090602198,JEWISH CARE,"1,157.15",27/06/2023
Delivery Units,Adults and Health,Other Agencies - Third Party P,0090602199,ABBEY RAVENSCROFT PARK NURSING HOME,"4,800.00",27/06/2023
Delivery Units,Adults and Health,Other Agencies - Third Party P,0090602200,ABBEY RAVENSCROFT PARK NURSING HOME,234.20,27/06/2023
Delivery Units,Adults and Health,Other Agencies - Third Party P,0090602201,FOUR SEASONS HEALTH CARE,"12,641.43",27/06/2023
Delivery Units,Adults and Health,Other Agencies - Third Party P,0090602202,ABBEY RAVENSCROFT PARK NURSING HOME,"18,571.43",27/06/2023
Delivery Units,Adults and Health,Other Agencies - Third Party P,0090602203,APPLE TREE COURT CARE HOME,"5,571.42",27/06/2023
Delivery Units,Adults and Health,Other Agencies - Third Party P,0090602206,FOUR SEASONS HEALTH CARE,"8,041.55",27/06/2023
Delivery Units,Adults and Health,Other Agencies - Third Party P,0090602208,SONESTA NURSING HOME LTD.,"3,200.00",27/06/2023
Delivery Units,Adults and Health,Other Agencies - Third Party P,0090602210,Aarandale Manor Care Home,"9,341.92",27/06/2023
Delivery Units,Adults and Health,Other Agencies - Third Party P,0090602214,ABBEY RAVENSCROFT PARK NURSING HOME,"29,314.29",27/06/2023
Delivery Units,Adults and Health,Other Agencies - Third Party P,0090602321,Karuna Manor,"2,612.81",27/06/2023
Delivery Units,Adults and Health,Other Agencies - Third Party P,0090602874,WILSMERE HOUSE CARE CENTRE,"4,818.73",27/06/2023
Delivery Units,Adults and Health,Other Agencies - Third Party P,0090602877,Barchester Healthcare,"6,857.14",27/06/2023
Delivery Units,Adults and Health,Other Agencies - Third Party P,0090602878,Barchester Healthcare,"6,000.00",27/06/2023
Delivery Units,Adults and Health,Other Agencies - Third Party P,0090602879,Barchester Healthcare,"5,571.43",27/06/2023
Delivery Units,Adults and Health,Other Agencies - Third Party P,0090602881,Barchester Healthcare,"6,000.00",27/06/2023
Delivery Units,Adults and Health,Other Agencies - Third Party P,0090602882,Barchester Healthcare,"42,285.71",27/06/2023
Delivery Units,Adults and Health,Other Agencies - Third Party P,0090602884,Chalfont Lodge (Barchester Healthcare Ho,"5,960.61",27/06/2023
Delivery Units,Adults and Health,Other Agencies - Third Party P,0090602890,WESTMINSTER HEALTH CARE LTD,"4,707.17",27/06/2023
Delivery Units,Adults and Health,Other Agencies - Third Party P,0090602922,FERNBANK NURSING HOME.,"16,501.50",27/06/2023
Delivery Units,Adults and Health,Other Agencies - Third Party P,0090602925,FERNBANK NURSING HOME.,"4,928.40",27/06/2023
Delivery Units,Adults and Health,Other Agencies - Third Party P,0090602930,Topcare Ltd,"5,142.86",27/06/2023
Delivery Units,Adults and Health,Other Agencies - Third Party P,0090602931,DMP Healthcare (Ogilvy) Ltd,"4,071.43",27/06/2023
Delivery Units,Adults and Health,Other Agencies - Third Party P,0090602943,CEDARS NURSING HOME,"5,571.43",27/06/2023
Delivery Units,Adults and Health,Other Agencies - Third Party P,0090602944,CEDARS NURSING HOME,"4,071.43",27/06/2023
Delivery Units,Adults and Health,Other Agencies - Third Party P,0090602945,CEDARS NURSING HOME,"7,400.00",27/06/2023
Delivery Units,Adults and Health,Other Agencies - Third Party P,0090602946,CEDARS NURSING HOME,"5,142.86",27/06/2023
Delivery Units,Adults and Health,Other Agencies - Third Party P,0090602950,CEDARS NURSING HOME,"3,792.86",27/06/2023
Delivery Units,Adults and Health,Other Agencies - Third Party P,0090602951,CEDARS NURSING HOME,"5,571.43",27/06/2023
Delivery Units,Adults and Health,Other Agencies - Third Party P,0090602952,CEDARS NURSING HOME,"5,142.86",27/06/2023
Delivery Units,Adults and Health,Other Agencies - Third Party P,0090602953,CEDARS NURSING HOME,"5,142.86",27/06/2023
Delivery Units,Adults and Health,Other Agencies - Third Party P,0090602957,Alexandra House (Runwood Homes),"5,142.86",27/06/2023
Delivery Units,Adults and Health,Other Agencies - Third Party P,0090604683,CEDARS NURSING HOME,"-4,477.79",29/06/2023
Delivery Units,Adults and Health,Other Agencies - Third Party P,0090604686,CEDARS NURSING HOME,"4,285.71",29/06/2023
Delivery Units,Adults and Health,Other Agencies - Third Party P,0090604687,CEDARS NURSING HOME,"1,885.71",29/06/2023
Delivery Units,Adults and Health,Other Agencies - Third Party P,0090593206,FINBOND LIMITED,"3,542.85",05/06/2023
Delivery Units,Adults and Health,Other Agencies - Third Party P,0090595580,SYDMAR LODGE,"4,212.86",12/06/2023
Delivery Units,Adults and Health,Other Agencies - Third Party P,0090596236,Shenleybury House Ltd,"3,985.71",12/06/2023
Delivery Units,Adults and Health,Other Agencies - Third Party P,0090596328,TBG Mosaic,"2,540.00",12/06/2023
Delivery Units,Adults and Health,Other Agencies - Third Party P,0090596329,TBG Mosaic,"13,863.20",12/06/2023
Delivery Units,Adults and Health,Other Agencies - Third Party P,0090596330,TBG Mosaic,"4,612.00",12/06/2023
Delivery Units,Adults and Health,Other Agencies - Third Party P,0090596331,TBG Mosaic,0.04,12/06/2023
Delivery Units,Adults and Health,Other Agencies - Third Party P,0090596332,TBG Mosaic,"9,673.20",12/06/2023
Delivery Units,Adults and Health,Other Agencies - Third Party P,0090596333,TBG Mosaic,"2,676.00",12/06/2023
Delivery Units,Adults and Health,Other Agencies - Third Party P,0090596334,TBG Mosaic,"2,540.00",12/06/2023
Delivery Units,Adults and Health,Other Agencies - Third Party P,0090596335,TBG Mosaic,"2,540.00",12/06/2023
Delivery Units,Adults and Health,Other Agencies - Third Party P,0090596336,TBG Mosaic,"3,000.00",12/06/2023
Delivery Units,Adults and Health,Other Agencies - Third Party P,0090596337,TBG Mosaic,"2,540.00",12/06/2023
Delivery Units,Adults and Health,Other Agencies - Third Party P,0090596338,TBG Mosaic,"2,676.00",12/06/2023
Delivery Units,Adults and Health,Other Agencies - Third Party P,0090596339,TBG Mosaic,"2,676.00",12/06/2023
Delivery Units,Adults and Health,Other Agencies - Third Party P,0090596340,TBG Mosaic,"2,540.00",12/06/2023
Delivery Units,Adults and Health,Other Agencies - Third Party P,0090596341,TBG Mosaic,"2,676.00",12/06/2023
Delivery Units,Adults and Health,Other Agencies - Third Party P,0090596342,TBG Mosaic,"2,676.00",12/06/2023
Delivery Units,Adults and Health,Other Agencies - Third Party P,0090596343,TBG Mosaic,"2,540.00",12/06/2023
Delivery Units,Adults and Health,Other Agencies - Third Party P,0090596344,TBG Mosaic,"-6,595.20",12/06/2023
Delivery Units,Adults and Health,Other Agencies - Third Party P,0090596345,TBG Mosaic,"2,540.00",12/06/2023
Delivery Units,Adults and Health,Other Agencies - Third Party P,0090596346,TBG Mosaic,"2,676.00",12/06/2023
Delivery Units,Adults and Health,Other Agencies - Third Party P,0090596347,TBG Mosaic,"2,540.00",12/06/2023
Delivery Units,Adults and Health,Other Agencies - Third Party P,0090596348,TBG Mosaic,"2,676.00",12/06/2023
Delivery Units,Adults and Health,Other Agencies - Third Party P,0090596349,TBG Mosaic,"-5,065.29",12/06/2023
Delivery Units,Adults and Health,Other Agencies - Third Party P,0090596350,TBG Mosaic,"2,540.00",12/06/2023
Delivery Units,Adults and Health,Other Agencies - Third Party P,0090596351,TBG Mosaic,"2,676.00",12/06/2023
Delivery Units,Adults and Health,Other Agencies - Third Party P,0090596352,TBG Mosaic,"2,857.92",12/06/2023
Delivery Units,Adults and Health,Other Agencies - Third Party P,0090596353,TBG Mosaic,"2,540.00",12/06/2023
Delivery Units,Adults and Health,Other Agencies - Third Party P,0090596354,TBG Mosaic,"2,676.00",12/06/2023
Delivery Units,Adults and Health,Other Agencies - Third Party P,0090596355,TBG Mosaic,"2,540.00",12/06/2023
Delivery Units,Adults and Health,Other Agencies - Third Party P,0090596356,TBG Mosaic,"2,676.00",12/06/2023
Delivery Units,Adults and Health,Other Agencies - Third Party P,0090596357,TBG Mosaic,"2,676.00",12/06/2023
Delivery Units,Adults and Health,Other Agencies - Third Party P,0090596358,TBG Mosaic,"2,676.00",12/06/2023
Delivery Units,Adults and Health,Other Agencies - Third Party P,0090596359,TBG Mosaic,"2,676.00",12/06/2023
Delivery Units,Adults and Health,Other Agencies - Third Party P,0090596360,TBG Mosaic,"2,676.00",12/06/2023
Delivery Units,Adults and Health,Other Agencies - Third Party P,0090596362,TBG Mosaic,"2,540.00",12/06/2023
Delivery Units,Adults and Health,Other Agencies - Third Party P,0090596364,TBG Mosaic,"2,540.00",12/06/2023
Delivery Units,Adults and Health,Other Agencies - Third Party P,0090596365,TBG Mosaic,"2,540.00",12/06/2023
Delivery Units,Adults and Health,Other Agencies - Third Party P,0090596366,TBG Mosaic,"2,540.00",12/06/2023
Delivery Units,Adults and Health,Other Agencies - Third Party P,0090596367,TBG Mosaic,"4,430.40",12/06/2023
Delivery Units,Adults and Health,Other Agencies - Third Party P,0090596368,TBG Mosaic,"2,676.00",12/06/2023
Delivery Units,Adults and Health,Other Agencies - Third Party P,0090596369,TBG Mosaic,"2,540.00",12/06/2023
Delivery Units,Adults and Health,Other Agencies - Third Party P,0090596370,TBG Mosaic,"2,540.00",12/06/2023
Delivery Units,Adults and Health,Other Agencies - Third Party P,0090596371,TBG Mosaic,"2,540.00",12/06/2023
Delivery Units,Adults and Health,Other Agencies - Third Party P,0090596373,TBG Mosaic,"2,676.00",12/06/2023
Delivery Units,Adults and Health,Other Agencies - Third Party P,0090596374,TBG Mosaic,"-67,666.22",12/06/2023
Delivery Units,Adults and Health,Other Agencies - Third Party P,0090596375,TBG Mosaic,"2,676.00",12/06/2023
Delivery Units,Adults and Health,Other Agencies - Third Party P,0090596376,TBG Mosaic,"2,540.00",12/06/2023
Delivery Units,Adults and Health,Other Agencies - Third Party P,0090596377,TBG Mosaic,"2,540.00",12/06/2023
Delivery Units,Adults and Health,Other Agencies - Third Party P,0090596378,TBG Mosaic,"2,540.00",12/06/2023
Delivery Units,Adults and Health,Other Agencies - Third Party P,0090596379,TBG Mosaic,"2,540.00",12/06/2023
Delivery Units,Adults and Health,Other Agencies - Third Party P,0090599220,Optimum Support Ltd,"8,209.36",20/06/2023
Delivery Units,Adults and Health,Other Agencies - Third Party P,0090600834,GCH (North London) t/a The Tudors,"2,346.00",21/06/2023
Delivery Units,Adults and Health,Other Agencies - Third Party P,0090601269,Achieve Together Limited,"11,001.32",22/06/2023
Delivery Units,Adults and Health,Other Agencies - Third Party P,0090601270,Achieve Together Limited,"3,166.64",22/06/2023
Delivery Units,Adults and Health,Other Agencies - Third Party P,0090601344,Optimum Support Ltd,"5,314.00",23/06/2023
Delivery Units,Adults and Health,Other Agencies - Third Party P,0090601746,CATHERINE LODGE,"3,800.00",27/06/2023
Delivery Units,Adults and Health,Other Agencies - Third Party P,0090601768,ROSEACRES CARE HOME LIMITED,"3,783.43",27/06/2023
Delivery Units,Adults and Health,Other Agencies - Third Party P,0090601793,CATHERINE LODGE,"3,580.00",27/06/2023
Delivery Units,Adults and Health,Other Agencies - Third Party P,0090601795,CARLTON COURT (TLC GROUP),"5,800.00",27/06/2023
Delivery Units,Adults and Health,Other Agencies - Third Party P,0090601801,CARLTON COURT (TLC GROUP),"5,400.00",27/06/2023
Delivery Units,Adults and Health,Other Agencies - Third Party P,0090601810,ROSEACRES CARE HOME LIMITED,"3,863.43",27/06/2023
Delivery Units,Adults and Health,Other Agencies - Third Party P,0090601817,CATHERINE LODGE,"3,000.00",27/06/2023
Delivery Units,Adults and Health,Other Agencies - Third Party P,0090601820,CARLTON COURT (TLC GROUP),"6,376.16",27/06/2023
Delivery Units,Adults and Health,Other Agencies - Third Party P,0090601824,ROSEACRES CARE HOME LIMITED,"3,783.43",27/06/2023
Delivery Units,Adults and Health,Other Agencies - Third Party P,0090601851,ROSEACRES CARE HOME LIMITED,"4,063.43",27/06/2023
Delivery Units,Adults and Health,Other Agencies - Third Party P,0090601858,CATHERINE LODGE,"3,200.00",27/06/2023
Delivery Units,Adults and Health,Other Agencies - Third Party P,0090601866,ROSEACRES CARE HOME LIMITED,"2,900.00",27/06/2023
Delivery Units,Adults and Health,Other Agencies - Third Party P,0090601882,CATHERINE LODGE,"3,800.00",27/06/2023
Delivery Units,Adults and Health,Other Agencies - Third Party P,0090601888,ROSEACRES CARE HOME LIMITED,"2,900.00",27/06/2023
Delivery Units,Adults and Health,Other Agencies - Third Party P,0090601905,ROSEACRES CARE HOME LIMITED,"4,063.43",27/06/2023
Delivery Units,Adults and Health,Other Agencies - Third Party P,0090601913,CATHERINE LODGE,"3,800.00",27/06/2023
Delivery Units,Adults and Health,Other Agencies - Third Party P,0090601933,CATHERINE LODGE,"3,200.00",27/06/2023
Delivery Units,Adults and Health,Other Agencies - Third Party P,0090601946,ROSEACRES CARE HOME LIMITED,"-4,200.00",27/06/2023
Delivery Units,Adults and Health,Other Agencies - Third Party P,0090601956,CATHERINE LODGE,"3,800.00",27/06/2023
Delivery Units,Adults and Health,Other Agencies - Third Party P,0090601972,CARLTON COURT (TLC GROUP),"5,200.00",27/06/2023
Delivery Units,Adults and Health,Other Agencies - Third Party P,0090601988,ROSEACRES CARE HOME LIMITED,"2,900.00",27/06/2023
Delivery Units,Adults and Health,Other Agencies - Third Party P,0090602002,CATHERINE LODGE,"3,800.00",27/06/2023
Delivery Units,Adults and Health,Other Agencies - Third Party P,0090602024,ROSEACRES CARE HOME LIMITED,"3,400.00",27/06/2023
Delivery Units,Adults and Health,Other Agencies - Third Party P,0090602034,ROSEACRES CARE HOME LIMITED,"3,661.43",27/06/2023
Delivery Units,Adults and Health,Other Agencies - Third Party P,0090602038,ROSEACRES CARE HOME LIMITED,"3,800.00",27/06/2023
Delivery Units,Adults and Health,Other Agencies - Third Party P,0090602039,ROSEACRES CARE HOME LIMITED,"3,800.00",27/06/2023
Delivery Units,Adults and Health,Other Agencies - Third Party P,0090602043,CATHERINE LODGE,"3,800.00",27/06/2023
Delivery Units,Adults and Health,Other Agencies - Third Party P,0090602044,CARLTON COURT (TLC GROUP),"6,200.00",27/06/2023
Delivery Units,Adults and Health,Other Agencies - Third Party P,0090602070,ROSEACRES CARE HOME LIMITED,"3,700.00",27/06/2023
Delivery Units,Adults and Health,Other Agencies - Third Party P,0090602109,ROSEACRES CARE HOME LIMITED,"4,063.43",27/06/2023
Delivery Units,Adults and Health,Other Agencies - Third Party P,0090602145,ROSEACRES CARE HOME LIMITED,"3,863.43",27/06/2023
Delivery Units,Adults and Health,Other Agencies - Third Party P,0090602170,ROSEACRES CARE HOME LIMITED,"4,063.43",27/06/2023
Delivery Units,Adults and Health,Other Agencies - Third Party P,0090602211,CATHERINE LODGE,"4,478.57",27/06/2023
Delivery Units,Adults and Health,Other Agencies - Third Party P,0090602216,CATHERINE LODGE,"4,885.71",27/06/2023
Delivery Units,Adults and Health,Other Agencies - Third Party P,0090602891,SYDMAR LODGE,"5,357.14",27/06/2023
Delivery Units,Adults and Health,Other Agencies - Third Party P,0090602892,SYDMAR LODGE,"4,212.86",27/06/2023
Delivery Units,Adults and Health,Other Agencies - Third Party P,0090602894,SYDMAR LODGE,"5,357.14",27/06/2023
Delivery Units,Adults and Health,Other Agencies - Third Party P,0090602895,SYDMAR LODGE,"5,357.14",27/06/2023
Delivery Units,Adults and Health,Other Agencies - Third Party P,0090602897,SYDMAR LODGE,"5,682.86",27/06/2023
Delivery Units,Adults and Health,Other Agencies - Third Party P,0090602903,TENTERDEN HOUSE,"4,142.19",27/06/2023
Delivery Units,Adults and Health,Other Agencies - Third Party P,0090596560,LIVABILITY,"3,528.28",12/06/2023
Delivery Units,Adults and Health,Other Agencies - Third Party P,0090596561,LIVABILITY,"3,740.44",12/06/2023
Delivery Units,Adults and Health,Other Agencies - Third Party P,0090596565,LIVABILITY,"4,720.12",12/06/2023
Delivery Units,Adults and Health,Other Agencies - Third Party P,0090601327,LIVABILITY,"3,528.28",23/06/2023
Delivery Units,Adults and Health,Other Agencies - Third Party P,0090601329,LIVABILITY,"3,740.44",23/06/2023
Delivery Units,Adults and Health,Other Agencies - Third Party P,0090601332,LIVABILITY,"4,720.12",23/06/2023
Delivery Units,Adults and Health,Other Agencies - Third Party P,0090602171,WOODFIELD HOUSE,"14,081.60",27/06/2023
Delivery Units,Adults and Health,Other Agencies - Third Party P,0090595318,AGUDAS ISRAEL HOUSING ASSCTN LTD,"4,428.57",08/06/2023
Delivery Units,Adults and Health,Other Agencies - Third Party P,0090593071,CEDARS NURSING HOME,"5,142.86",05/06/2023
Delivery Units,Adults and Health,Other Agencies - Third Party P,0090593072,CEDARS NURSING HOME,"5,571.43",05/06/2023
Delivery Units,Adults and Health,Other Agencies - Third Party P,0090593074,CEDARS NURSING HOME,"5,571.43",05/06/2023
Delivery Units,Adults and Health,Other Agencies - Third Party P,0090593080,CEDARS NURSING HOME,"4,285.71",05/06/2023
Delivery Units,Adults and Health,Other Agencies - Third Party P,0090593196,CEDARS NURSING HOME,"5,757.14",05/06/2023
Delivery Units,Adults and Health,Other Agencies - Third Party P,0090593197,CEDARS NURSING HOME,"5,314.29",05/06/2023
Delivery Units,Adults and Health,Other Agencies - Third Party P,0090593203,CEDARS NURSING HOME,"4,428.57",05/06/2023
Delivery Units,Adults and Health,Other Agencies - Third Party P,0090593586,Simiks Care Limited,"3,942.72",05/06/2023
Delivery Units,Adults and Health,Other Agencies - Third Party P,0090595308,Brownlow Enterprises Ltd,"2,069.43",08/06/2023
Delivery Units,Adults and Health,Other Agencies - Third Party P,0090595309,Brownlow Enterprises Ltd,"4,048.86",08/06/2023
Delivery Units,Adults and Health,Other Agencies - Third Party P,0090595310,Brownlow Enterprises Ltd,"4,026.72",08/06/2023
Delivery Units,Adults and Health,Other Agencies - Third Party P,0090595320,EASTSIDE HOUSE CARE HOME,"3,700.00",08/06/2023
Delivery Units,Adults and Health,Other Agencies - Third Party P,0090595581,EASTSIDE HOUSE CARE HOME,"3,720.00",12/06/2023
Delivery Units,Adults and Health,Other Agencies - Third Party P,0090595582,EASTSIDE HOUSE CARE HOME,"3,800.00",12/06/2023
Delivery Units,Adults and Health,Other Agencies - Third Party P,0090595585,Westbourne Care Home,"-2,600.00",12/06/2023
Delivery Units,Adults and Health,Other Agencies - Third Party P,0090595586,Westbourne Care Home,"4,457.14",12/06/2023
Delivery Units,Adults and Health,Other Agencies - Third Party P,0090595587,NIGHTINGALE HOUSE,"23,288.58",12/06/2023
Delivery Units,Adults and Health,Other Agencies - Third Party P,0090595590,QUANTUM CARE LIMITED,"4,207.14",12/06/2023
Delivery Units,Adults and Health,Other Agencies - Third Party P,0090596225,Brownlow Enterprises Ltd,"4,026.72",12/06/2023
Delivery Units,Adults and Health,Other Agencies - Third Party P,0090596228,Brownlow Enterprises Ltd,"4,301.29",12/06/2023
Delivery Units,Adults and Health,Other Agencies - Third Party P,0090596229,Brownlow Enterprises Ltd,"4,026.72",12/06/2023
Delivery Units,Adults and Health,Other Agencies - Third Party P,0090596230,Brownlow Enterprises Ltd,"4,048.86",12/06/2023
Delivery Units,Adults and Health,Other Agencies - Third Party P,0090596231,Brownlow Enterprises Ltd,"3,805.29",12/06/2023
Delivery Units,Adults and Health,Other Agencies - Third Party P,0090596232,Brownlow Enterprises Ltd,"4,301.29",12/06/2023
Delivery Units,Adults and Health,Other Agencies - Third Party P,0090596233,Brownlow Enterprises Ltd,"2,347.86",12/06/2023
Delivery Units,Adults and Health,Other Agencies - Third Party P,0090596552,EASTSIDE HOUSE CARE HOME,"3,800.00",12/06/2023
Delivery Units,Adults and Health,Other Agencies - Third Party P,0090596553,EASTSIDE HOUSE CARE HOME,"3,800.00",12/06/2023
Delivery Units,Adults and Health,Other Agencies - Third Party P,0090596554,EASTSIDE HOUSE CARE HOME,"3,800.00",12/06/2023
Delivery Units,Adults and Health,Other Agencies - Third Party P,0090596558,EASTSIDE HOUSE CARE HOME,950.00,12/06/2023
Delivery Units,Adults and Health,Other Agencies - Third Party P,0090596568,Agecare MG1 Ltd,"4,871.43",12/06/2023
Delivery Units,Adults and Health,Other Agencies - Third Party P,0090598302,Boughton Lodge Care Home,"3,100.00",15/06/2023
Delivery Units,Adults and Health,Other Agencies - Third Party P,0090598303,Brownlow Enterprises Ltd,"2,224.29",15/06/2023
Delivery Units,Adults and Health,Other Agencies - Third Party P,0090598304,Brownlow Enterprises Ltd,"1,112.14",15/06/2023
Delivery Units,Adults and Health,Other Agencies - Third Party P,0090598306,Brownlow Enterprises Ltd,617.86,15/06/2023
Delivery Units,Adults and Health,Other Agencies - Third Party P,0090598307,Brownlow Enterprises Ltd,"3,707.14",15/06/2023
Delivery Units,Adults and Health,Other Agencies - Third Party P,0090599206,Haling Park Care Home,"3,800.00",20/06/2023
Delivery Units,Adults and Health,Other Agencies - Third Party P,0090599216,Brownlow Enterprises Ltd,"3,227.14",20/06/2023
Delivery Units,Adults and Health,Other Agencies - Third Party P,0090599241,NIGHTINGALE HOUSE,"3,542.86",20/06/2023
Delivery Units,Adults and Health,Other Agencies - Third Party P,0090599242,NIGHTINGALE HOUSE,"3,587.14",20/06/2023
Delivery Units,Adults and Health,Other Agencies - Third Party P,0090599244,NIGHTINGALE HOUSE,"3,587.14",20/06/2023
Delivery Units,Adults and Health,Other Agencies - Third Party P,0090601339,ANASTASIA LODGE,"3,620.00",23/06/2023
Delivery Units,Adults and Health,Other Agencies - Third Party P,0090601342,THE WOODSIDE HOME,"2,540.00",23/06/2023
Delivery Units,Adults and Health,Other Agencies - Third Party P,0090601343,THE WOODSIDE HOME,"2,676.00",23/06/2023
Delivery Units,Adults and Health,Other Agencies - Third Party P,0090601703,NAZARETH HOUSE,"2,540.00",27/06/2023
Delivery Units,Adults and Health,Other Agencies - Third Party P,0090601705,ELM PARK LODGE,"3,832.35",27/06/2023
Delivery Units,Adults and Health,Other Agencies - Third Party P,0090601707,JEWISH CARE,"2,801.80",27/06/2023
Delivery Units,Adults and Health,Other Agencies - Third Party P,0090601713,NAZARETH HOUSE,"-1,451.43",27/06/2023
Delivery Units,Adults and Health,Other Agencies - Third Party P,0090601719,THE LIMES RESIDENTIAL HOME,"3,823.43",27/06/2023
Delivery Units,Adults and Health,Other Agencies - Third Party P,0090601720,JEWISH CARE,"2,659.00",27/06/2023
Delivery Units,Adults and Health,Other Agencies - Third Party P,0090601728,JEWISH CARE,"2,801.80",27/06/2023
Delivery Units,Adults and Health,Other Agencies - Third Party P,0090601729,JEWISH CARE,"2,747.48",27/06/2023
Delivery Units,Adults and Health,Other Agencies - Third Party P,0090601730,JEWISH CARE,"2,801.80",27/06/2023
Delivery Units,Adults and Health,Other Agencies - Third Party P,0090601733,THE LIMES RESIDENTIAL HOME,"3,783.43",27/06/2023
Delivery Units,Adults and Health,Other Agencies - Third Party P,0090601734,JEWISH CARE,"2,659.00",27/06/2023
Delivery Units,Adults and Health,Other Agencies - Third Party P,0090601738,JEWISH CARE,"2,659.00",27/06/2023
Delivery Units,Adults and Health,Other Agencies - Third Party P,0090601739,ELEANOR PALMER TRUST NO 2 A/C.,"3,456.00",27/06/2023
Delivery Units,Adults and Health,Other Agencies - Third Party P,0090601740,ELEANOR PALMER TRUST NO 2 A/C.,"3,456.00",27/06/2023
Delivery Units,Adults and Health,Other Agencies - Third Party P,0090601741,ELEANOR PALMER TRUST NO 2 A/C.,"3,456.00",27/06/2023
Delivery Units,Adults and Health,Other Agencies - Third Party P,0090601750,Aarandale Manor Care Home,"5,000.00",27/06/2023
Delivery Units,Adults and Health,Other Agencies - Third Party P,0090601754,BUPA CARE HOMES,"3,179.43",27/06/2023
Delivery Units,Adults and Health,Other Agencies - Third Party P,0090601759,ELEANOR PALMER TRUST NO 2 A/C.,"5,043.09",27/06/2023
Delivery Units,Adults and Health,Other Agencies - Third Party P,0090601762,JEWISH CARE,"4,265.48",27/06/2023
Delivery Units,Adults and Health,Other Agencies - Third Party P,0090601765,JEWISH CARE,"2,641.80",27/06/2023
Delivery Units,Adults and Health,Other Agencies - Third Party P,0090601767,JEWISH CARE,"2,801.80",27/06/2023
Delivery Units,Adults and Health,Other Agencies - Third Party P,0090601777,JEWISH CARE,"4,825.16",27/06/2023
Delivery Units,Adults and Health,Other Agencies - Third Party P,0090601779,ASHTON LODGE CARE CENTRE,"4,136.52",27/06/2023
Delivery Units,Adults and Health,Other Agencies - Third Party P,0090601782,JEWISH CARE,"2,801.80",27/06/2023
Delivery Units,Adults and Health,Other Agencies - Third Party P,0090601784,JEWISH CARE,"2,641.80",27/06/2023
Delivery Units,Adults and Health,Other Agencies - Third Party P,0090601796,JEWISH CARE,"2,801.80",27/06/2023
Delivery Units,Adults and Health,Other Agencies - Third Party P,0090601800,JEWISH CARE,"5,070.40",27/06/2023
Delivery Units,Adults and Health,Other Agencies - Third Party P,0090601802,JEWISH CARE,"-3,133.82",27/06/2023
Delivery Units,Adults and Health,Other Agencies - Third Party P,0090601803,NAZARETH HOUSE,"2,676.00",27/06/2023
Delivery Units,Adults and Health,Other Agencies - Third Party P,0090601807,LIFESTYLE CARE PLC,"3,200.00",27/06/2023
Delivery Units,Adults and Health,Other Agencies - Third Party P,0090601808,ELMHURST RESIDENTIAL HOME,"3,800.00",27/06/2023
Delivery Units,Adults and Health,Other Agencies - Third Party P,0090601809,JEWISH CARE,"2,801.80",27/06/2023
Delivery Units,Adults and Health,Other Agencies - Third Party P,0090601814,SAGE NURSING HOME,"3,303.43",27/06/2023
Delivery Units,Adults and Health,Other Agencies - Third Party P,0090601818,THE LIMES RESIDENTIAL HOME,"2,676.00",27/06/2023
Delivery Units,Adults and Health,Other Agencies - Third Party P,0090601821,NAZARETH HOUSE,"2,540.00",27/06/2023
Delivery Units,Adults and Health,Other Agencies - Third Party P,0090601823,THE LIMES RESIDENTIAL HOME,"2,676.00",27/06/2023
Delivery Units,Adults and Health,Other Agencies - Third Party P,0090601827,SAGE NURSING HOME,15.43,27/06/2023
Delivery Units,Adults and Health,Other Agencies - Third Party P,0090601830,ELEANOR PALMER TRUST NO 2 A/C.,"3,456.00",27/06/2023
Delivery Units,Adults and Health,Other Agencies - Third Party P,0090601834,ELEANOR PALMER TRUST NO 2 A/C.,"5,126.86",27/06/2023
Delivery Units,Adults and Health,Other Agencies - Third Party P,0090601836,JEWISH CARE,"2,659.00",27/06/2023
Delivery Units,Adults and Health,Other Agencies - Third Party P,0090601837,JEWISH CARE,"2,801.80",27/06/2023
Delivery Units,Adults and Health,Other Agencies - Third Party P,0090601840,APPLE TREE COURT CARE HOME,"4,400.00",27/06/2023
Delivery Units,Adults and Health,Other Agencies - Third Party P,0090601841,JEWISH CARE,"2,801.80",27/06/2023
Delivery Units,Adults and Health,Other Agencies - Third Party P,0090601842,ABBEY RAVENSCROFT PARK NURSING HOME,"4,032.20",27/06/2023
Delivery Units,Adults and Health,Other Agencies - Third Party P,0090601843,JEWISH CARE,"2,560.00",27/06/2023
Delivery Units,Adults and Health,Other Agencies - Third Party P,0090601846,JEWISH CARE,"2,801.80",27/06/2023
Delivery Units,Adults and Health,Other Agencies - Third Party P,0090601847,JEWISH CARE,"2,801.80",27/06/2023
Delivery Units,Adults and Health,Other Agencies - Third Party P,0090601850,ELEANOR PALMER TRUST NO 2 A/C.,"3,456.00",27/06/2023
Delivery Units,Adults and Health,Other Agencies - Third Party P,0090601852,BUPA CARE HOMES,"3,423.43",27/06/2023
Delivery Units,Adults and Health,Other Agencies - Third Party P,0090601853,LIFESTYLE CARE PLC,"3,600.00",27/06/2023
Delivery Units,Adults and Health,Other Agencies - Third Party P,0090601855,NAZARETH HOUSE,"2,676.00",27/06/2023
Delivery Units,Adults and Health,Other Agencies - Third Party P,0090601859,BUPA CARE HOMES,"2,884.00",27/06/2023
Delivery Units,Adults and Health,Other Agencies - Third Party P,0090601860,JEWISH CARE,"2,499.00",27/06/2023
Delivery Units,Adults and Health,Other Agencies - Third Party P,0090601874,NAZARETH HOUSE,"2,676.00",27/06/2023
Delivery Units,Adults and Health,Other Agencies - Third Party P,0090601875,JEWISH CARE,"2,499.00",27/06/2023
Delivery Units,Adults and Health,Other Agencies - Third Party P,0090601883,JEWISH CARE,"2,801.80",27/06/2023
Delivery Units,Adults and Health,Other Agencies - Third Party P,0090601887,BUPA CARE HOMES,"4,025.35",27/06/2023
Delivery Units,Adults and Health,Other Agencies - Third Party P,0090601889,SAGE NURSING HOME,"3,827.14",27/06/2023
Delivery Units,Adults and Health,Other Agencies - Third Party P,0090601891,ELEANOR PALMER TRUST NO 2 A/C.,"5,574.28",27/06/2023
Delivery Units,Adults and Health,Other Agencies - Third Party P,0090601892,JEWISH CARE,"2,801.80",27/06/2023
Delivery Units,Adults and Health,Other Agencies - Third Party P,0090601893,NAZARETH HOUSE,"2,676.00",27/06/2023
Delivery Units,Adults and Health,Other Agencies - Third Party P,0090601899,ELMHURST RESIDENTIAL HOME,"3,600.00",27/06/2023
Delivery Units,Adults and Health,Other Agencies - Third Party P,0090601901,NAZARETH HOUSE,"2,540.00",27/06/2023
Delivery Units,Adults and Health,Other Agencies - Third Party P,0090601907,APPLE TREE COURT CARE HOME,"3,400.00",27/06/2023
Delivery Units,Adults and Health,Other Agencies - Third Party P,0090601908,APPLE TREE COURT CARE HOME,"3,400.00",27/06/2023
Delivery Units,Adults and Health,Other Agencies - Third Party P,0090601920,THE LIMES RESIDENTIAL HOME,"3,868.57",27/06/2023
Delivery Units,Adults and Health,Other Agencies - Third Party P,0090601922,THE LIMES RESIDENTIAL HOME,-327.43,27/06/2023
Delivery Units,Adults and Health,Other Agencies - Third Party P,0090601927,JEWISH CARE,"2,657.00",27/06/2023
Delivery Units,Adults and Health,Other Agencies - Third Party P,0090601929,JEWISH CARE,"3,504.36",27/06/2023
Delivery Units,Adults and Health,Other Agencies - Third Party P,0090601930,JEWISH CARE,"2,801.80",27/06/2023
Delivery Units,Adults and Health,Other Agencies - Third Party P,0090601931,NAZARETH HOUSE,"2,676.00",27/06/2023
Delivery Units,Adults and Health,Other Agencies - Third Party P,0090601935,BUPA NURSING HOMES LTD - ARKLEY,"2,800.00",27/06/2023
Delivery Units,Adults and Health,Other Agencies - Third Party P,0090601943,NAZARETH HOUSE,"2,540.00",27/06/2023
Delivery Units,Adults and Health,Other Agencies - Third Party P,0090601944,JEWISH CARE,"7,658.40",27/06/2023
Delivery Units,Adults and Health,Other Agencies - Third Party P,0090601947,ELMHURST RESIDENTIAL HOME,"4,000.00",27/06/2023
Delivery Units,Adults and Health,Other Agencies - Third Party P,0090601948,APPLE TREE COURT CARE HOME,"3,400.00",27/06/2023
Delivery Units,Adults and Health,Other Agencies - Third Party P,0090601959,NAZARETH HOUSE,"4,471.20",27/06/2023
Delivery Units,Adults and Health,Other Agencies - Third Party P,0090601960,BUPA CARE HOMES,"4,000.00",27/06/2023
Delivery Units,Adults and Health,Other Agencies - Third Party P,0090601966,JEWISH CARE,"2,801.80",27/06/2023
Delivery Units,Adults and Health,Other Agencies - Third Party P,0090601981,APPLE TREE COURT CARE HOME,"4,352.00",27/06/2023
Delivery Units,Adults and Health,Other Agencies - Third Party P,0090601985,LIFESTYLE CARE PLC,"3,400.00",27/06/2023
Delivery Units,Adults and Health,Other Agencies - Third Party P,0090601986,Aarandale Manor Care Home,"5,200.00",27/06/2023
Delivery Units,Adults and Health,Other Agencies - Third Party P,0090601999,NAZARETH HOUSE,"2,796.00",27/06/2023
Delivery Units,Adults and Health,Other Agencies - Third Party P,0090602001,APPLE TREE COURT CARE HOME,"5,124.00",27/06/2023
Delivery Units,Adults and Health,Other Agencies - Third Party P,0090602005,NAZARETH HOUSE,"2,796.00",27/06/2023
Delivery Units,Adults and Health,Other Agencies - Third Party P,0090602006,NAZARETH HOUSE,"2,796.00",27/06/2023
Delivery Units,Adults and Health,Other Agencies - Third Party P,0090602007,NAZARETH HOUSE,399.43,27/06/2023
Delivery Units,Adults and Health,Other Agencies - Third Party P,0090602008,Aarandale Manor Care Home,"5,000.00",27/06/2023
Delivery Units,Adults and Health,Other Agencies - Third Party P,0090602010,THE LIMES RESIDENTIAL HOME,"3,400.00",27/06/2023
Delivery Units,Adults and Health,Other Agencies - Third Party P,0090602012,ELM PARK LODGE,"8,010.00",27/06/2023
Delivery Units,Adults and Health,Other Agencies - Third Party P,0090602015,NAZARETH HOUSE,"9,557.14",27/06/2023
Delivery Units,Adults and Health,Other Agencies - Third Party P,0090602016,ELEANOR PALMER TRUST NO 2 A/C.,"5,574.28",27/06/2023
Delivery Units,Adults and Health,Other Agencies - Third Party P,0090602019,APPLE TREE COURT CARE HOME,"3,800.00",27/06/2023
Delivery Units,Adults and Health,Other Agencies - Third Party P,0090602022,LIFESTYLE CARE PLC,"3,400.00",27/06/2023
Delivery Units,Adults and Health,Other Agencies - Third Party P,0090602023,THE LIMES RESIDENTIAL HOME,"3,863.43",27/06/2023
Delivery Units,Adults and Health,Other Agencies - Third Party P,0090602030,ELEANOR PALMER TRUST NO 2 A/C.,"3,616.00",27/06/2023
Delivery Units,Adults and Health,Other Agencies - Third Party P,0090602035,JEWISH CARE,"2,657.00",27/06/2023
Delivery Units,Adults and Health,Other Agencies - Third Party P,0090602040,JEWISH CARE,"2,801.80",27/06/2023
Delivery Units,Adults and Health,Other Agencies - Third Party P,0090602046,BUPA CARE HOMES,"4,000.00",27/06/2023
Delivery Units,Adults and Health,Other Agencies - Third Party P,0090602056,APPLE TREE COURT CARE HOME,"5,124.00",27/06/2023
Delivery Units,Adults and Health,Other Agencies - Third Party P,0090602058,JEWISH CARE,"2,801.80",27/06/2023
Delivery Units,Adults and Health,Other Agencies - Third Party P,0090602060,BUPA NURSING HOMES LTD - ARKLEY,"3,900.00",27/06/2023
Delivery Units,Adults and Health,Other Agencies - Third Party P,0090602063,NAZARETH HOUSE,"3,495.00",27/06/2023
Delivery Units,Adults and Health,Other Agencies - Third Party P,0090602066,JEWISH CARE,"1,185.56",27/06/2023
Delivery Units,Adults and Health,Other Agencies - Third Party P,0090602068,JEWISH CARE,"2,945.48",27/06/2023
Delivery Units,Adults and Health,Other Agencies - Third Party P,0090602069,JEWISH CARE,"3,402.19",27/06/2023
Delivery Units,Adults and Health,Other Agencies - Third Party P,0090602098,ELMHURST RESIDENTIAL HOME,"3,000.00",27/06/2023
Delivery Units,Adults and Health,Other Agencies - Third Party P,0090602100,ELEANOR PALMER TRUST NO 2 A/C.,"3,456.00",27/06/2023
Delivery Units,Adults and Health,Other Agencies - Third Party P,0090602108,JEWISH CARE,"2,801.80",27/06/2023
Delivery Units,Adults and Health,Other Agencies - Third Party P,0090602112,THE LIMES RESIDENTIAL HOME,"3,783.43",27/06/2023
Delivery Units,Adults and Health,Other Agencies - Third Party P,0090602114,NAZARETH HOUSE,"2,676.00",27/06/2023
Delivery Units,Adults and Health,Other Agencies - Third Party P,0090602116,JEWISH CARE,"2,499.00",27/06/2023
Delivery Units,Adults and Health,Other Agencies - Third Party P,0090602118,NAZARETH HOUSE,"3,800.00",27/06/2023
Delivery Units,Adults and Health,Other Agencies - Third Party P,0090602119,JEWISH CARE,"2,801.80",27/06/2023
Delivery Units,Adults and Health,Other Agencies - Third Party P,0090602122,JEWISH CARE,"2,659.00",27/06/2023
Delivery Units,Adults and Health,Other Agencies - Third Party P,0090602124,NAZARETH HOUSE,"2,540.00",27/06/2023
Delivery Units,Adults and Health,Other Agencies - Third Party P,0090602126,THE LIMES RESIDENTIAL HOME,"3,783.43",27/06/2023
Delivery Units,Adults and Health,Other Agencies - Third Party P,0090602127,NAZARETH HOUSE,"2,676.00",27/06/2023
Delivery Units,Adults and Health,Other Agencies - Third Party P,0090602129,JEWISH CARE,"2,801.80",27/06/2023
Delivery Units,Adults and Health,Other Agencies - Third Party P,0090602134,NAZARETH HOUSE,"2,540.00",27/06/2023
Delivery Units,Adults and Health,Other Agencies - Third Party P,0090602135,ELEANOR PALMER TRUST NO 2 A/C.,"3,456.00",27/06/2023
Delivery Units,Adults and Health,Other Agencies - Third Party P,0090602136,NAZARETH HOUSE,"2,676.00",27/06/2023
Delivery Units,Adults and Health,Other Agencies - Third Party P,0090602140,THE LIMES RESIDENTIAL HOME,"3,883.43",27/06/2023
Delivery Units,Adults and Health,Other Agencies - Third Party P,0090602147,NAZARETH HOUSE,"2,676.00",27/06/2023
Delivery Units,Adults and Health,Other Agencies - Third Party P,0090602148,JEWISH CARE,"2,801.80",27/06/2023
Delivery Units,Adults and Health,Other Agencies - Third Party P,0090602149,JEWISH CARE,"2,801.80",27/06/2023
Delivery Units,Adults and Health,Other Agencies - Third Party P,0090602153,ELMHURST RESIDENTIAL HOME,"3,800.00",27/06/2023
Delivery Units,Adults and Health,Other Agencies - Third Party P,0090602154,NAZARETH HOUSE,"2,676.00",27/06/2023
Delivery Units,Adults and Health,Other Agencies - Third Party P,0090602158,ELEANOR PALMER TRUST NO 2 A/C.,"4,414.29",27/06/2023
Delivery Units,Adults and Health,Other Agencies - Third Party P,0090602172,JEWISH CARE,"3,200.00",27/06/2023
Delivery Units,Adults and Health,Other Agencies - Third Party P,0090602176,APPLE TREE COURT CARE HOME,"5,124.00",27/06/2023
Delivery Units,Adults and Health,Other Agencies - Third Party P,0090602181,ASHTON LODGE CARE CENTRE,"4,000.00",27/06/2023
Delivery Units,Adults and Health,Other Agencies - Third Party P,0090602195,THE LIMES RESIDENTIAL HOME,"3,868.57",27/06/2023
Delivery Units,Adults and Health,Other Agencies - Third Party P,0090602197,JEWISH CARE,"-1,019.12",27/06/2023
Delivery Units,Adults and Health,Other Agencies - Third Party P,0090602204,THE LIMES RESIDENTIAL HOME,"1,375.00",27/06/2023
Delivery Units,Adults and Health,Other Agencies - Third Party P,0090602205,NAZARETH HOUSE,"2,796.00",27/06/2023
Delivery Units,Adults and Health,Other Agencies - Third Party P,0090602207,NAZARETH HOUSE,"2,796.00",27/06/2023
Delivery Units,Adults and Health,Other Agencies - Third Party P,0090602218,THE LIMES RESIDENTIAL HOME,"1,257.14",27/06/2023
Delivery Units,Adults and Health,Other Agencies - Third Party P,0090602219,NAZARETH HOUSE,"1,121.43",27/06/2023
Delivery Units,Adults and Health,Other Agencies - Third Party P,0090602880,Barchester Healthcare,"5,280.00",27/06/2023
Delivery Units,Adults and Health,Other Agencies - Third Party P,0090602900,Westbourne Care Home,"7,662.86",27/06/2023
Delivery Units,Adults and Health,Other Agencies - Third Party P,0090602906,Hillyfield Rest Home Limited,"4,714.20",27/06/2023
Delivery Units,Adults and Health,Other Agencies - Third Party P,0090602914,Agecare MG1 Ltd,"4,714.29",27/06/2023
Delivery Units,Adults and Health,Other Agencies - Third Party P,0090602926,EASTSIDE HOUSE CARE HOME,"3,720.00",27/06/2023
Delivery Units,Adults and Health,Other Agencies - Third Party P,0090602927,EASTSIDE HOUSE CARE HOME,"3,800.00",27/06/2023
Delivery Units,Adults and Health,Other Agencies - Third Party P,0090602937,B & M CARE,"3,642.86",27/06/2023
Delivery Units,Adults and Health,Other Agencies - Third Party P,0090602938,B & M CARE,"5,142.86",27/06/2023
Delivery Units,Adults and Health,Other Agencies - Third Party P,0090602940,B & M CARE,"4,071.43",27/06/2023
Delivery Units,Adults and Health,Other Agencies - Third Party P,0090602941,B & M CARE,"4,157.14",27/06/2023
Delivery Units,Adults and Health,Other Agencies - Third Party P,0090602947,CEDARS NURSING HOME,"5,142.86",27/06/2023
Delivery Units,Adults and Health,Other Agencies - Third Party P,0090602948,CEDARS NURSING HOME,"5,571.43",27/06/2023
Delivery Units,Adults and Health,Other Agencies - Third Party P,0090603845,Alexandra House (Runwood Homes),"2,680.71",29/06/2023
Delivery Units,Adults and Health,Other Agencies - Third Party P,0090604685,CEDARS NURSING HOME,"4,285.71",29/06/2023
Delivery Units,Adults and Health,Other Agencies - Third Party P,0090604688,CEDARS NURSING HOME,"2,042.86",29/06/2023
Delivery Units,Adults and Health,Other Agencies - Third Party P,0090604689,CEDARS NURSING HOME,"152,471.43",29/06/2023
Delivery Units,Adults and Health,Other Agencies - Third Party P,0090592752,Evergreen Homecare Service Ltd,138.88,02/06/2023
Delivery Units,Adults and Health,Other Agencies - Third Party P,0090592753,Evergreen Homecare Service Ltd,138.88,02/06/2023
Delivery Units,Adults and Health,Other Agencies - Third Party P,0090592754,Evergreen Homecare Service Ltd,138.88,02/06/2023
Delivery Units,Adults and Health,Other Agencies - Third Party P,0090592755,Evergreen Homecare Service Ltd,138.88,02/06/2023
Delivery Units,Adults and Health,Other Agencies - Third Party P,0090592756,Evergreen Homecare Service Ltd,138.88,02/06/2023
Delivery Units,Adults and Health,Other Agencies - Third Party P,0090592757,Evergreen Homecare Service Ltd,138.88,02/06/2023
Delivery Units,Adults and Health,Other Agencies - Third Party P,0090592758,Evergreen Homecare Service Ltd,138.88,02/06/2023
Delivery Units,Adults and Health,Other Agencies - Third Party P,0090592759,Evergreen Homecare Service Ltd,138.88,02/06/2023
Delivery Units,Adults and Health,Other Agencies - Third Party P,0090592760,Evergreen Homecare Service Ltd,138.88,02/06/2023
Delivery Units,Adults and Health,Other Agencies - Third Party P,0090592761,Evergreen Homecare Service Ltd,138.88,02/06/2023
Delivery Units,Adults and Health,Other Agencies - Third Party P,0090592762,Evergreen Homecare Service Ltd,138.88,02/06/2023
Delivery Units,Adults and Health,Other Agencies - Third Party P,0090592763,Evergreen Homecare Service Ltd,138.88,02/06/2023
Delivery Units,Adults and Health,Other Agencies - Third Party P,0090592764,Evergreen Homecare Service Ltd,138.88,02/06/2023
Delivery Units,Adults and Health,Other Agencies - Third Party P,0090592765,Evergreen Homecare Service Ltd,138.88,02/06/2023
Delivery Units,Adults and Health,Other Agencies - Third Party P,0090592868,Homecare Alliance Ltd,149.73,02/06/2023
Delivery Units,Adults and Health,Other Agencies - Third Party P,0090592934,Evergreen Homecare Service Ltd,743.82,05/06/2023
Delivery Units,Adults and Health,Other Agencies - Third Party P,0090592935,Evergreen Homecare Service Ltd,"1,062.60",05/06/2023
Delivery Units,Adults and Health,Other Agencies - Third Party P,0090592936,Evergreen Homecare Service Ltd,561.66,05/06/2023
Delivery Units,Adults and Health,Other Agencies - Third Party P,0090592938,Evergreen Homecare Service Ltd,141.68,05/06/2023
Delivery Units,Adults and Health,Other Agencies - Third Party P,0090592939,Evergreen Homecare Service Ltd,70.84,05/06/2023
Delivery Units,Adults and Health,Other Agencies - Third Party P,0090592941,Evergreen Homecare Service Ltd,354.20,05/06/2023
Delivery Units,Adults and Health,Other Agencies - Third Party P,0090592942,Evergreen Homecare Service Ltd,465.52,05/06/2023
Delivery Units,Adults and Health,Other Agencies - Third Party P,0090592943,Evergreen Homecare Service Ltd,212.52,05/06/2023
Delivery Units,Adults and Health,Other Agencies - Third Party P,0090592944,Evergreen Homecare Service Ltd,495.88,05/06/2023
Delivery Units,Adults and Health,Other Agencies - Third Party P,0090592945,Evergreen Homecare Service Ltd,"1,283.38",05/06/2023
Delivery Units,Adults and Health,Other Agencies - Third Party P,0090592947,Evergreen Homecare Service Ltd,141.68,05/06/2023
Delivery Units,Adults and Health,Other Agencies - Third Party P,0090592949,Evergreen Homecare Service Ltd,141.68,05/06/2023
Delivery Units,Adults and Health,Other Agencies - Third Party P,0090592950,Evergreen Homecare Service Ltd,"1,283.38",05/06/2023
Delivery Units,Adults and Health,Other Agencies - Third Party P,0090592951,Evergreen Homecare Service Ltd,425.04,05/06/2023
Delivery Units,Adults and Health,Other Agencies - Third Party P,0090592955,Evergreen Homecare Service Ltd,480.70,05/06/2023
Delivery Units,Adults and Health,Other Agencies - Third Party P,0090592956,Evergreen Homecare Service Ltd,743.82,05/06/2023
Delivery Units,Adults and Health,Other Agencies - Third Party P,0090592957,Evergreen Homecare Service Ltd,"1,062.60",05/06/2023
Delivery Units,Adults and Health,Other Agencies - Third Party P,0090592958,Evergreen Homecare Service Ltd,561.66,05/06/2023
Delivery Units,Adults and Health,Other Agencies - Third Party P,0090592960,Evergreen Homecare Service Ltd,141.68,05/06/2023
Delivery Units,Adults and Health,Other Agencies - Third Party P,0090592961,Evergreen Homecare Service Ltd,70.84,05/06/2023
Delivery Units,Adults and Health,Other Agencies - Third Party P,0090592963,Evergreen Homecare Service Ltd,354.20,05/06/2023
Delivery Units,Adults and Health,Other Agencies - Third Party P,0090592964,Evergreen Homecare Service Ltd,465.52,05/06/2023
Delivery Units,Adults and Health,Other Agencies - Third Party P,0090592965,Evergreen Homecare Service Ltd,212.52,05/06/2023
Delivery Units,Adults and Health,Other Agencies - Third Party P,0090592966,Evergreen Homecare Service Ltd,495.88,05/06/2023
Delivery Units,Adults and Health,Other Agencies - Third Party P,0090592967,Evergreen Homecare Service Ltd,"1,283.38",05/06/2023
Delivery Units,Adults and Health,Other Agencies - Third Party P,0090592969,Evergreen Homecare Service Ltd,141.68,05/06/2023
Delivery Units,Adults and Health,Other Agencies - Third Party P,0090592971,Evergreen Homecare Service Ltd,141.68,05/06/2023
Delivery Units,Adults and Health,Other Agencies - Third Party P,0090592972,Evergreen Homecare Service Ltd,"1,283.38",05/06/2023
Delivery Units,Adults and Health,Other Agencies - Third Party P,0090592973,Evergreen Homecare Service Ltd,425.04,05/06/2023
Delivery Units,Adults and Health,Other Agencies - Third Party P,0090592977,Evergreen Homecare Service Ltd,480.70,05/06/2023
Delivery Units,Adults and Health,Other Agencies - Third Party P,0090592978,Evergreen Homecare Service Ltd,743.82,05/06/2023
Delivery Units,Adults and Health,Other Agencies - Third Party P,0090592979,Evergreen Homecare Service Ltd,561.66,05/06/2023
Delivery Units,Adults and Health,Other Agencies - Third Party P,0090592981,Evergreen Homecare Service Ltd,70.84,05/06/2023
Delivery Units,Adults and Health,Other Agencies - Third Party P,0090592982,Evergreen Homecare Service Ltd,50.60,05/06/2023
Delivery Units,Adults and Health,Other Agencies - Third Party P,0090592983,Evergreen Homecare Service Ltd,70.84,05/06/2023
Delivery Units,Adults and Health,Other Agencies - Third Party P,0090592985,Evergreen Homecare Service Ltd,354.20,05/06/2023
Delivery Units,Adults and Health,Other Agencies - Third Party P,0090592986,Evergreen Homecare Service Ltd,465.52,05/06/2023
Delivery Units,Adults and Health,Other Agencies - Third Party P,0090592987,Evergreen Homecare Service Ltd,212.52,05/06/2023
Delivery Units,Adults and Health,Other Agencies - Third Party P,0090592988,Evergreen Homecare Service Ltd,495.88,05/06/2023
Delivery Units,Adults and Health,Other Agencies - Third Party P,0090592989,Evergreen Homecare Service Ltd,"1,283.38",05/06/2023
Delivery Units,Adults and Health,Other Agencies - Third Party P,0090592991,Evergreen Homecare Service Ltd,141.68,05/06/2023
Delivery Units,Adults and Health,Other Agencies - Third Party P,0090592993,Evergreen Homecare Service Ltd,141.68,05/06/2023
Delivery Units,Adults and Health,Other Agencies - Third Party P,0090592994,Evergreen Homecare Service Ltd,"1,323.86",05/06/2023
Delivery Units,Adults and Health,Other Agencies - Third Party P,0090592995,Evergreen Homecare Service Ltd,430.10,05/06/2023
Delivery Units,Adults and Health,Other Agencies - Third Party P,0090592998,Evergreen Homecare Service Ltd,480.70,05/06/2023
Delivery Units,Adults and Health,Other Agencies - Third Party P,0090592999,Evergreen Homecare Service Ltd,743.82,05/06/2023
Delivery Units,Adults and Health,Other Agencies - Third Party P,0090593000,Evergreen Homecare Service Ltd,561.66,05/06/2023
Delivery Units,Adults and Health,Other Agencies - Third Party P,0090593002,Evergreen Homecare Service Ltd,106.26,05/06/2023
Delivery Units,Adults and Health,Other Agencies - Third Party P,0090593003,Evergreen Homecare Service Ltd,70.84,05/06/2023
Delivery Units,Adults and Health,Other Agencies - Third Party P,0090593005,Evergreen Homecare Service Ltd,374.44,05/06/2023
Delivery Units,Adults and Health,Other Agencies - Third Party P,0090593006,Evergreen Homecare Service Ltd,465.52,05/06/2023
Delivery Units,Adults and Health,Other Agencies - Third Party P,0090593007,Evergreen Homecare Service Ltd,212.52,05/06/2023
Delivery Units,Adults and Health,Other Agencies - Third Party P,0090593008,Evergreen Homecare Service Ltd,495.88,05/06/2023
Delivery Units,Adults and Health,Other Agencies - Third Party P,0090593009,Evergreen Homecare Service Ltd,"1,283.38",05/06/2023
Delivery Units,Adults and Health,Other Agencies - Third Party P,0090593011,Evergreen Homecare Service Ltd,141.68,05/06/2023
Delivery Units,Adults and Health,Other Agencies - Third Party P,0090593013,Evergreen Homecare Service Ltd,141.68,05/06/2023
Delivery Units,Adults and Health,Other Agencies - Third Party P,0090593014,Evergreen Homecare Service Ltd,"1,283.38",05/06/2023
Delivery Units,Adults and Health,Other Agencies - Third Party P,0090593015,Evergreen Homecare Service Ltd,425.04,05/06/2023
Delivery Units,Adults and Health,Other Agencies - Third Party P,0090593018,Evergreen Homecare Service Ltd,"1,283.38",05/06/2023
Delivery Units,Adults and Health,Other Agencies - Third Party P,0090593019,Evergreen Homecare Service Ltd,480.70,05/06/2023
Delivery Units,Adults and Health,Other Agencies - Third Party P,0090593020,The Cedars Home Care,130.76,05/06/2023
Delivery Units,Adults and Health,Other Agencies - Third Party P,0090593021,The Cedars Home Care,350.62,05/06/2023
Delivery Units,Adults and Health,Other Agencies - Third Party P,0090593023,The Cedars Home Care,537.05,05/06/2023
Delivery Units,Adults and Health,Other Agencies - Third Party P,0090593025,The Cedars Home Care,228.83,05/06/2023
Delivery Units,Adults and Health,Other Agencies - Third Party P,0090593026,The Cedars Home Care,275.16,05/06/2023
Delivery Units,Adults and Health,Other Agencies - Third Party P,0090593027,The Cedars Home Care,952.68,05/06/2023
Delivery Units,Adults and Health,Other Agencies - Third Party P,0090593028,The Cedars Home Care,58.47,05/06/2023
Delivery Units,Adults and Health,Other Agencies - Third Party P,0090593029,The Cedars Home Care,95.27,05/06/2023
Delivery Units,Adults and Health,Other Agencies - Third Party P,0090593030,The Cedars Home Care,127.02,05/06/2023
Delivery Units,Adults and Health,Other Agencies - Third Party P,0090593031,The Cedars Home Care,196.14,05/06/2023
Delivery Units,Adults and Health,Other Agencies - Third Party P,0090593032,The Cedars Home Care,18.68,05/06/2023
Delivery Units,Adults and Health,Other Agencies - Third Party P,0090593033,The Cedars Home Care,"3,138.24",05/06/2023
Delivery Units,Adults and Health,Other Agencies - Third Party P,0090593034,The Cedars Home Care,196.14,05/06/2023
Delivery Units,Adults and Health,Other Agencies - Third Party P,0090593035,The Cedars Home Care,23.35,05/06/2023
Delivery Units,Adults and Health,Other Agencies - Third Party P,0090593037,The Cedars Home Care,312.89,05/06/2023
Delivery Units,Adults and Health,Other Agencies - Third Party P,0090593038,The Cedars Home Care,378.27,05/06/2023
Delivery Units,Adults and Health,Other Agencies - Third Party P,0090593039,The Cedars Home Care,28.02,05/06/2023
Delivery Units,Adults and Health,Other Agencies - Third Party P,0090593041,The Cedars Home Care,14.01,05/06/2023
Delivery Units,Adults and Health,Other Agencies - Third Party P,0090593042,The Cedars Home Care,228.83,05/06/2023
Delivery Units,Adults and Health,Other Agencies - Third Party P,0090593043,The Cedars Home Care,943.34,05/06/2023
Delivery Units,Adults and Health,Other Agencies - Third Party P,0090593044,The Cedars Home Care,56.04,05/06/2023
Delivery Units,Adults and Health,Other Agencies - Third Party P,0090593047,The Cedars Home Care,"1,176.84",05/06/2023
Delivery Units,Adults and Health,Other Agencies - Third Party P,0090593049,The Cedars Home Care,"2,773.98",05/06/2023
Delivery Units,Adults and Health,Other Agencies - Third Party P,0090593050,The Cedars Home Care,719.18,05/06/2023
Delivery Units,Adults and Health,Other Agencies - Third Party P,0090593051,The Cedars Home Care,162.89,05/06/2023
Delivery Units,Adults and Health,Other Agencies - Third Party P,0090593052,The Cedars Home Care,172.79,05/06/2023
Delivery Units,Adults and Health,Other Agencies - Third Party P,0090593054,The Cedars Home Care,55.67,05/06/2023
Delivery Units,Adults and Health,Other Agencies - Third Party P,0090593055,The Cedars Home Care,112.08,05/06/2023
Delivery Units,Adults and Health,Other Agencies - Third Party P,0090593057,The Cedars Home Care,273.66,05/06/2023
Delivery Units,Adults and Health,Other Agencies - Third Party P,0090593059,The Cedars Home Care,245.64,05/06/2023
Delivery Units,Adults and Health,Other Agencies - Third Party P,0090593061,The Cedars Home Care,98.07,05/06/2023
Delivery Units,Adults and Health,Other Agencies - Third Party P,0090593064,The Cedars Home Care,149.44,05/06/2023
Delivery Units,Adults and Health,Other Agencies - Third Party P,0090593065,The Cedars Home Care,484.37,05/06/2023
Delivery Units,Adults and Health,Other Agencies - Third Party P,0090593066,The Cedars Home Care,98.40,05/06/2023
Delivery Units,Adults and Health,Other Agencies - Third Party P,0090593088,Rivendell Care & Support,"3,053.52",05/06/2023
Delivery Units,Adults and Health,Other Agencies - Third Party P,0090593089,Rivendell Care & Support,"2,283.90",05/06/2023
Delivery Units,Adults and Health,Other Agencies - Third Party P,0090593090,Rivendell Care & Support,"1,909.32",05/06/2023
Delivery Units,Adults and Health,Other Agencies - Third Party P,0090593094,Metro Homecare Ltd,40.59,05/06/2023
Delivery Units,Adults and Health,Other Agencies - Third Party P,0090593095,Metro Homecare Ltd,333.74,05/06/2023
Delivery Units,Adults and Health,Other Agencies - Third Party P,0090593097,Metro Homecare Ltd,94.71,05/06/2023
Delivery Units,Adults and Health,Other Agencies - Third Party P,0090593098,Metro Homecare Ltd,284.13,05/06/2023
Delivery Units,Adults and Health,Other Agencies - Third Party P,0090593100,Metro Homecare Ltd,315.70,05/06/2023
Delivery Units,Adults and Health,Other Agencies - Third Party P,0090593103,Metro Homecare Ltd,911.02,05/06/2023
Delivery Units,Adults and Health,Other Agencies - Third Party P,0090593104,Metro Homecare Ltd,189.42,05/06/2023
Delivery Units,Adults and Health,Other Agencies - Third Party P,0090593106,Metro Homecare Ltd,378.84,05/06/2023
Delivery Units,Adults and Health,Other Agencies - Third Party P,0090593107,Metro Homecare Ltd,311.19,05/06/2023
Delivery Units,Adults and Health,Other Agencies - Third Party P,0090593111,Metro Homecare Ltd,220.99,05/06/2023
Delivery Units,Adults and Health,Other Agencies - Third Party P,0090593113,Metro Homecare Ltd,757.68,05/06/2023
Delivery Units,Adults and Health,Other Agencies - Third Party P,0090593118,Metro Homecare Ltd,40.59,05/06/2023
Delivery Units,Adults and Health,Other Agencies - Third Party P,0090593119,Metro Homecare Ltd,333.74,05/06/2023
Delivery Units,Adults and Health,Other Agencies - Third Party P,0090593121,Metro Homecare Ltd,94.71,05/06/2023
Delivery Units,Adults and Health,Other Agencies - Third Party P,0090593122,Metro Homecare Ltd,284.13,05/06/2023
Delivery Units,Adults and Health,Other Agencies - Third Party P,0090593124,Metro Homecare Ltd,315.70,05/06/2023
Delivery Units,Adults and Health,Other Agencies - Third Party P,0090593127,Metro Homecare Ltd,911.02,05/06/2023
Delivery Units,Adults and Health,Other Agencies - Third Party P,0090593128,Metro Homecare Ltd,189.42,05/06/2023
Delivery Units,Adults and Health,Other Agencies - Third Party P,0090593130,Metro Homecare Ltd,378.84,05/06/2023
Delivery Units,Adults and Health,Other Agencies - Third Party P,0090593131,Metro Homecare Ltd,333.74,05/06/2023
Delivery Units,Adults and Health,Other Agencies - Third Party P,0090593135,Metro Homecare Ltd,220.99,05/06/2023
Delivery Units,Adults and Health,Other Agencies - Third Party P,0090593137,Metro Homecare Ltd,757.68,05/06/2023
Delivery Units,Adults and Health,Other Agencies - Third Party P,0090593142,Metro Homecare Ltd,40.59,05/06/2023
Delivery Units,Adults and Health,Other Agencies - Third Party P,0090593143,Metro Homecare Ltd,333.74,05/06/2023
Delivery Units,Adults and Health,Other Agencies - Third Party P,0090593145,Metro Homecare Ltd,94.71,05/06/2023
Delivery Units,Adults and Health,Other Agencies - Third Party P,0090593146,Metro Homecare Ltd,284.13,05/06/2023
Delivery Units,Adults and Health,Other Agencies - Third Party P,0090593148,Metro Homecare Ltd,315.70,05/06/2023
Delivery Units,Adults and Health,Other Agencies - Third Party P,0090593151,Metro Homecare Ltd,911.02,05/06/2023
Delivery Units,Adults and Health,Other Agencies - Third Party P,0090593152,Metro Homecare Ltd,189.42,05/06/2023
Delivery Units,Adults and Health,Other Agencies - Third Party P,0090593154,Metro Homecare Ltd,378.84,05/06/2023
Delivery Units,Adults and Health,Other Agencies - Third Party P,0090593155,Metro Homecare Ltd,333.74,05/06/2023
Delivery Units,Adults and Health,Other Agencies - Third Party P,0090593159,Metro Homecare Ltd,220.99,05/06/2023
Delivery Units,Adults and Health,Other Agencies - Third Party P,0090593161,Metro Homecare Ltd,757.68,05/06/2023
Delivery Units,Adults and Health,Other Agencies - Third Party P,0090593164,Metro Homecare Ltd,284.13,05/06/2023
Delivery Units,Adults and Health,Other Agencies - Third Party P,0090593167,Metro Homecare Ltd,40.59,05/06/2023
Delivery Units,Adults and Health,Other Agencies - Third Party P,0090593168,Metro Homecare Ltd,333.74,05/06/2023
Delivery Units,Adults and Health,Other Agencies - Third Party P,0090593170,Metro Homecare Ltd,94.71,05/06/2023
Delivery Units,Adults and Health,Other Agencies - Third Party P,0090593171,Metro Homecare Ltd,284.13,05/06/2023
Delivery Units,Adults and Health,Other Agencies - Third Party P,0090593173,Metro Homecare Ltd,315.70,05/06/2023
Delivery Units,Adults and Health,Other Agencies - Third Party P,0090593176,Metro Homecare Ltd,911.02,05/06/2023
Delivery Units,Adults and Health,Other Agencies - Third Party P,0090593177,Metro Homecare Ltd,189.42,05/06/2023
Delivery Units,Adults and Health,Other Agencies - Third Party P,0090593179,Metro Homecare Ltd,378.84,05/06/2023
Delivery Units,Adults and Health,Other Agencies - Third Party P,0090593180,Metro Homecare Ltd,333.74,05/06/2023
Delivery Units,Adults and Health,Other Agencies - Third Party P,0090593184,Metro Homecare Ltd,220.99,05/06/2023
Delivery Units,Adults and Health,Other Agencies - Third Party P,0090593186,Metro Homecare Ltd,757.68,05/06/2023
Delivery Units,Adults and Health,Other Agencies - Third Party P,0090593190,Metro Homecare Ltd,284.13,05/06/2023
Delivery Units,Adults and Health,Other Agencies - Third Party P,0090593191,Metro Homecare Ltd,99.22,05/06/2023
Delivery Units,Adults and Health,Other Agencies - Third Party P,0090593215,City Homecare Ltd,327.25,05/06/2023
Delivery Units,Adults and Health,Other Agencies - Third Party P,0090593216,City Homecare Ltd,161.50,05/06/2023
Delivery Units,Adults and Health,Other Agencies - Third Party P,0090593219,City Homecare Ltd,301.75,05/06/2023
Delivery Units,Adults and Health,Other Agencies - Third Party P,0090593221,City Homecare Ltd,535.50,05/06/2023
Delivery Units,Adults and Health,Other Agencies - Third Party P,0090593223,City Homecare Ltd,119.00,05/06/2023
Delivery Units,Adults and Health,Other Agencies - Third Party P,0090593224,City Homecare Ltd,178.50,05/06/2023
Delivery Units,Adults and Health,Other Agencies - Third Party P,0090593225,City Homecare Ltd,505.75,05/06/2023
Delivery Units,Adults and Health,Other Agencies - Third Party P,0090593227,City Homecare Ltd,195.50,05/06/2023
Delivery Units,Adults and Health,Other Agencies - Third Party P,0090593228,City Homecare Ltd,178.50,05/06/2023
Delivery Units,Adults and Health,Other Agencies - Third Party P,0090593233,City Homecare Ltd,327.25,05/06/2023
Delivery Units,Adults and Health,Other Agencies - Third Party P,0090593234,City Homecare Ltd,199.75,05/06/2023
Delivery Units,Adults and Health,Other Agencies - Third Party P,0090593237,City Homecare Ltd,301.75,05/06/2023
Delivery Units,Adults and Health,Other Agencies - Third Party P,0090593239,City Homecare Ltd,535.50,05/06/2023
Delivery Units,Adults and Health,Other Agencies - Third Party P,0090593241,City Homecare Ltd,119.00,05/06/2023
Delivery Units,Adults and Health,Other Agencies - Third Party P,0090593242,City Homecare Ltd,178.50,05/06/2023
Delivery Units,Adults and Health,Other Agencies - Third Party P,0090593243,City Homecare Ltd,505.75,05/06/2023
Delivery Units,Adults and Health,Other Agencies - Third Party P,0090593245,City Homecare Ltd,195.50,05/06/2023
Delivery Units,Adults and Health,Other Agencies - Third Party P,0090593246,City Homecare Ltd,178.50,05/06/2023
Delivery Units,Adults and Health,Other Agencies - Third Party P,0090593251,City Homecare Ltd,327.25,05/06/2023
Delivery Units,Adults and Health,Other Agencies - Third Party P,0090593252,City Homecare Ltd,199.75,05/06/2023
Delivery Units,Adults and Health,Other Agencies - Third Party P,0090593255,City Homecare Ltd,301.75,05/06/2023
Delivery Units,Adults and Health,Other Agencies - Third Party P,0090593257,City Homecare Ltd,535.50,05/06/2023
Delivery Units,Adults and Health,Other Agencies - Third Party P,0090593259,City Homecare Ltd,119.00,05/06/2023
Delivery Units,Adults and Health,Other Agencies - Third Party P,0090593260,City Homecare Ltd,178.50,05/06/2023
Delivery Units,Adults and Health,Other Agencies - Third Party P,0090593261,City Homecare Ltd,505.75,05/06/2023
Delivery Units,Adults and Health,Other Agencies - Third Party P,0090593263,City Homecare Ltd,195.50,05/06/2023
Delivery Units,Adults and Health,Other Agencies - Third Party P,0090593264,City Homecare Ltd,178.50,05/06/2023
Delivery Units,Adults and Health,Other Agencies - Third Party P,0090593269,City Homecare Ltd,327.25,05/06/2023
Delivery Units,Adults and Health,Other Agencies - Third Party P,0090593270,City Homecare Ltd,208.25,05/06/2023
Delivery Units,Adults and Health,Other Agencies - Third Party P,0090593273,City Homecare Ltd,301.75,05/06/2023
Delivery Units,Adults and Health,Other Agencies - Third Party P,0090593275,City Homecare Ltd,535.50,05/06/2023
Delivery Units,Adults and Health,Other Agencies - Third Party P,0090593277,City Homecare Ltd,119.00,05/06/2023
Delivery Units,Adults and Health,Other Agencies - Third Party P,0090593278,City Homecare Ltd,178.50,05/06/2023
Delivery Units,Adults and Health,Other Agencies - Third Party P,0090593279,City Homecare Ltd,505.75,05/06/2023
Delivery Units,Adults and Health,Other Agencies - Third Party P,0090593281,City Homecare Ltd,195.50,05/06/2023
Delivery Units,Adults and Health,Other Agencies - Third Party P,0090593282,City Homecare Ltd,178.50,05/06/2023
Delivery Units,Adults and Health,Other Agencies - Third Party P,0090593388,I-Care Recruitment Services Ltd,920.71,05/06/2023
Delivery Units,Adults and Health,Other Agencies - Third Party P,0090593389,I-Care Recruitment Services Ltd,526.12,05/06/2023
Delivery Units,Adults and Health,Other Agencies - Third Party P,0090593390,I-Care Recruitment Services Ltd,920.71,05/06/2023
Delivery Units,Adults and Health,Other Agencies - Third Party P,0090593391,I-Care Recruitment Services Ltd,"17,722.00",05/06/2023
Delivery Units,Adults and Health,Other Agencies - Third Party P,0090593393,Oaktree Homecare Services Ltd,169.83,05/06/2023
Delivery Units,Adults and Health,Other Agencies - Third Party P,0090593394,Oaktree Homecare Services Ltd,250.03,05/06/2023
Delivery Units,Adults and Health,Other Agencies - Third Party P,0090593395,Oaktree Homecare Services Ltd,717.06,05/06/2023
Delivery Units,Adults and Health,Other Agencies - Third Party P,0090593396,Oaktree Homecare Services Ltd,117.94,05/06/2023
Delivery Units,Adults and Health,Other Agencies - Third Party P,0090593397,Oaktree Homecare Services Ltd,132.09,05/06/2023
Delivery Units,Adults and Health,Other Agencies - Third Party P,0090593401,Oaktree Homecare Services Ltd,47.18,05/06/2023
Delivery Units,Adults and Health,Other Agencies - Third Party P,0090593402,Oaktree Homecare Services Ltd,231.16,05/06/2023
Delivery Units,Adults and Health,Other Agencies - Third Party P,0090593403,Oaktree Homecare Services Ltd,297.20,05/06/2023
Delivery Units,Adults and Health,Other Agencies - Third Party P,0090593404,Oaktree Homecare Services Ltd,396.27,05/06/2023
Delivery Units,Adults and Health,Other Agencies - Third Party P,0090593406,Oaktree Homecare Services Ltd,330.23,05/06/2023
Delivery Units,Adults and Health,Other Agencies - Third Party P,0090593407,Oaktree Homecare Services Ltd,169.83,05/06/2023
Delivery Units,Adults and Health,Other Agencies - Third Party P,0090593408,Oaktree Homecare Services Ltd,254.75,05/06/2023
Delivery Units,Adults and Health,Other Agencies - Third Party P,0090593409,Oaktree Homecare Services Ltd,268.90,05/06/2023
Delivery Units,Adults and Health,Other Agencies - Third Party P,0090593412,Oaktree Homecare Services Ltd,594.41,05/06/2023
Delivery Units,Adults and Health,Other Agencies - Third Party P,0090593414,Oaktree Homecare Services Ltd,66.05,05/06/2023
Delivery Units,Adults and Health,Other Agencies - Third Party P,0090593415,Oaktree Homecare Services Ltd,330.23,05/06/2023
Delivery Units,Adults and Health,Other Agencies - Third Party P,0090593416,Oaktree Homecare Services Ltd,66.05,05/06/2023
Delivery Units,Adults and Health,Other Agencies - Third Party P,0090593417,Oaktree Homecare Services Ltd,198.14,05/06/2023
Delivery Units,Adults and Health,Other Agencies - Third Party P,0090593418,Oaktree Homecare Services Ltd,28.31,05/06/2023
Delivery Units,Adults and Health,Other Agencies - Third Party P,0090593419,Oaktree Homecare Services Ltd,264.18,05/06/2023
Delivery Units,Adults and Health,Other Agencies - Third Party P,0090593422,Oaktree Homecare Services Ltd,268.90,05/06/2023
Delivery Units,Adults and Health,Other Agencies - Third Party P,0090593426,Oaktree Homecare Services Ltd,165.11,05/06/2023
Delivery Units,Adults and Health,Other Agencies - Third Party P,0090593431,Oaktree Homecare Services Ltd,169.83,05/06/2023
Delivery Units,Adults and Health,Other Agencies - Third Party P,0090593432,Oaktree Homecare Services Ltd,250.03,05/06/2023
Delivery Units,Adults and Health,Other Agencies - Third Party P,0090593433,Oaktree Homecare Services Ltd,717.06,05/06/2023
Delivery Units,Adults and Health,Other Agencies - Third Party P,0090593434,Oaktree Homecare Services Ltd,117.94,05/06/2023
Delivery Units,Adults and Health,Other Agencies - Third Party P,0090593435,Oaktree Homecare Services Ltd,132.09,05/06/2023
Delivery Units,Adults and Health,Other Agencies - Third Party P,0090593439,Oaktree Homecare Services Ltd,47.18,05/06/2023
Delivery Units,Adults and Health,Other Agencies - Third Party P,0090593440,Oaktree Homecare Services Ltd,231.16,05/06/2023
Delivery Units,Adults and Health,Other Agencies - Third Party P,0090593441,Oaktree Homecare Services Ltd,297.20,05/06/2023
Delivery Units,Adults and Health,Other Agencies - Third Party P,0090593442,Oaktree Homecare Services Ltd,150.96,05/06/2023
Delivery Units,Adults and Health,Other Agencies - Third Party P,0090593444,Oaktree Homecare Services Ltd,330.23,05/06/2023
Delivery Units,Adults and Health,Other Agencies - Third Party P,0090593445,Oaktree Homecare Services Ltd,169.83,05/06/2023
Delivery Units,Adults and Health,Other Agencies - Third Party P,0090593446,Oaktree Homecare Services Ltd,254.75,05/06/2023
Delivery Units,Adults and Health,Other Agencies - Third Party P,0090593447,Oaktree Homecare Services Ltd,273.62,05/06/2023
Delivery Units,Adults and Health,Other Agencies - Third Party P,0090593450,Oaktree Homecare Services Ltd,594.41,05/06/2023
Delivery Units,Adults and Health,Other Agencies - Third Party P,0090593452,Oaktree Homecare Services Ltd,66.05,05/06/2023
Delivery Units,Adults and Health,Other Agencies - Third Party P,0090593453,Oaktree Homecare Services Ltd,330.23,05/06/2023
Delivery Units,Adults and Health,Other Agencies - Third Party P,0090593454,Oaktree Homecare Services Ltd,61.33,05/06/2023
Delivery Units,Adults and Health,Other Agencies - Third Party P,0090593455,Oaktree Homecare Services Ltd,188.70,05/06/2023
Delivery Units,Adults and Health,Other Agencies - Third Party P,0090593456,Oaktree Homecare Services Ltd,268.90,05/06/2023
Delivery Units,Adults and Health,Other Agencies - Third Party P,0090593460,Oaktree Homecare Services Ltd,165.11,05/06/2023
Delivery Units,Adults and Health,Other Agencies - Third Party P,0090593469,Oaktree Homecare Services Ltd,169.83,05/06/2023
Delivery Units,Adults and Health,Other Agencies - Third Party P,0090593470,Oaktree Homecare Services Ltd,250.03,05/06/2023
Delivery Units,Adults and Health,Other Agencies - Third Party P,0090593471,Oaktree Homecare Services Ltd,717.06,05/06/2023
Delivery Units,Adults and Health,Other Agencies - Third Party P,0090593472,Oaktree Homecare Services Ltd,117.94,05/06/2023
Delivery Units,Adults and Health,Other Agencies - Third Party P,0090593473,Oaktree Homecare Services Ltd,132.09,05/06/2023
Delivery Units,Adults and Health,Other Agencies - Third Party P,0090593477,Oaktree Homecare Services Ltd,47.18,05/06/2023
Delivery Units,Adults and Health,Other Agencies - Third Party P,0090593478,Oaktree Homecare Services Ltd,231.16,05/06/2023
Delivery Units,Adults and Health,Other Agencies - Third Party P,0090593479,Oaktree Homecare Services Ltd,297.20,05/06/2023
Delivery Units,Adults and Health,Other Agencies - Third Party P,0090593481,Oaktree Homecare Services Ltd,330.23,05/06/2023
Delivery Units,Adults and Health,Other Agencies - Third Party P,0090593482,Oaktree Homecare Services Ltd,169.83,05/06/2023
Delivery Units,Adults and Health,Other Agencies - Third Party P,0090593483,Oaktree Homecare Services Ltd,254.75,05/06/2023
Delivery Units,Adults and Health,Other Agencies - Third Party P,0090593484,Oaktree Homecare Services Ltd,268.90,05/06/2023
Delivery Units,Adults and Health,Other Agencies - Third Party P,0090593487,Oaktree Homecare Services Ltd,594.41,05/06/2023
Delivery Units,Adults and Health,Other Agencies - Third Party P,0090593489,Oaktree Homecare Services Ltd,66.05,05/06/2023
Delivery Units,Adults and Health,Other Agencies - Third Party P,0090593490,Oaktree Homecare Services Ltd,330.23,05/06/2023
Delivery Units,Adults and Health,Other Agencies - Third Party P,0090593491,Oaktree Homecare Services Ltd,61.33,05/06/2023
Delivery Units,Adults and Health,Other Agencies - Third Party P,0090593492,Oaktree Homecare Services Ltd,165.11,05/06/2023
Delivery Units,Adults and Health,Other Agencies - Third Party P,0090593499,Oaktree Homecare Services Ltd,99.07,05/06/2023
Delivery Units,Adults and Health,Other Agencies - Third Party P,0090593501,Oaktree Homecare Services Ltd,169.83,05/06/2023
Delivery Units,Adults and Health,Other Agencies - Third Party P,0090593502,Oaktree Homecare Services Ltd,250.03,05/06/2023
Delivery Units,Adults and Health,Other Agencies - Third Party P,0090593503,Oaktree Homecare Services Ltd,717.06,05/06/2023
Delivery Units,Adults and Health,Other Agencies - Third Party P,0090593504,Oaktree Homecare Services Ltd,117.94,05/06/2023
Delivery Units,Adults and Health,Other Agencies - Third Party P,0090593505,Oaktree Homecare Services Ltd,132.09,05/06/2023
Delivery Units,Adults and Health,Other Agencies - Third Party P,0090593509,Oaktree Homecare Services Ltd,47.18,05/06/2023
Delivery Units,Adults and Health,Other Agencies - Third Party P,0090593510,Oaktree Homecare Services Ltd,231.16,05/06/2023
Delivery Units,Adults and Health,Other Agencies - Third Party P,0090593511,Oaktree Homecare Services Ltd,297.20,05/06/2023
Delivery Units,Adults and Health,Other Agencies - Third Party P,0090593513,Oaktree Homecare Services Ltd,330.23,05/06/2023
Delivery Units,Adults and Health,Other Agencies - Third Party P,0090593514,Oaktree Homecare Services Ltd,169.83,05/06/2023
Delivery Units,Adults and Health,Other Agencies - Third Party P,0090593515,Oaktree Homecare Services Ltd,254.75,05/06/2023
Delivery Units,Adults and Health,Other Agencies - Third Party P,0090593516,Oaktree Homecare Services Ltd,268.90,05/06/2023
Delivery Units,Adults and Health,Other Agencies - Third Party P,0090593519,Oaktree Homecare Services Ltd,594.41,05/06/2023
Delivery Units,Adults and Health,Other Agencies - Third Party P,0090593521,Oaktree Homecare Services Ltd,66.05,05/06/2023
Delivery Units,Adults and Health,Other Agencies - Third Party P,0090593522,Oaktree Homecare Services Ltd,330.23,05/06/2023
Delivery Units,Adults and Health,Other Agencies - Third Party P,0090593523,Oaktree Homecare Services Ltd,61.33,05/06/2023
Delivery Units,Adults and Health,Other Agencies - Third Party P,0090593534,Oaktree Homecare Services Ltd,221.72,05/06/2023
Delivery Units,Adults and Health,Other Agencies - Third Party P,0090593535,Oaktree Homecare Services Ltd,481.19,05/06/2023
Delivery Units,Adults and Health,Other Agencies - Third Party P,0090593643,St Georges Home Care ltd,214.90,05/06/2023
Delivery Units,Adults and Health,Other Agencies - Third Party P,0090593646,St Georges Home Care ltd,214.90,05/06/2023
Delivery Units,Adults and Health,Other Agencies - Third Party P,0090593647,St Georges Home Care ltd,92.12,05/06/2023
Delivery Units,Adults and Health,Other Agencies - Third Party P,0090593648,St Georges Home Care ltd,214.90,05/06/2023
Delivery Units,Adults and Health,Other Agencies - Third Party P,0090593650,St Georges Home Care ltd,92.12,05/06/2023
Delivery Units,Adults and Health,Other Agencies - Third Party P,0090593652,St Georges Home Care ltd,214.90,05/06/2023
Delivery Units,Adults and Health,Other Agencies - Third Party P,0090593654,Social Care Consortium Limited,330.30,05/06/2023
Delivery Units,Adults and Health,Other Agencies - Third Party P,0090593658,Social Care Consortium Limited,115.61,05/06/2023
Delivery Units,Adults and Health,Other Agencies - Third Party P,0090593660,Social Care Consortium Limited,242.22,05/06/2023
Delivery Units,Adults and Health,Other Agencies - Third Party P,0090593663,Social Care Consortium Limited,154.14,05/06/2023
Delivery Units,Adults and Health,Other Agencies - Third Party P,0090593665,Social Care Consortium Limited,308.28,05/06/2023
Delivery Units,Adults and Health,Other Agencies - Third Party P,0090593666,Social Care Consortium Limited,770.70,05/06/2023
Delivery Units,Adults and Health,Other Agencies - Third Party P,0090593669,Social Care Consortium Limited,269.75,05/06/2023
Delivery Units,Adults and Health,Other Agencies - Third Party P,0090593670,Social Care Consortium Limited,561.51,05/06/2023
Delivery Units,Adults and Health,Other Agencies - Third Party P,0090593671,Social Care Consortium Limited,423.88,05/06/2023
Delivery Units,Adults and Health,Other Agencies - Third Party P,0090593672,Social Care Consortium Limited,82.57,05/06/2023
Delivery Units,Adults and Health,Other Agencies - Third Party P,0090593673,Social Care Consortium Limited,121.11,05/06/2023
Delivery Units,Adults and Health,Other Agencies - Third Party P,0090593675,Social Care Consortium Limited,231.21,05/06/2023
Delivery Units,Adults and Health,Other Agencies - Third Party P,0090593676,Social Care Consortium Limited,759.69,05/06/2023
Delivery Units,Adults and Health,Other Agencies - Third Party P,0090593677,Social Care Consortium Limited,335.80,05/06/2023
Delivery Units,Adults and Health,Other Agencies - Third Party P,0090593679,Social Care Consortium Limited,847.77,05/06/2023
Delivery Units,Adults and Health,Other Agencies - Third Party P,0090593681,Social Care Consortium Limited,330.30,05/06/2023
Delivery Units,Adults and Health,Other Agencies - Third Party P,0090593685,Social Care Consortium Limited,115.61,05/06/2023
Delivery Units,Adults and Health,Other Agencies - Third Party P,0090593687,Social Care Consortium Limited,242.22,05/06/2023
Delivery Units,Adults and Health,Other Agencies - Third Party P,0090593690,Social Care Consortium Limited,154.14,05/06/2023
Delivery Units,Adults and Health,Other Agencies - Third Party P,0090593692,Social Care Consortium Limited,308.28,05/06/2023
Delivery Units,Adults and Health,Other Agencies - Third Party P,0090593693,Social Care Consortium Limited,770.70,05/06/2023
Delivery Units,Adults and Health,Other Agencies - Third Party P,0090593696,Social Care Consortium Limited,269.75,05/06/2023
Delivery Units,Adults and Health,Other Agencies - Third Party P,0090593697,Social Care Consortium Limited,561.51,05/06/2023
Delivery Units,Adults and Health,Other Agencies - Third Party P,0090593698,Social Care Consortium Limited,82.58,05/06/2023
Delivery Units,Adults and Health,Other Agencies - Third Party P,0090593699,Social Care Consortium Limited,121.11,05/06/2023
Delivery Units,Adults and Health,Other Agencies - Third Party P,0090593701,Social Care Consortium Limited,231.21,05/06/2023
Delivery Units,Adults and Health,Other Agencies - Third Party P,0090593702,Social Care Consortium Limited,759.69,05/06/2023
Delivery Units,Adults and Health,Other Agencies - Third Party P,0090593703,Social Care Consortium Limited,522.97,05/06/2023
Delivery Units,Adults and Health,Other Agencies - Third Party P,0090593705,Social Care Consortium Limited,847.77,05/06/2023
Delivery Units,Adults and Health,Other Agencies - Third Party P,0090593707,Social Care Consortium Limited,330.30,05/06/2023
Delivery Units,Adults and Health,Other Agencies - Third Party P,0090593712,Social Care Consortium Limited,242.22,05/06/2023
Delivery Units,Adults and Health,Other Agencies - Third Party P,0090593715,Social Care Consortium Limited,154.14,05/06/2023
Delivery Units,Adults and Health,Other Agencies - Third Party P,0090593717,Social Care Consortium Limited,308.28,05/06/2023
Delivery Units,Adults and Health,Other Agencies - Third Party P,0090593718,Social Care Consortium Limited,770.70,05/06/2023
Delivery Units,Adults and Health,Other Agencies - Third Party P,0090593721,Social Care Consortium Limited,269.75,05/06/2023
Delivery Units,Adults and Health,Other Agencies - Third Party P,0090593722,Social Care Consortium Limited,561.51,05/06/2023
Delivery Units,Adults and Health,Other Agencies - Third Party P,0090593723,Social Care Consortium Limited,423.88,05/06/2023
Delivery Units,Adults and Health,Other Agencies - Third Party P,0090593724,Social Care Consortium Limited,82.58,05/06/2023
Delivery Units,Adults and Health,Other Agencies - Third Party P,0090593725,Social Care Consortium Limited,121.11,05/06/2023
Delivery Units,Adults and Health,Other Agencies - Third Party P,0090593727,Social Care Consortium Limited,231.21,05/06/2023
Delivery Units,Adults and Health,Other Agencies - Third Party P,0090593729,Social Care Consortium Limited,759.69,05/06/2023
Delivery Units,Adults and Health,Other Agencies - Third Party P,0090593730,Social Care Consortium Limited,522.97,05/06/2023
Delivery Units,Adults and Health,Other Agencies - Third Party P,0090593732,Social Care Consortium Limited,847.77,05/06/2023
Delivery Units,Adults and Health,Other Agencies - Third Party P,0090593806,Servesoul Limited,267.26,05/06/2023
Delivery Units,Adults and Health,Other Agencies - Third Party P,0090593808,Servesoul Limited,133.63,05/06/2023
Delivery Units,Adults and Health,Other Agencies - Third Party P,0090593810,Servesoul Limited,501.11,05/06/2023
Delivery Units,Adults and Health,Other Agencies - Third Party P,0090593811,Servesoul Limited,133.63,05/06/2023
Delivery Units,Adults and Health,Other Agencies - Third Party P,0090593812,Servesoul Limited,319.76,05/06/2023
Delivery Units,Adults and Health,Other Agencies - Third Party P,0090593813,Servesoul Limited,200.45,05/06/2023
Delivery Units,Adults and Health,Other Agencies - Third Party P,0090593814,Servesoul Limited,672.92,05/06/2023
Delivery Units,Adults and Health,Other Agencies - Third Party P,0090593815,Servesoul Limited,"2,099.71",05/06/2023
Delivery Units,Adults and Health,Other Agencies - Third Party P,0090593816,Servesoul Limited,133.63,05/06/2023
Delivery Units,Adults and Health,Other Agencies - Third Party P,0090593817,Servesoul Limited,57.27,05/06/2023
Delivery Units,Adults and Health,Other Agencies - Third Party P,0090593820,Servesoul Limited,152.72,05/06/2023
Delivery Units,Adults and Health,Other Agencies - Third Party P,0090593821,Servesoul Limited,267.26,05/06/2023
Delivery Units,Adults and Health,Other Agencies - Third Party P,0090593823,Servesoul Limited,200.45,05/06/2023
Delivery Units,Adults and Health,Other Agencies - Third Party P,0090593824,Servesoul Limited,801.78,05/06/2023
Delivery Units,Adults and Health,Other Agencies - Third Party P,0090593828,Servesoul Limited,300.67,05/06/2023
Delivery Units,Adults and Health,Other Agencies - Third Party P,0090593829,Servesoul Limited,200.45,05/06/2023
Delivery Units,Adults and Health,Other Agencies - Third Party P,0090593831,Servesoul Limited,233.85,05/06/2023
Delivery Units,Adults and Health,Other Agencies - Third Party P,0090593832,Servesoul Limited,167.04,05/06/2023
Delivery Units,Adults and Health,Other Agencies - Third Party P,0090593833,Servesoul Limited,"1,135.86",05/06/2023
Delivery Units,Adults and Health,Other Agencies - Third Party P,0090593835,Servesoul Limited,319.76,05/06/2023
Delivery Units,Adults and Health,Other Agencies - Third Party P,0090593836,Servesoul Limited,233.85,05/06/2023
Delivery Units,Adults and Health,Other Agencies - Third Party P,0090593837,Servesoul Limited,57.27,05/06/2023
Delivery Units,Adults and Health,Other Agencies - Third Party P,0090593839,Servesoul Limited,601.34,05/06/2023
Delivery Units,Adults and Health,Other Agencies - Third Party P,0090593840,Servesoul Limited,801.78,05/06/2023
Delivery Units,Adults and Health,Other Agencies - Third Party P,0090593841,Servesoul Limited,606.11,05/06/2023
Delivery Units,Adults and Health,Other Agencies - Third Party P,0090593842,Servesoul Limited,233.85,05/06/2023
Delivery Units,Adults and Health,Other Agencies - Third Party P,0090593844,Servesoul Limited,190.90,05/06/2023
Delivery Units,Adults and Health,Other Agencies - Third Party P,0090593848,Servesoul Limited,286.35,05/06/2023
Delivery Units,Adults and Health,Other Agencies - Third Party P,0090593850,Servesoul Limited,200.45,05/06/2023
Delivery Units,Adults and Health,Other Agencies - Third Party P,0090593851,Servesoul Limited,262.49,05/06/2023
Delivery Units,Adults and Health,Other Agencies - Third Party P,0090593852,Servesoul Limited,233.85,05/06/2023
Delivery Units,Adults and Health,Other Agencies - Third Party P,0090593853,Servesoul Limited,233.85,05/06/2023
Delivery Units,Adults and Health,Other Agencies - Third Party P,0090593854,Servesoul Limited,152.72,05/06/2023
Delivery Units,Adults and Health,Other Agencies - Third Party P,0090593855,Servesoul Limited,300.67,05/06/2023
Delivery Units,Adults and Health,Other Agencies - Third Party P,0090593856,Servesoul Limited,100.22,05/06/2023
Delivery Units,Adults and Health,Other Agencies - Third Party P,0090593858,Servesoul Limited,200.45,05/06/2023
Delivery Units,Adults and Health,Other Agencies - Third Party P,0090593861,Servesoul Limited,267.26,05/06/2023
Delivery Units,Adults and Health,Other Agencies - Third Party P,0090593863,Servesoul Limited,133.63,05/06/2023
Delivery Units,Adults and Health,Other Agencies - Third Party P,0090593865,Servesoul Limited,501.11,05/06/2023
Delivery Units,Adults and Health,Other Agencies - Third Party P,0090593866,Servesoul Limited,133.63,05/06/2023
Delivery Units,Adults and Health,Other Agencies - Third Party P,0090593867,Servesoul Limited,319.76,05/06/2023
Delivery Units,Adults and Health,Other Agencies - Third Party P,0090593868,Servesoul Limited,200.45,05/06/2023
Delivery Units,Adults and Health,Other Agencies - Third Party P,0090593869,Servesoul Limited,672.92,05/06/2023
Delivery Units,Adults and Health,Other Agencies - Third Party P,0090593870,Servesoul Limited,"2,099.71",05/06/2023
Delivery Units,Adults and Health,Other Agencies - Third Party P,0090593871,Servesoul Limited,133.63,05/06/2023
Delivery Units,Adults and Health,Other Agencies - Third Party P,0090593872,Servesoul Limited,57.27,05/06/2023
Delivery Units,Adults and Health,Other Agencies - Third Party P,0090593875,Servesoul Limited,152.72,05/06/2023
Delivery Units,Adults and Health,Other Agencies - Third Party P,0090593876,Servesoul Limited,267.26,05/06/2023
Delivery Units,Adults and Health,Other Agencies - Third Party P,0090593878,Servesoul Limited,200.45,05/06/2023
Delivery Units,Adults and Health,Other Agencies - Third Party P,0090593879,Servesoul Limited,801.78,05/06/2023
Delivery Units,Adults and Health,Other Agencies - Third Party P,0090593883,Servesoul Limited,300.67,05/06/2023
Delivery Units,Adults and Health,Other Agencies - Third Party P,0090593884,Servesoul Limited,200.45,05/06/2023
Delivery Units,Adults and Health,Other Agencies - Third Party P,0090593886,Servesoul Limited,233.85,05/06/2023
Delivery Units,Adults and Health,Other Agencies - Third Party P,0090593887,Servesoul Limited,167.04,05/06/2023
Delivery Units,Adults and Health,Other Agencies - Third Party P,0090593888,Servesoul Limited,"1,135.86",05/06/2023
Delivery Units,Adults and Health,Other Agencies - Third Party P,0090593890,Servesoul Limited,319.76,05/06/2023
Delivery Units,Adults and Health,Other Agencies - Third Party P,0090593891,Servesoul Limited,233.85,05/06/2023
Delivery Units,Adults and Health,Other Agencies - Third Party P,0090593892,Servesoul Limited,57.27,05/06/2023
Delivery Units,Adults and Health,Other Agencies - Third Party P,0090593894,Servesoul Limited,601.34,05/06/2023
Delivery Units,Adults and Health,Other Agencies - Third Party P,0090593895,Servesoul Limited,801.78,05/06/2023
Delivery Units,Adults and Health,Other Agencies - Third Party P,0090593896,Servesoul Limited,606.11,05/06/2023
Delivery Units,Adults and Health,Other Agencies - Third Party P,0090593897,Servesoul Limited,233.85,05/06/2023
Delivery Units,Adults and Health,Other Agencies - Third Party P,0090593899,Servesoul Limited,181.36,05/06/2023
Delivery Units,Adults and Health,Other Agencies - Third Party P,0090593901,Servesoul Limited,47.73,05/06/2023
Delivery Units,Adults and Health,Other Agencies - Third Party P,0090593904,Servesoul Limited,286.35,05/06/2023
Delivery Units,Adults and Health,Other Agencies - Third Party P,0090593906,Servesoul Limited,601.34,05/06/2023
Delivery Units,Adults and Health,Other Agencies - Third Party P,0090593907,Servesoul Limited,262.49,05/06/2023
Delivery Units,Adults and Health,Other Agencies - Third Party P,0090593908,Servesoul Limited,167.04,05/06/2023
Delivery Units,Adults and Health,Other Agencies - Third Party P,0090593909,Servesoul Limited,233.85,05/06/2023
Delivery Units,Adults and Health,Other Agencies - Third Party P,0090593910,Servesoul Limited,152.72,05/06/2023
Delivery Units,Adults and Health,Other Agencies - Third Party P,0090593911,Servesoul Limited,300.67,05/06/2023
Delivery Units,Adults and Health,Other Agencies - Third Party P,0090593912,Servesoul Limited,100.22,05/06/2023
Delivery Units,Adults and Health,Other Agencies - Third Party P,0090593914,Servesoul Limited,267.26,05/06/2023
Delivery Units,Adults and Health,Other Agencies - Third Party P,0090593915,Servesoul Limited,200.45,05/06/2023
Delivery Units,Adults and Health,Other Agencies - Third Party P,0090593919,MI HOMECARE LIMITED,57.90,06/06/2023
Delivery Units,Adults and Health,Other Agencies - Third Party P,0090593920,MI HOMECARE LIMITED,183.35,06/06/2023
Delivery Units,Adults and Health,Other Agencies - Third Party P,0090593921,MI HOMECARE LIMITED,"1,512.93",06/06/2023
Delivery Units,Adults and Health,Other Agencies - Third Party P,0090593922,MI HOMECARE LIMITED,255.73,06/06/2023
Delivery Units,Adults and Health,Other Agencies - Third Party P,0090593923,MI HOMECARE LIMITED,"3,231.40",06/06/2023
Delivery Units,Adults and Health,Other Agencies - Third Party P,0090593924,MI HOMECARE LIMITED,289.50,06/06/2023
Delivery Units,Adults and Health,Other Agencies - Third Party P,0090593925,MI HOMECARE LIMITED,72.38,06/06/2023
Delivery Units,Adults and Health,Other Agencies - Third Party P,0090593926,MI HOMECARE LIMITED,366.70,06/06/2023
Delivery Units,Adults and Health,Other Agencies - Third Party P,0090593929,MI HOMECARE LIMITED,183.35,06/06/2023
Delivery Units,Adults and Health,Other Agencies - Third Party P,0090593930,MI HOMECARE LIMITED,250.90,06/06/2023
Delivery Units,Adults and Health,Other Agencies - Third Party P,0090593932,MI HOMECARE LIMITED,"1,008.43",06/06/2023
Delivery Units,Adults and Health,Other Agencies - Third Party P,0090593933,MI HOMECARE LIMITED,318.45,06/06/2023
Delivery Units,Adults and Health,Other Agencies - Third Party P,0090593934,MI HOMECARE LIMITED,135.10,06/06/2023
Delivery Units,Adults and Health,Other Agencies - Third Party P,0090593935,MI HOMECARE LIMITED,303.98,06/06/2023
Delivery Units,Adults and Health,Other Agencies - Third Party P,0090593937,MI HOMECARE LIMITED,202.65,06/06/2023
Delivery Units,Adults and Health,Other Agencies - Third Party P,0090593939,MI HOMECARE LIMITED,299.15,06/06/2023
Delivery Units,Adults and Health,Other Agencies - Third Party P,0090593940,MI HOMECARE LIMITED,299.15,06/06/2023
Delivery Units,Adults and Health,Other Agencies - Third Party P,0090593941,MI HOMECARE LIMITED,"1,708.05",06/06/2023
Delivery Units,Adults and Health,Other Agencies - Third Party P,0090593942,MI HOMECARE LIMITED,303.98,06/06/2023
Delivery Units,Adults and Health,Other Agencies - Third Party P,0090593943,MI HOMECARE LIMITED,255.73,06/06/2023
Delivery Units,Adults and Health,Other Agencies - Third Party P,0090593944,MI HOMECARE LIMITED,86.85,06/06/2023
Delivery Units,Adults and Health,Other Agencies - Third Party P,0090593945,MI HOMECARE LIMITED,496.98,06/06/2023
Delivery Units,Adults and Health,Other Agencies - Third Party P,0090593946,MI HOMECARE LIMITED,303.98,06/06/2023
Delivery Units,Adults and Health,Other Agencies - Third Party P,0090593948,MI HOMECARE LIMITED,101.33,06/06/2023
Delivery Units,Adults and Health,Other Agencies - Third Party P,0090593950,MI HOMECARE LIMITED,265.38,06/06/2023
Delivery Units,Adults and Health,Other Agencies - Third Party P,0090593951,MI HOMECARE LIMITED,67.55,06/06/2023
Delivery Units,Adults and Health,Other Agencies - Third Party P,0090593952,MI HOMECARE LIMITED,342.58,06/06/2023
Delivery Units,Adults and Health,Other Agencies - Third Party P,0090593954,MI HOMECARE LIMITED,86.85,06/06/2023
Delivery Units,Adults and Health,Other Agencies - Third Party P,0090593956,MI HOMECARE LIMITED,96.50,06/06/2023
Delivery Units,Adults and Health,Other Agencies - Third Party P,0090593957,MI HOMECARE LIMITED,260.55,06/06/2023
Delivery Units,Adults and Health,Other Agencies - Third Party P,0090593959,MI HOMECARE LIMITED,217.13,06/06/2023
Delivery Units,Adults and Health,Other Agencies - Third Party P,0090593960,MI HOMECARE LIMITED,202.65,06/06/2023
Delivery Units,Adults and Health,Other Agencies - Third Party P,0090593963,MI HOMECARE LIMITED,135.10,06/06/2023
Delivery Units,Adults and Health,Other Agencies - Third Party P,0090593964,MI HOMECARE LIMITED,28.95,06/06/2023
Delivery Units,Adults and Health,Other Agencies - Third Party P,0090593966,MI HOMECARE LIMITED,284.68,06/06/2023
Delivery Units,Adults and Health,Other Agencies - Third Party P,0090593967,MI HOMECARE LIMITED,361.88,06/06/2023
Delivery Units,Adults and Health,Other Agencies - Third Party P,0090593968,MI HOMECARE LIMITED,294.33,06/06/2023
Delivery Units,Adults and Health,Other Agencies - Third Party P,0090593969,MI HOMECARE LIMITED,704.45,06/06/2023
Delivery Units,Adults and Health,Other Agencies - Third Party P,0090593971,MI HOMECARE LIMITED,101.33,06/06/2023
Delivery Units,Adults and Health,Other Agencies - Third Party P,0090593972,MI HOMECARE LIMITED,67.55,06/06/2023
Delivery Units,Adults and Health,Other Agencies - Third Party P,0090593975,MI HOMECARE LIMITED,337.75,06/06/2023
Delivery Units,Adults and Health,Other Agencies - Third Party P,0090593976,MI HOMECARE LIMITED,303.98,06/06/2023
Delivery Units,Adults and Health,Other Agencies - Third Party P,0090593977,MI HOMECARE LIMITED,168.88,06/06/2023
Delivery Units,Adults and Health,Other Agencies - Third Party P,0090593979,MI HOMECARE LIMITED,57.90,06/06/2023
Delivery Units,Adults and Health,Other Agencies - Third Party P,0090593981,MI HOMECARE LIMITED,120.63,06/06/2023
Delivery Units,Adults and Health,Other Agencies - Third Party P,0090593982,MI HOMECARE LIMITED,86.85,06/06/2023
Delivery Units,Adults and Health,Other Agencies - Third Party P,0090593984,MI HOMECARE LIMITED,255.73,06/06/2023
Delivery Units,Adults and Health,Other Agencies - Third Party P,0090593985,MI HOMECARE LIMITED,135.10,06/06/2023
Delivery Units,Adults and Health,Other Agencies - Third Party P,0090593986,MI HOMECARE LIMITED,188.18,06/06/2023
Delivery Units,Adults and Health,Other Agencies - Third Party P,0090593987,MI HOMECARE LIMITED,"1,817.48",06/06/2023
Delivery Units,Adults and Health,Other Agencies - Third Party P,0090593988,MI HOMECARE LIMITED,135.10,06/06/2023
Delivery Units,Adults and Health,Other Agencies - Third Party P,0090593990,MI HOMECARE LIMITED,337.75,06/06/2023
Delivery Units,Adults and Health,Other Agencies - Third Party P,0090593991,MI HOMECARE LIMITED,434.25,06/06/2023
Delivery Units,Adults and Health,Other Agencies - Third Party P,0090593992,MI HOMECARE LIMITED,154.40,06/06/2023
Delivery Units,Adults and Health,Other Agencies - Third Party P,0090593993,MI HOMECARE LIMITED,188.18,06/06/2023
Delivery Units,Adults and Health,Other Agencies - Third Party P,0090593995,MI HOMECARE LIMITED,72.38,06/06/2023
Delivery Units,Adults and Health,Other Agencies - Third Party P,0090593996,MI HOMECARE LIMITED,289.50,06/06/2023
Delivery Units,Adults and Health,Other Agencies - Third Party P,0090593997,MI HOMECARE LIMITED,38.60,06/06/2023
Delivery Units,Adults and Health,Other Agencies - Third Party P,0090593998,MI HOMECARE LIMITED,101.33,06/06/2023
Delivery Units,Adults and Health,Other Agencies - Third Party P,0090594001,MI HOMECARE LIMITED,86.85,06/06/2023
Delivery Units,Adults and Health,Other Agencies - Third Party P,0090594002,MI HOMECARE LIMITED,67.55,06/06/2023
Delivery Units,Adults and Health,Other Agencies - Third Party P,0090594004,MI HOMECARE LIMITED,139.93,06/06/2023
Delivery Units,Adults and Health,Other Agencies - Third Party P,0090594005,MI HOMECARE LIMITED,202.65,06/06/2023
Delivery Units,Adults and Health,Other Agencies - Third Party P,0090594006,MI HOMECARE LIMITED,149.58,06/06/2023
Delivery Units,Adults and Health,Other Agencies - Third Party P,0090594008,MI HOMECARE LIMITED,130.28,06/06/2023
Delivery Units,Adults and Health,Other Agencies - Third Party P,0090594009,MI HOMECARE LIMITED,101.33,06/06/2023
Delivery Units,Adults and Health,Other Agencies - Third Party P,0090594011,MI HOMECARE LIMITED,110.98,06/06/2023
Delivery Units,Adults and Health,Other Agencies - Third Party P,0090594012,MI HOMECARE LIMITED,14.48,06/06/2023
Delivery Units,Adults and Health,Other Agencies - Third Party P,0090594013,MI HOMECARE LIMITED,86.85,06/06/2023
Delivery Units,Adults and Health,Other Agencies - Third Party P,0090594014,MI HOMECARE LIMITED,67.55,06/06/2023
Delivery Units,Adults and Health,Other Agencies - Third Party P,0090594015,MI HOMECARE LIMITED,275.03,06/06/2023
Delivery Units,Adults and Health,Other Agencies - Third Party P,0090594018,MI HOMECARE LIMITED,337.75,06/06/2023
Delivery Units,Adults and Health,Other Agencies - Third Party P,0090594019,MI HOMECARE LIMITED,772.00,06/06/2023
Delivery Units,Adults and Health,Other Agencies - Third Party P,0090594021,MI HOMECARE LIMITED,303.98,06/06/2023
Delivery Units,Adults and Health,Other Agencies - Third Party P,0090594022,MI HOMECARE LIMITED,86.85,06/06/2023
Delivery Units,Adults and Health,Other Agencies - Third Party P,0090594025,MI HOMECARE LIMITED,28.95,06/06/2023
Delivery Units,Adults and Health,Other Agencies - Third Party P,0090594026,MI HOMECARE LIMITED,57.90,06/06/2023
Delivery Units,Adults and Health,Other Agencies - Third Party P,0090594033,MI HOMECARE LIMITED,260.55,06/06/2023
Delivery Units,Adults and Health,Other Agencies - Third Party P,0090594034,MI HOMECARE LIMITED,342.58,06/06/2023
Delivery Units,Adults and Health,Other Agencies - Third Party P,0090594035,MI HOMECARE LIMITED,323.28,06/06/2023
Delivery Units,Adults and Health,Other Agencies - Third Party P,0090594039,MI HOMECARE LIMITED,38.60,06/06/2023
Delivery Units,Adults and Health,Other Agencies - Third Party P,0090594042,MI HOMECARE LIMITED,57.90,06/06/2023
Delivery Units,Adults and Health,Other Agencies - Third Party P,0090594043,MI HOMECARE LIMITED,188.18,06/06/2023
Delivery Units,Adults and Health,Other Agencies - Third Party P,0090594044,MI HOMECARE LIMITED,"1,553.65",06/06/2023
Delivery Units,Adults and Health,Other Agencies - Third Party P,0090594045,MI HOMECARE LIMITED,250.90,06/06/2023
Delivery Units,Adults and Health,Other Agencies - Third Party P,0090594046,MI HOMECARE LIMITED,"3,230.24",06/06/2023
Delivery Units,Adults and Health,Other Agencies - Third Party P,0090594047,MI HOMECARE LIMITED,289.50,06/06/2023
Delivery Units,Adults and Health,Other Agencies - Third Party P,0090594048,MI HOMECARE LIMITED,72.38,06/06/2023
Delivery Units,Adults and Health,Other Agencies - Third Party P,0090594049,MI HOMECARE LIMITED,371.53,06/06/2023
Delivery Units,Adults and Health,Other Agencies - Third Party P,0090594052,MI HOMECARE LIMITED,183.35,06/06/2023
Delivery Units,Adults and Health,Other Agencies - Third Party P,0090594053,MI HOMECARE LIMITED,250.90,06/06/2023
Delivery Units,Adults and Health,Other Agencies - Third Party P,0090594054,MI HOMECARE LIMITED,86.85,06/06/2023
Delivery Units,Adults and Health,Other Agencies - Third Party P,0090594056,MI HOMECARE LIMITED,"1,003.60",06/06/2023
Delivery Units,Adults and Health,Other Agencies - Third Party P,0090594057,MI HOMECARE LIMITED,308.80,06/06/2023
Delivery Units,Adults and Health,Other Agencies - Third Party P,0090594058,MI HOMECARE LIMITED,135.10,06/06/2023
Delivery Units,Adults and Health,Other Agencies - Third Party P,0090594059,MI HOMECARE LIMITED,303.98,06/06/2023
Delivery Units,Adults and Health,Other Agencies - Third Party P,0090594061,MI HOMECARE LIMITED,202.65,06/06/2023
Delivery Units,Adults and Health,Other Agencies - Third Party P,0090594063,MI HOMECARE LIMITED,289.50,06/06/2023
Delivery Units,Adults and Health,Other Agencies - Third Party P,0090594064,MI HOMECARE LIMITED,299.15,06/06/2023
Delivery Units,Adults and Health,Other Agencies - Third Party P,0090594065,MI HOMECARE LIMITED,"1,697.24",06/06/2023
Delivery Units,Adults and Health,Other Agencies - Third Party P,0090594066,MI HOMECARE LIMITED,303.98,06/06/2023
Delivery Units,Adults and Health,Other Agencies - Third Party P,0090594067,MI HOMECARE LIMITED,260.55,06/06/2023
Delivery Units,Adults and Health,Other Agencies - Third Party P,0090594068,MI HOMECARE LIMITED,86.85,06/06/2023
Delivery Units,Adults and Health,Other Agencies - Third Party P,0090594069,MI HOMECARE LIMITED,496.98,06/06/2023
Delivery Units,Adults and Health,Other Agencies - Third Party P,0090594070,MI HOMECARE LIMITED,308.80,06/06/2023
Delivery Units,Adults and Health,Other Agencies - Third Party P,0090594072,MI HOMECARE LIMITED,101.33,06/06/2023
Delivery Units,Adults and Health,Other Agencies - Third Party P,0090594074,MI HOMECARE LIMITED,270.20,06/06/2023
Delivery Units,Adults and Health,Other Agencies - Third Party P,0090594075,MI HOMECARE LIMITED,67.55,06/06/2023
Delivery Units,Adults and Health,Other Agencies - Third Party P,0090594076,MI HOMECARE LIMITED,337.75,06/06/2023
Delivery Units,Adults and Health,Other Agencies - Third Party P,0090594078,MI HOMECARE LIMITED,86.85,06/06/2023
Delivery Units,Adults and Health,Other Agencies - Third Party P,0090594080,MI HOMECARE LIMITED,135.10,06/06/2023
Delivery Units,Adults and Health,Other Agencies - Third Party P,0090594081,MI HOMECARE LIMITED,260.55,06/06/2023
Delivery Units,Adults and Health,Other Agencies - Third Party P,0090594083,MI HOMECARE LIMITED,202.26,06/06/2023
Delivery Units,Adults and Health,Other Agencies - Third Party P,0090594084,MI HOMECARE LIMITED,202.65,06/06/2023
Delivery Units,Adults and Health,Other Agencies - Third Party P,0090594087,MI HOMECARE LIMITED,135.10,06/06/2023
Delivery Units,Adults and Health,Other Agencies - Third Party P,0090594088,MI HOMECARE LIMITED,28.95,06/06/2023
Delivery Units,Adults and Health,Other Agencies - Third Party P,0090594090,MI HOMECARE LIMITED,284.68,06/06/2023
Delivery Units,Adults and Health,Other Agencies - Third Party P,0090594091,MI HOMECARE LIMITED,357.05,06/06/2023
Delivery Units,Adults and Health,Other Agencies - Third Party P,0090594092,MI HOMECARE LIMITED,303.98,06/06/2023
Delivery Units,Adults and Health,Other Agencies - Third Party P,0090594093,MI HOMECARE LIMITED,704.45,06/06/2023
Delivery Units,Adults and Health,Other Agencies - Third Party P,0090594095,MI HOMECARE LIMITED,101.33,06/06/2023
Delivery Units,Adults and Health,Other Agencies - Third Party P,0090594096,MI HOMECARE LIMITED,67.55,06/06/2023
Delivery Units,Adults and Health,Other Agencies - Third Party P,0090594099,MI HOMECARE LIMITED,337.75,06/06/2023
Delivery Units,Adults and Health,Other Agencies - Third Party P,0090594100,MI HOMECARE LIMITED,303.98,06/06/2023
Delivery Units,Adults and Health,Other Agencies - Third Party P,0090594101,MI HOMECARE LIMITED,168.88,06/06/2023
Delivery Units,Adults and Health,Other Agencies - Third Party P,0090594103,MI HOMECARE LIMITED,57.90,06/06/2023
Delivery Units,Adults and Health,Other Agencies - Third Party P,0090594105,MI HOMECARE LIMITED,120.63,06/06/2023
Delivery Units,Adults and Health,Other Agencies - Third Party P,0090594106,MI HOMECARE LIMITED,101.33,06/06/2023
Delivery Units,Adults and Health,Other Agencies - Third Party P,0090594108,MI HOMECARE LIMITED,270.20,06/06/2023
Delivery Units,Adults and Health,Other Agencies - Third Party P,0090594109,MI HOMECARE LIMITED,135.10,06/06/2023
Delivery Units,Adults and Health,Other Agencies - Third Party P,0090594110,MI HOMECARE LIMITED,188.18,06/06/2023
Delivery Units,Adults and Health,Other Agencies - Third Party P,0090594111,MI HOMECARE LIMITED,"1,832.92",06/06/2023
Delivery Units,Adults and Health,Other Agencies - Third Party P,0090594112,MI HOMECARE LIMITED,135.10,06/06/2023
Delivery Units,Adults and Health,Other Agencies - Third Party P,0090594114,MI HOMECARE LIMITED,337.75,06/06/2023
Delivery Units,Adults and Health,Other Agencies - Third Party P,0090594115,MI HOMECARE LIMITED,434.25,06/06/2023
Delivery Units,Adults and Health,Other Agencies - Third Party P,0090594116,MI HOMECARE LIMITED,149.58,06/06/2023
Delivery Units,Adults and Health,Other Agencies - Third Party P,0090594117,MI HOMECARE LIMITED,188.18,06/06/2023
Delivery Units,Adults and Health,Other Agencies - Third Party P,0090594119,MI HOMECARE LIMITED,72.38,06/06/2023
Delivery Units,Adults and Health,Other Agencies - Third Party P,0090594120,MI HOMECARE LIMITED,294.33,06/06/2023
Delivery Units,Adults and Health,Other Agencies - Third Party P,0090594121,MI HOMECARE LIMITED,101.33,06/06/2023
Delivery Units,Adults and Health,Other Agencies - Third Party P,0090594124,MI HOMECARE LIMITED,86.85,06/06/2023
Delivery Units,Adults and Health,Other Agencies - Third Party P,0090594125,MI HOMECARE LIMITED,67.55,06/06/2023
Delivery Units,Adults and Health,Other Agencies - Third Party P,0090594127,MI HOMECARE LIMITED,139.93,06/06/2023
Delivery Units,Adults and Health,Other Agencies - Third Party P,0090594128,MI HOMECARE LIMITED,231.60,06/06/2023
Delivery Units,Adults and Health,Other Agencies - Third Party P,0090594129,MI HOMECARE LIMITED,173.70,06/06/2023
Delivery Units,Adults and Health,Other Agencies - Third Party P,0090594131,MI HOMECARE LIMITED,135.10,06/06/2023
Delivery Units,Adults and Health,Other Agencies - Third Party P,0090594132,MI HOMECARE LIMITED,101.33,06/06/2023
Delivery Units,Adults and Health,Other Agencies - Third Party P,0090594134,MI HOMECARE LIMITED,115.80,06/06/2023
Delivery Units,Adults and Health,Other Agencies - Third Party P,0090594135,MI HOMECARE LIMITED,96.50,06/06/2023
Delivery Units,Adults and Health,Other Agencies - Third Party P,0090594136,MI HOMECARE LIMITED,67.55,06/06/2023
Delivery Units,Adults and Health,Other Agencies - Third Party P,0090594137,MI HOMECARE LIMITED,275.03,06/06/2023
Delivery Units,Adults and Health,Other Agencies - Third Party P,0090594140,MI HOMECARE LIMITED,332.93,06/06/2023
Delivery Units,Adults and Health,Other Agencies - Third Party P,0090594141,MI HOMECARE LIMITED,762.35,06/06/2023
Delivery Units,Adults and Health,Other Agencies - Third Party P,0090594143,MI HOMECARE LIMITED,308.80,06/06/2023
Delivery Units,Adults and Health,Other Agencies - Third Party P,0090594144,MI HOMECARE LIMITED,72.38,06/06/2023
Delivery Units,Adults and Health,Other Agencies - Third Party P,0090594147,MI HOMECARE LIMITED,57.90,06/06/2023
Delivery Units,Adults and Health,Other Agencies - Third Party P,0090594153,MI HOMECARE LIMITED,246.08,06/06/2023
Delivery Units,Adults and Health,Other Agencies - Third Party P,0090594154,MI HOMECARE LIMITED,342.58,06/06/2023
Delivery Units,Adults and Health,Other Agencies - Third Party P,0090594155,MI HOMECARE LIMITED,342.58,06/06/2023
Delivery Units,Adults and Health,Other Agencies - Third Party P,0090594158,MI HOMECARE LIMITED,38.60,06/06/2023
Delivery Units,Adults and Health,Other Agencies - Third Party P,0090594160,MI HOMECARE LIMITED,110.98,06/06/2023
Delivery Units,Adults and Health,Other Agencies - Third Party P,0090594162,MI HOMECARE LIMITED,57.90,06/06/2023
Delivery Units,Adults and Health,Other Agencies - Third Party P,0090594163,MI HOMECARE LIMITED,183.35,06/06/2023
Delivery Units,Adults and Health,Other Agencies - Third Party P,0090594164,MI HOMECARE LIMITED,"1,553.65",06/06/2023
Delivery Units,Adults and Health,Other Agencies - Third Party P,0090594165,MI HOMECARE LIMITED,250.90,06/06/2023
Delivery Units,Adults and Health,Other Agencies - Third Party P,0090594166,MI HOMECARE LIMITED,289.50,06/06/2023
Delivery Units,Adults and Health,Other Agencies - Third Party P,0090594167,MI HOMECARE LIMITED,72.38,06/06/2023
Delivery Units,Adults and Health,Other Agencies - Third Party P,0090594168,MI HOMECARE LIMITED,371.53,06/06/2023
Delivery Units,Adults and Health,Other Agencies - Third Party P,0090594171,MI HOMECARE LIMITED,183.35,06/06/2023
Delivery Units,Adults and Health,Other Agencies - Third Party P,0090594172,MI HOMECARE LIMITED,246.08,06/06/2023
Delivery Units,Adults and Health,Other Agencies - Third Party P,0090594173,MI HOMECARE LIMITED,86.85,06/06/2023
Delivery Units,Adults and Health,Other Agencies - Third Party P,0090594175,MI HOMECARE LIMITED,"1,037.38",06/06/2023
Delivery Units,Adults and Health,Other Agencies - Third Party P,0090594176,MI HOMECARE LIMITED,308.80,06/06/2023
Delivery Units,Adults and Health,Other Agencies - Third Party P,0090594177,MI HOMECARE LIMITED,135.10,06/06/2023
Delivery Units,Adults and Health,Other Agencies - Third Party P,0090594178,MI HOMECARE LIMITED,303.98,06/06/2023
Delivery Units,Adults and Health,Other Agencies - Third Party P,0090594180,MI HOMECARE LIMITED,202.65,06/06/2023
Delivery Units,Adults and Health,Other Agencies - Third Party P,0090594182,MI HOMECARE LIMITED,299.15,06/06/2023
Delivery Units,Adults and Health,Other Agencies - Third Party P,0090594183,MI HOMECARE LIMITED,299.15,06/06/2023
Delivery Units,Adults and Health,Other Agencies - Third Party P,0090594184,MI HOMECARE LIMITED,"1,717.70",06/06/2023
Delivery Units,Adults and Health,Other Agencies - Third Party P,0090594185,MI HOMECARE LIMITED,303.98,06/06/2023
Delivery Units,Adults and Health,Other Agencies - Third Party P,0090594186,MI HOMECARE LIMITED,255.73,06/06/2023
Delivery Units,Adults and Health,Other Agencies - Third Party P,0090594187,MI HOMECARE LIMITED,86.85,06/06/2023
Delivery Units,Adults and Health,Other Agencies - Third Party P,0090594188,MI HOMECARE LIMITED,496.98,06/06/2023
Delivery Units,Adults and Health,Other Agencies - Third Party P,0090594189,MI HOMECARE LIMITED,303.98,06/06/2023
Delivery Units,Adults and Health,Other Agencies - Third Party P,0090594191,MI HOMECARE LIMITED,101.33,06/06/2023
Delivery Units,Adults and Health,Other Agencies - Third Party P,0090594193,MI HOMECARE LIMITED,270.20,06/06/2023
Delivery Units,Adults and Health,Other Agencies - Third Party P,0090594194,MI HOMECARE LIMITED,38.60,06/06/2023
Delivery Units,Adults and Health,Other Agencies - Third Party P,0090594195,MI HOMECARE LIMITED,337.75,06/06/2023
Delivery Units,Adults and Health,Other Agencies - Third Party P,0090594197,MI HOMECARE LIMITED,86.85,06/06/2023
Delivery Units,Adults and Health,Other Agencies - Third Party P,0090594199,MI HOMECARE LIMITED,135.10,06/06/2023
Delivery Units,Adults and Health,Other Agencies - Third Party P,0090594200,MI HOMECARE LIMITED,77.20,06/06/2023
Delivery Units,Adults and Health,Other Agencies - Third Party P,0090594202,MI HOMECARE LIMITED,217.13,06/06/2023
Delivery Units,Adults and Health,Other Agencies - Third Party P,0090594203,MI HOMECARE LIMITED,202.65,06/06/2023
Delivery Units,Adults and Health,Other Agencies - Third Party P,0090594206,MI HOMECARE LIMITED,135.10,06/06/2023
Delivery Units,Adults and Health,Other Agencies - Third Party P,0090594207,MI HOMECARE LIMITED,28.95,06/06/2023
Delivery Units,Adults and Health,Other Agencies - Third Party P,0090594209,MI HOMECARE LIMITED,265.38,06/06/2023
Delivery Units,Adults and Health,Other Agencies - Third Party P,0090594211,MI HOMECARE LIMITED,361.88,06/06/2023
Delivery Units,Adults and Health,Other Agencies - Third Party P,0090594212,MI HOMECARE LIMITED,303.98,06/06/2023
Delivery Units,Adults and Health,Other Agencies - Third Party P,0090594213,MI HOMECARE LIMITED,704.45,06/06/2023
Delivery Units,Adults and Health,Other Agencies - Third Party P,0090594215,MI HOMECARE LIMITED,101.33,06/06/2023
Delivery Units,Adults and Health,Other Agencies - Third Party P,0090594216,MI HOMECARE LIMITED,67.55,06/06/2023
Delivery Units,Adults and Health,Other Agencies - Third Party P,0090594217,MI HOMECARE LIMITED,188.18,06/06/2023
Delivery Units,Adults and Health,Other Agencies - Third Party P,0090594220,MI HOMECARE LIMITED,332.93,06/06/2023
Delivery Units,Adults and Health,Other Agencies - Third Party P,0090594221,MI HOMECARE LIMITED,294.33,06/06/2023
Delivery Units,Adults and Health,Other Agencies - Third Party P,0090594222,MI HOMECARE LIMITED,168.88,06/06/2023
Delivery Units,Adults and Health,Other Agencies - Third Party P,0090594224,MI HOMECARE LIMITED,154.40,06/06/2023
Delivery Units,Adults and Health,Other Agencies - Third Party P,0090594226,MI HOMECARE LIMITED,106.15,06/06/2023
Delivery Units,Adults and Health,Other Agencies - Third Party P,0090594227,MI HOMECARE LIMITED,96.50,06/06/2023
Delivery Units,Adults and Health,Other Agencies - Third Party P,0090594229,MI HOMECARE LIMITED,270.20,06/06/2023
Delivery Units,Adults and Health,Other Agencies - Third Party P,0090594230,MI HOMECARE LIMITED,135.10,06/06/2023
Delivery Units,Adults and Health,Other Agencies - Third Party P,0090594231,MI HOMECARE LIMITED,188.18,06/06/2023
Delivery Units,Adults and Health,Other Agencies - Third Party P,0090594232,MI HOMECARE LIMITED,"1,817.87",06/06/2023
Delivery Units,Adults and Health,Other Agencies - Third Party P,0090594233,MI HOMECARE LIMITED,135.10,06/06/2023
Delivery Units,Adults and Health,Other Agencies - Third Party P,0090594235,MI HOMECARE LIMITED,337.75,06/06/2023
Delivery Units,Adults and Health,Other Agencies - Third Party P,0090594236,MI HOMECARE LIMITED,434.25,06/06/2023
Delivery Units,Adults and Health,Other Agencies - Third Party P,0090594237,MI HOMECARE LIMITED,149.58,06/06/2023
Delivery Units,Adults and Health,Other Agencies - Third Party P,0090594238,MI HOMECARE LIMITED,188.18,06/06/2023
Delivery Units,Adults and Health,Other Agencies - Third Party P,0090594240,MI HOMECARE LIMITED,72.38,06/06/2023
Delivery Units,Adults and Health,Other Agencies - Third Party P,0090594241,MI HOMECARE LIMITED,289.50,06/06/2023
Delivery Units,Adults and Health,Other Agencies - Third Party P,0090594242,MI HOMECARE LIMITED,101.33,06/06/2023
Delivery Units,Adults and Health,Other Agencies - Third Party P,0090594245,MI HOMECARE LIMITED,86.85,06/06/2023
Delivery Units,Adults and Health,Other Agencies - Third Party P,0090594246,MI HOMECARE LIMITED,67.55,06/06/2023
Delivery Units,Adults and Health,Other Agencies - Third Party P,0090594248,MI HOMECARE LIMITED,139.93,06/06/2023
Delivery Units,Adults and Health,Other Agencies - Third Party P,0090594249,MI HOMECARE LIMITED,236.43,06/06/2023
Delivery Units,Adults and Health,Other Agencies - Third Party P,0090594250,MI HOMECARE LIMITED,159.23,06/06/2023
Delivery Units,Adults and Health,Other Agencies - Third Party P,0090594252,MI HOMECARE LIMITED,135.10,06/06/2023
Delivery Units,Adults and Health,Other Agencies - Third Party P,0090594253,MI HOMECARE LIMITED,101.33,06/06/2023
Delivery Units,Adults and Health,Other Agencies - Third Party P,0090594255,MI HOMECARE LIMITED,115.80,06/06/2023
Delivery Units,Adults and Health,Other Agencies - Third Party P,0090594256,MI HOMECARE LIMITED,82.03,06/06/2023
Delivery Units,Adults and Health,Other Agencies - Third Party P,0090594257,MI HOMECARE LIMITED,67.55,06/06/2023
Delivery Units,Adults and Health,Other Agencies - Third Party P,0090594258,MI HOMECARE LIMITED,275.03,06/06/2023
Delivery Units,Adults and Health,Other Agencies - Third Party P,0090594260,MI HOMECARE LIMITED,313.63,06/06/2023
Delivery Units,Adults and Health,Other Agencies - Third Party P,0090594261,MI HOMECARE LIMITED,772.00,06/06/2023
Delivery Units,Adults and Health,Other Agencies - Third Party P,0090594263,MI HOMECARE LIMITED,308.80,06/06/2023
Delivery Units,Adults and Health,Other Agencies - Third Party P,0090594264,MI HOMECARE LIMITED,86.85,06/06/2023
Delivery Units,Adults and Health,Other Agencies - Third Party P,0090594267,MI HOMECARE LIMITED,57.90,06/06/2023
Delivery Units,Adults and Health,Other Agencies - Third Party P,0090594271,MI HOMECARE LIMITED,260.55,06/06/2023
Delivery Units,Adults and Health,Other Agencies - Third Party P,0090594272,MI HOMECARE LIMITED,347.40,06/06/2023
Delivery Units,Adults and Health,Other Agencies - Third Party P,0090594273,MI HOMECARE LIMITED,337.75,06/06/2023
Delivery Units,Adults and Health,Other Agencies - Third Party P,0090594277,MI HOMECARE LIMITED,38.60,06/06/2023
Delivery Units,Adults and Health,Other Agencies - Third Party P,0090594279,MI HOMECARE LIMITED,337.75,06/06/2023
Delivery Units,Adults and Health,Other Agencies - Third Party P,0090594281,Bestchoice Global Ltd,138.25,06/06/2023
Delivery Units,Adults and Health,Other Agencies - Third Party P,0090594282,Bestchoice Global Ltd,104.68,06/06/2023
Delivery Units,Adults and Health,Other Agencies - Third Party P,0090594283,Bestchoice Global Ltd,345.63,06/06/2023
Delivery Units,Adults and Health,Other Agencies - Third Party P,0090594284,Bestchoice Global Ltd,88.88,06/06/2023
Delivery Units,Adults and Health,Other Agencies - Third Party P,0090594285,Bestchoice Global Ltd,19.75,06/06/2023
Delivery Units,Adults and Health,Other Agencies - Third Party P,0090594286,Bestchoice Global Ltd,553.00,06/06/2023
Delivery Units,Adults and Health,Other Agencies - Third Party P,0090594287,Bestchoice Global Ltd,790.00,06/06/2023
Delivery Units,Adults and Health,Other Agencies - Third Party P,0090594289,Bestchoice Global Ltd,74.06,06/06/2023
Delivery Units,Adults and Health,Other Agencies - Third Party P,0090594290,Bestchoice Global Ltd,19.75,06/06/2023
Delivery Units,Adults and Health,Other Agencies - Third Party P,0090594291,Bestchoice Global Ltd,276.50,06/06/2023
Delivery Units,Adults and Health,Other Agencies - Third Party P,0090594292,Bestchoice Global Ltd,553.00,06/06/2023
Delivery Units,Adults and Health,Other Agencies - Third Party P,0090594294,Bestchoice Global Ltd,103.69,06/06/2023
Delivery Units,Adults and Health,Other Agencies - Third Party P,0090594295,Bestchoice Global Ltd,172.81,06/06/2023
Delivery Units,Adults and Health,Other Agencies - Third Party P,0090594296,Bestchoice Global Ltd,169.40,06/06/2023
Delivery Units,Adults and Health,Other Agencies - Third Party P,0090594300,Bestchoice Global Ltd,622.13,06/06/2023
Delivery Units,Adults and Health,Other Agencies - Third Party P,0090594304,Bestchoice Global Ltd,340.69,06/06/2023
Delivery Units,Adults and Health,Other Agencies - Third Party P,0090594306,Prime Way Care Ltd,328.13,06/06/2023
Delivery Units,Adults and Health,Other Agencies - Third Party P,0090594307,Prime Way Care Ltd,691.25,06/06/2023
Delivery Units,Adults and Health,Other Agencies - Third Party P,0090594308,Prime Way Care Ltd,275.63,06/06/2023
Delivery Units,Adults and Health,Other Agencies - Third Party P,0090594309,Prime Way Care Ltd,306.25,06/06/2023
Delivery Units,Adults and Health,Other Agencies - Third Party P,0090594310,Prime Way Care Ltd,280.00,06/06/2023
Delivery Units,Adults and Health,Other Agencies - Third Party P,0090594311,Prime Way Care Ltd,446.25,06/06/2023
Delivery Units,Adults and Health,Other Agencies - Third Party P,0090594313,Prime Way Care Ltd,328.13,06/06/2023
Delivery Units,Adults and Health,Other Agencies - Third Party P,0090594314,Prime Way Care Ltd,691.25,06/06/2023
Delivery Units,Adults and Health,Other Agencies - Third Party P,0090594315,Prime Way Care Ltd,266.88,06/06/2023
Delivery Units,Adults and Health,Other Agencies - Third Party P,0090594316,Prime Way Care Ltd,306.25,06/06/2023
Delivery Units,Adults and Health,Other Agencies - Third Party P,0090594317,Prime Way Care Ltd,280.00,06/06/2023
Delivery Units,Adults and Health,Other Agencies - Third Party P,0090594318,Prime Way Care Ltd,446.25,06/06/2023
Delivery Units,Adults and Health,Other Agencies - Third Party P,0090594319,Prime Way Care Ltd,175.00,06/06/2023
Delivery Units,Adults and Health,Other Agencies - Third Party P,0090594320,Prime Way Care Ltd,275.63,06/06/2023
Delivery Units,Adults and Health,Other Agencies - Third Party P,0090594321,Primera Assisted Living Ltd,139.98,06/06/2023
Delivery Units,Adults and Health,Other Agencies - Third Party P,0090594322,Primera Assisted Living Ltd,42.00,06/06/2023
Delivery Units,Adults and Health,Other Agencies - Third Party P,0090594323,Primera Assisted Living Ltd,195.95,06/06/2023
Delivery Units,Adults and Health,Other Agencies - Third Party P,0090594324,Primera Assisted Living Ltd,233.30,06/06/2023
Delivery Units,Adults and Health,Other Agencies - Third Party P,0090594325,Prime Way Care Ltd,328.13,06/06/2023
Delivery Units,Adults and Health,Other Agencies - Third Party P,0090594326,Prime Way Care Ltd,691.25,06/06/2023
Delivery Units,Adults and Health,Other Agencies - Third Party P,0090594327,Prime Way Care Ltd,275.63,06/06/2023
Delivery Units,Adults and Health,Other Agencies - Third Party P,0090594328,Prime Way Care Ltd,306.25,06/06/2023
Delivery Units,Adults and Health,Other Agencies - Third Party P,0090594329,Prime Way Care Ltd,280.00,06/06/2023
Delivery Units,Adults and Health,Other Agencies - Third Party P,0090594330,Prime Way Care Ltd,446.25,06/06/2023
Delivery Units,Adults and Health,Other Agencies - Third Party P,0090594331,Prime Way Care Ltd,175.00,06/06/2023
Delivery Units,Adults and Health,Other Agencies - Third Party P,0090594332,Prime Way Care Ltd,275.63,06/06/2023
Delivery Units,Adults and Health,Other Agencies - Third Party P,0090594333,Prime Way Care Ltd,328.13,06/06/2023
Delivery Units,Adults and Health,Other Agencies - Third Party P,0090594334,Prime Way Care Ltd,691.25,06/06/2023
Delivery Units,Adults and Health,Other Agencies - Third Party P,0090594335,Prime Way Care Ltd,275.63,06/06/2023
Delivery Units,Adults and Health,Other Agencies - Third Party P,0090594336,Prime Way Care Ltd,306.25,06/06/2023
Delivery Units,Adults and Health,Other Agencies - Third Party P,0090594337,Prime Way Care Ltd,280.00,06/06/2023
Delivery Units,Adults and Health,Other Agencies - Third Party P,0090594338,Prime Way Care Ltd,446.25,06/06/2023
Delivery Units,Adults and Health,Other Agencies - Third Party P,0090594339,Prime Way Care Ltd,183.75,06/06/2023
Delivery Units,Adults and Health,Other Agencies - Third Party P,0090594340,Prime Way Care Ltd,275.63,06/06/2023
Delivery Units,Adults and Health,Other Agencies - Third Party P,0090594341,Primera Assisted Living Ltd,139.98,06/06/2023
Delivery Units,Adults and Health,Other Agencies - Third Party P,0090594342,Primera Assisted Living Ltd,195.95,06/06/2023
Delivery Units,Adults and Health,Other Agencies - Third Party P,0090594343,Primera Assisted Living Ltd,233.30,06/06/2023
Delivery Units,Adults and Health,Other Agencies - Third Party P,0090594344,Primera Assisted Living Ltd,153.98,06/06/2023
Delivery Units,Adults and Health,Other Agencies - Third Party P,0090594345,Primera Assisted Living Ltd,195.95,06/06/2023
Delivery Units,Adults and Health,Other Agencies - Third Party P,0090594346,Primera Assisted Living Ltd,233.30,06/06/2023
Delivery Units,Adults and Health,Other Agencies - Third Party P,0090594347,Primera Assisted Living Ltd,153.98,06/06/2023
Delivery Units,Adults and Health,Other Agencies - Third Party P,0090594348,Primera Assisted Living Ltd,195.95,06/06/2023
Delivery Units,Adults and Health,Other Agencies - Third Party P,0090594349,Primera Assisted Living Ltd,233.30,06/06/2023
Delivery Units,Adults and Health,Other Agencies - Third Party P,0090594350,Prime Way Care Ltd,328.13,06/06/2023
Delivery Units,Adults and Health,Other Agencies - Third Party P,0090594351,Prime Way Care Ltd,691.25,06/06/2023
Delivery Units,Adults and Health,Other Agencies - Third Party P,0090594352,Prime Way Care Ltd,275.63,06/06/2023
Delivery Units,Adults and Health,Other Agencies - Third Party P,0090594353,Prime Way Care Ltd,306.25,06/06/2023
Delivery Units,Adults and Health,Other Agencies - Third Party P,0090594354,Prime Way Care Ltd,280.00,06/06/2023
Delivery Units,Adults and Health,Other Agencies - Third Party P,0090594355,Prime Way Care Ltd,"1,531.25",06/06/2023
Delivery Units,Adults and Health,Other Agencies - Third Party P,0090594356,Prime Way Care Ltd,446.25,06/06/2023
Delivery Units,Adults and Health,Other Agencies - Third Party P,0090594357,Prime Way Care Ltd,183.75,06/06/2023
Delivery Units,Adults and Health,Other Agencies - Third Party P,0090594358,Prime Way Care Ltd,275.63,06/06/2023
Delivery Units,Adults and Health,Other Agencies - Third Party P,0090594359,Prime Way Care Ltd,328.13,06/06/2023
Delivery Units,Adults and Health,Other Agencies - Third Party P,0090594360,Prime Way Care Ltd,691.25,06/06/2023
Delivery Units,Adults and Health,Other Agencies - Third Party P,0090594361,Prime Way Care Ltd,266.88,06/06/2023
Delivery Units,Adults and Health,Other Agencies - Third Party P,0090594362,Prime Way Care Ltd,306.25,06/06/2023
Delivery Units,Adults and Health,Other Agencies - Third Party P,0090594363,Prime Way Care Ltd,280.00,06/06/2023
Delivery Units,Adults and Health,Other Agencies - Third Party P,0090594364,Prime Way Care Ltd,"1,531.25",06/06/2023
Delivery Units,Adults and Health,Other Agencies - Third Party P,0090594365,Prime Way Care Ltd,446.25,06/06/2023
Delivery Units,Adults and Health,Other Agencies - Third Party P,0090594366,Prime Way Care Ltd,183.75,06/06/2023
Delivery Units,Adults and Health,Other Agencies - Third Party P,0090594367,Prime Way Care Ltd,275.63,06/06/2023
Delivery Units,Adults and Health,Other Agencies - Third Party P,0090594368,Prime Way Care Ltd,328.13,06/06/2023
Delivery Units,Adults and Health,Other Agencies - Third Party P,0090594369,Prime Way Care Ltd,691.25,06/06/2023
Delivery Units,Adults and Health,Other Agencies - Third Party P,0090594370,Prime Way Care Ltd,275.63,06/06/2023
Delivery Units,Adults and Health,Other Agencies - Third Party P,0090594371,Prime Way Care Ltd,306.25,06/06/2023
Delivery Units,Adults and Health,Other Agencies - Third Party P,0090594372,Prime Way Care Ltd,280.00,06/06/2023
Delivery Units,Adults and Health,Other Agencies - Third Party P,0090594373,Prime Way Care Ltd,"1,496.25",06/06/2023
Delivery Units,Adults and Health,Other Agencies - Third Party P,0090594374,Prime Way Care Ltd,446.25,06/06/2023
Delivery Units,Adults and Health,Other Agencies - Third Party P,0090594375,Prime Way Care Ltd,183.75,06/06/2023
Delivery Units,Adults and Health,Other Agencies - Third Party P,0090594376,Prime Way Care Ltd,275.63,06/06/2023
Delivery Units,Adults and Health,Other Agencies - Third Party P,0090594377,Prime Way Care Ltd,328.13,06/06/2023
Delivery Units,Adults and Health,Other Agencies - Third Party P,0090594378,Prime Way Care Ltd,691.25,06/06/2023
Delivery Units,Adults and Health,Other Agencies - Third Party P,0090594379,Prime Way Care Ltd,275.63,06/06/2023
Delivery Units,Adults and Health,Other Agencies - Third Party P,0090594380,Prime Way Care Ltd,306.25,06/06/2023
Delivery Units,Adults and Health,Other Agencies - Third Party P,0090594381,Prime Way Care Ltd,280.00,06/06/2023
Delivery Units,Adults and Health,Other Agencies - Third Party P,0090594382,Prime Way Care Ltd,"1,531.25",06/06/2023
Delivery Units,Adults and Health,Other Agencies - Third Party P,0090594383,Prime Way Care Ltd,446.25,06/06/2023
Delivery Units,Adults and Health,Other Agencies - Third Party P,0090594384,Prime Way Care Ltd,183.75,06/06/2023
Delivery Units,Adults and Health,Other Agencies - Third Party P,0090594385,Prime Way Care Ltd,275.63,06/06/2023
Delivery Units,Adults and Health,Other Agencies - Third Party P,0090594386,Prime Way Care Ltd,328.13,06/06/2023
Delivery Units,Adults and Health,Other Agencies - Third Party P,0090594387,Prime Way Care Ltd,691.25,06/06/2023
Delivery Units,Adults and Health,Other Agencies - Third Party P,0090594388,Prime Way Care Ltd,275.63,06/06/2023
Delivery Units,Adults and Health,Other Agencies - Third Party P,0090594389,Prime Way Care Ltd,306.25,06/06/2023
Delivery Units,Adults and Health,Other Agencies - Third Party P,0090594390,Prime Way Care Ltd,280.00,06/06/2023
Delivery Units,Adults and Health,Other Agencies - Third Party P,0090594391,Prime Way Care Ltd,280.00,06/06/2023
Delivery Units,Adults and Health,Other Agencies - Third Party P,0090594392,Prime Way Care Ltd,446.25,06/06/2023
Delivery Units,Adults and Health,Other Agencies - Third Party P,0090594393,Prime Way Care Ltd,183.75,06/06/2023
Delivery Units,Adults and Health,Other Agencies - Third Party P,0090594394,Prime Way Care Ltd,275.63,06/06/2023
Delivery Units,Adults and Health,Other Agencies - Third Party P,0090594395,Prime Way Care Ltd,328.13,06/06/2023
Delivery Units,Adults and Health,Other Agencies - Third Party P,0090594396,Prime Way Care Ltd,691.25,06/06/2023
Delivery Units,Adults and Health,Other Agencies - Third Party P,0090594397,Prime Way Care Ltd,70.00,06/06/2023
Delivery Units,Adults and Health,Other Agencies - Third Party P,0090594398,Prime Way Care Ltd,306.25,06/06/2023
Delivery Units,Adults and Health,Other Agencies - Third Party P,0090594399,Prime Way Care Ltd,280.00,06/06/2023
Delivery Units,Adults and Health,Other Agencies - Third Party P,0090594400,Prime Way Care Ltd,"1,531.25",06/06/2023
Delivery Units,Adults and Health,Other Agencies - Third Party P,0090594401,Prime Way Care Ltd,446.25,06/06/2023
Delivery Units,Adults and Health,Other Agencies - Third Party P,0090594402,Prime Way Care Ltd,183.75,06/06/2023
Delivery Units,Adults and Health,Other Agencies - Third Party P,0090594403,Prime Way Care Ltd,275.63,06/06/2023
Delivery Units,Adults and Health,Other Agencies - Third Party P,0090594422,Oaktree Homecare Services Ltd,287.44,06/06/2023
Delivery Units,Adults and Health,Other Agencies - Third Party P,0090594423,Oaktree Homecare Services Ltd,287.44,06/06/2023
Delivery Units,Adults and Health,Other Agencies - Third Party P,0090594427,Oaktree Homecare Services Ltd,226.63,06/06/2023
Delivery Units,Adults and Health,Other Agencies - Third Party P,0090594428,Oaktree Homecare Services Ltd,226.63,06/06/2023
Delivery Units,Adults and Health,Other Agencies - Third Party P,0090594429,Oaktree Homecare Services Ltd,226.63,06/06/2023
Delivery Units,Adults and Health,Other Agencies - Third Party P,0090594430,Oaktree Homecare Services Ltd,226.63,06/06/2023
Delivery Units,Adults and Health,Other Agencies - Third Party P,0090594431,Oaktree Homecare Services Ltd,226.63,06/06/2023
Delivery Units,Adults and Health,Other Agencies - Third Party P,0090594432,Oaktree Homecare Services Ltd,226.63,06/06/2023
Delivery Units,Adults and Health,Other Agencies - Third Party P,0090594433,Oaktree Homecare Services Ltd,226.63,06/06/2023
Delivery Units,Adults and Health,Other Agencies - Third Party P,0090594434,Oaktree Homecare Services Ltd,226.63,06/06/2023
Delivery Units,Adults and Health,Other Agencies - Third Party P,0090594435,Oaktree Homecare Services Ltd,520.13,06/06/2023
Delivery Units,Adults and Health,Other Agencies - Third Party P,0090594436,Oaktree Homecare Services Ltd,766.50,06/06/2023
Delivery Units,Adults and Health,Other Agencies - Third Party P,0090594437,Oaktree Homecare Services Ltd,766.50,06/06/2023
Delivery Units,Adults and Health,Other Agencies - Third Party P,0090594438,Oaktree Homecare Services Ltd,766.50,06/06/2023
Delivery Units,Adults and Health,Other Agencies - Third Party P,0090594451,Oaktree Homecare Services Ltd,164.25,06/06/2023
Delivery Units,Adults and Health,Other Agencies - Third Party P,0090594452,Oaktree Homecare Services Ltd,164.25,06/06/2023
Delivery Units,Adults and Health,Other Agencies - Third Party P,0090594453,Oaktree Homecare Services Ltd,164.25,06/06/2023
Delivery Units,Adults and Health,Other Agencies - Third Party P,0090594454,Oaktree Homecare Services Ltd,164.25,06/06/2023
Delivery Units,Adults and Health,Other Agencies - Third Party P,0090594455,Oaktree Homecare Services Ltd,182.50,06/06/2023
Delivery Units,Adults and Health,Other Agencies - Third Party P,0090594470,Exceptional Care at Home Ltd,455.70,06/06/2023
Delivery Units,Adults and Health,Other Agencies - Third Party P,0090594472,Exceptional Care at Home Ltd,274.40,06/06/2023
Delivery Units,Adults and Health,Other Agencies - Third Party P,0090594473,Exceptional Care at Home Ltd,313.60,06/06/2023
Delivery Units,Adults and Health,Other Agencies - Third Party P,0090594474,Exceptional Care at Home Ltd,240.10,06/06/2023
Delivery Units,Adults and Health,Other Agencies - Third Party P,0090594475,Exceptional Care at Home Ltd,240.10,06/06/2023
Delivery Units,Adults and Health,Other Agencies - Third Party P,0090594476,Exceptional Care at Home Ltd,235.20,06/06/2023
Delivery Units,Adults and Health,Other Agencies - Third Party P,0090594477,Exceptional Care at Home Ltd,245.00,06/06/2023
Delivery Units,Adults and Health,Other Agencies - Third Party P,0090594478,Exceptional Care at Home Ltd,284.20,06/06/2023
Delivery Units,Adults and Health,Other Agencies - Third Party P,0090594479,Exceptional Care at Home Ltd,445.90,06/06/2023
Delivery Units,Adults and Health,Other Agencies - Third Party P,0090594481,Exceptional Care at Home Ltd,926.10,06/06/2023
Delivery Units,Adults and Health,Other Agencies - Third Party P,0090594482,Exceptional Care at Home Ltd,102.90,06/06/2023
Delivery Units,Adults and Health,Other Agencies - Third Party P,0090594483,Exceptional Care at Home Ltd,235.20,06/06/2023
Delivery Units,Adults and Health,Other Agencies - Third Party P,0090594484,Exceptional Care at Home Ltd,308.70,06/06/2023
Delivery Units,Adults and Health,Other Agencies - Third Party P,0090594485,Exceptional Care at Home Ltd,377.30,06/06/2023
Delivery Units,Adults and Health,Other Agencies - Third Party P,0090594486,Exceptional Care at Home Ltd,298.90,06/06/2023
Delivery Units,Adults and Health,Other Agencies - Third Party P,0090594487,Exceptional Care at Home Ltd,347.90,06/06/2023
Delivery Units,Adults and Health,Other Agencies - Third Party P,0090594488,Exceptional Care at Home Ltd,191.10,06/06/2023
Delivery Units,Adults and Health,Other Agencies - Third Party P,0090594489,Exceptional Care at Home Ltd,171.50,06/06/2023
Delivery Units,Adults and Health,Other Agencies - Third Party P,0090594490,Exceptional Care at Home Ltd,627.20,06/06/2023
Delivery Units,Adults and Health,Other Agencies - Third Party P,0090594491,Exceptional Care at Home Ltd,686.00,06/06/2023
Delivery Units,Adults and Health,Other Agencies - Third Party P,0090594493,Exceptional Care at Home Ltd,294.00,06/06/2023
Delivery Units,Adults and Health,Other Agencies - Third Party P,0090594494,Exceptional Care at Home Ltd,137.20,06/06/2023
Delivery Units,Adults and Health,Other Agencies - Third Party P,0090594495,Exceptional Care at Home Ltd,891.80,06/06/2023
Delivery Units,Adults and Health,Other Agencies - Third Party P,0090594496,Exceptional Care at Home Ltd,196.00,06/06/2023
Delivery Units,Adults and Health,Other Agencies - Third Party P,0090594497,Exceptional Care at Home Ltd,465.50,06/06/2023
Delivery Units,Adults and Health,Other Agencies - Third Party P,0090594498,Exceptional Care at Home Ltd,68.60,06/06/2023
Delivery Units,Adults and Health,Other Agencies - Third Party P,0090594499,Exceptional Care at Home Ltd,"1,058.40",06/06/2023
Delivery Units,Adults and Health,Other Agencies - Third Party P,0090594500,Exceptional Care at Home Ltd,102.90,06/06/2023
Delivery Units,Adults and Health,Other Agencies - Third Party P,0090594501,Exceptional Care at Home Ltd,88.20,06/06/2023
Delivery Units,Adults and Health,Other Agencies - Third Party P,0090594502,Exceptional Care at Home Ltd,274.40,06/06/2023
Delivery Units,Adults and Health,Other Agencies - Third Party P,0090594503,Exceptional Care at Home Ltd,396.90,06/06/2023
Delivery Units,Adults and Health,Other Agencies - Third Party P,0090594504,Exceptional Care at Home Ltd,240.10,06/06/2023
Delivery Units,Adults and Health,Other Agencies - Third Party P,0090594507,Exceptional Care at Home Ltd,323.40,06/06/2023
Delivery Units,Adults and Health,Other Agencies - Third Party P,0090594508,Exceptional Care at Home Ltd,308.70,06/06/2023
Delivery Units,Adults and Health,Other Agencies - Third Party P,0090594509,Exceptional Care at Home Ltd,343.00,06/06/2023
Delivery Units,Adults and Health,Other Agencies - Third Party P,0090594510,Exceptional Care at Home Ltd,406.70,06/06/2023
Delivery Units,Adults and Health,Other Agencies - Third Party P,0090594511,Exceptional Care at Home Ltd,240.10,06/06/2023
Delivery Units,Adults and Health,Other Agencies - Third Party P,0090594512,Exceptional Care at Home Ltd,269.50,06/06/2023
Delivery Units,Adults and Health,Other Agencies - Third Party P,0090594513,Exceptional Care at Home Ltd,151.90,06/06/2023
Delivery Units,Adults and Health,Other Agencies - Third Party P,0090594514,Exceptional Care at Home Ltd,509.60,06/06/2023
Delivery Units,Adults and Health,Other Agencies - Third Party P,0090594517,Exceptional Care at Home Ltd,823.20,06/06/2023
Delivery Units,Adults and Health,Other Agencies - Third Party P,0090594518,Exceptional Care at Home Ltd,362.60,06/06/2023
Delivery Units,Adults and Health,Other Agencies - Third Party P,0090594522,Exceptional Care at Home Ltd,617.40,06/06/2023
Delivery Units,Adults and Health,Other Agencies - Third Party P,0090594523,Exceptional Care at Home Ltd,686.00,06/06/2023
Delivery Units,Adults and Health,Other Agencies - Third Party P,0090594524,Exceptional Care at Home Ltd,411.60,06/06/2023
Delivery Units,Adults and Health,Other Agencies - Third Party P,0090594526,Exceptional Care at Home Ltd,617.40,06/06/2023
Delivery Units,Adults and Health,Other Agencies - Third Party P,0090594527,Exceptional Care at Home Ltd,98.00,06/06/2023
Delivery Units,Adults and Health,Other Agencies - Third Party P,0090594528,Exceptional Care at Home Ltd,205.80,06/06/2023
Delivery Units,Adults and Health,Other Agencies - Third Party P,0090594533,Exceptional Care at Home Ltd,509.60,06/06/2023
Delivery Units,Adults and Health,Other Agencies - Third Party P,0090594537,Exceptional Care at Home Ltd,205.80,06/06/2023
Delivery Units,Adults and Health,Other Agencies - Third Party P,0090594540,Exceptional Care at Home Ltd,249.90,06/06/2023
Delivery Units,Adults and Health,Other Agencies - Third Party P,0090594542,Exceptional Care at Home Ltd,455.70,06/06/2023
Delivery Units,Adults and Health,Other Agencies - Third Party P,0090594544,Exceptional Care at Home Ltd,274.40,06/06/2023
Delivery Units,Adults and Health,Other Agencies - Third Party P,0090594545,Exceptional Care at Home Ltd,313.60,06/06/2023
Delivery Units,Adults and Health,Other Agencies - Third Party P,0090594546,Exceptional Care at Home Ltd,240.10,06/06/2023
Delivery Units,Adults and Health,Other Agencies - Third Party P,0090594547,Exceptional Care at Home Ltd,240.10,06/06/2023
Delivery Units,Adults and Health,Other Agencies - Third Party P,0090594548,Exceptional Care at Home Ltd,235.20,06/06/2023
Delivery Units,Adults and Health,Other Agencies - Third Party P,0090594549,Exceptional Care at Home Ltd,245.00,06/06/2023
Delivery Units,Adults and Health,Other Agencies - Third Party P,0090594550,Exceptional Care at Home Ltd,284.20,06/06/2023
Delivery Units,Adults and Health,Other Agencies - Third Party P,0090594551,Exceptional Care at Home Ltd,445.90,06/06/2023
Delivery Units,Adults and Health,Other Agencies - Third Party P,0090594553,Exceptional Care at Home Ltd,926.10,06/06/2023
Delivery Units,Adults and Health,Other Agencies - Third Party P,0090594554,Exceptional Care at Home Ltd,102.90,06/06/2023
Delivery Units,Adults and Health,Other Agencies - Third Party P,0090594555,Exceptional Care at Home Ltd,269.50,06/06/2023
Delivery Units,Adults and Health,Other Agencies - Third Party P,0090594556,Exceptional Care at Home Ltd,308.70,06/06/2023
Delivery Units,Adults and Health,Other Agencies - Third Party P,0090594557,Exceptional Care at Home Ltd,289.10,06/06/2023
Delivery Units,Adults and Health,Other Agencies - Third Party P,0090594558,Exceptional Care at Home Ltd,298.90,06/06/2023
Delivery Units,Adults and Health,Other Agencies - Third Party P,0090594559,Exceptional Care at Home Ltd,347.90,06/06/2023
Delivery Units,Adults and Health,Other Agencies - Third Party P,0090594560,Exceptional Care at Home Ltd,191.10,06/06/2023
Delivery Units,Adults and Health,Other Agencies - Third Party P,0090594561,Exceptional Care at Home Ltd,171.50,06/06/2023
Delivery Units,Adults and Health,Other Agencies - Third Party P,0090594562,Exceptional Care at Home Ltd,627.20,06/06/2023
Delivery Units,Adults and Health,Other Agencies - Third Party P,0090594563,Exceptional Care at Home Ltd,686.00,06/06/2023
Delivery Units,Adults and Health,Other Agencies - Third Party P,0090594565,Exceptional Care at Home Ltd,343.00,06/06/2023
Delivery Units,Adults and Health,Other Agencies - Third Party P,0090594566,Exceptional Care at Home Ltd,137.20,06/06/2023
Delivery Units,Adults and Health,Other Agencies - Third Party P,0090594567,Exceptional Care at Home Ltd,891.80,06/06/2023
Delivery Units,Adults and Health,Other Agencies - Third Party P,0090594568,Exceptional Care at Home Ltd,196.00,06/06/2023
Delivery Units,Adults and Health,Other Agencies - Third Party P,0090594569,Exceptional Care at Home Ltd,"1,460.20",06/06/2023
Delivery Units,Adults and Health,Other Agencies - Third Party P,0090594570,Exceptional Care at Home Ltd,465.50,06/06/2023
Delivery Units,Adults and Health,Other Agencies - Third Party P,0090594571,Exceptional Care at Home Ltd,19.60,06/06/2023
Delivery Units,Adults and Health,Other Agencies - Third Party P,0090594572,Exceptional Care at Home Ltd,"1,058.40",06/06/2023
Delivery Units,Adults and Health,Other Agencies - Third Party P,0090594573,Exceptional Care at Home Ltd,102.90,06/06/2023
Delivery Units,Adults and Health,Other Agencies - Third Party P,0090594574,Exceptional Care at Home Ltd,191.10,06/06/2023
Delivery Units,Adults and Health,Other Agencies - Third Party P,0090594575,Exceptional Care at Home Ltd,274.40,06/06/2023
